Body Name,Body,Service Area Catergorisation,Service Division Catergorisation,Responsible Unit,Expenses Type,Detailed Expenses Type,Expenses Code,Date,Transaction Number,Amount,Capital / Revenue,Supplier Name,Supplier ID
North East Lincolnshire Council,http://statistics.data.gov.uk/id/local-authority/00FC,Chief Executive,Director Of Finance,Backlog Maintenance,Cap Land/Build-Prof Fees,Cap Land/Build-Prof Fees,YA103,02/06/15,353748,3000,Capital,COFELY WORKPLACE LIMITED,123983
North East Lincolnshire Council,http://statistics.data.gov.uk/id/local-authority/00FC,Chief Executive,Director Of Finance,Backlog Maintenance,Cap Land/Build-Build Enh Wrk,Cap Land/Build-Build Enh Wrk,YA102,16/06/15,357400,1667,Capital,REDHILL ANALYSTS LTD,109169
North East Lincolnshire Council,http://statistics.data.gov.uk/id/local-authority/00FC,Chief Executive,Director Of Finance,Backlog Maintenance,Cap Land/Build-Build Enh Wrk,Cap Land/Build-Build Enh Wrk,YA102,02/06/15,354391,1145,Capital,ETON-LINCS LIMITED,101510
North East Lincolnshire Council,http://statistics.data.gov.uk/id/local-authority/00FC,Chief Executive,Director Of Finance,Backlog Maintenance,Cap Land/Build-Build Enh Wrk,Cap Land/Build-Build Enh Wrk,YA102,02/06/15,354392,10210,Capital,ETON-LINCS LIMITED,101510
North East Lincolnshire Council,http://statistics.data.gov.uk/id/local-authority/00FC,Chief Executive,Director Of Finance,Backlog Maintenance,Cap Land/Build-Build Enh Wrk,Cap Land/Build-Build Enh Wrk,YA102,29/06/15,358944,410,Capital,LJM DESIGN & MANAGEMENT LTD,110960
North East Lincolnshire Council,http://statistics.data.gov.uk/id/local-authority/00FC,Chief Executive,Director Of Finance,Backlog Maintenance,Cap Land/Build-Build Enh Wrk,Cap Land/Build-Build Enh Wrk,YA102,18/06/15,357402,567,Capital,REDHILL ANALYSTS LTD,109169
North East Lincolnshire Council,http://statistics.data.gov.uk/id/local-authority/00FC,Chief Executive,Director Of Finance,Backlog Maintenance,Cap Land/Build-Build Enh Wrk,Cap Land/Build-Build Enh Wrk,YA102,22/06/15,357951,4850.7,Capital,HAITHS HEATING LTD,101342
North East Lincolnshire Council,http://statistics.data.gov.uk/id/local-authority/00FC,Chief Executive,Director Of Finance,Backlog Maintenance,Cap Land/Build-Build Enh Wrk,Cap Land/Build-Build Enh Wrk,YA102,08/06/15,354465,6050,Capital,CARE PLUS GROUP,106467
North East Lincolnshire Council,http://statistics.data.gov.uk/id/local-authority/00FC,Chief Executive,Director Of Finance,Backlog Maintenance,Cap Land/Build-Build Enh Wrk,Cap Land/Build-Build Enh Wrk,YA102,22/06/15,357955,2582,Capital,TOPCON CONSTRUCTION LTD,108462
North East Lincolnshire Council,http://statistics.data.gov.uk/id/local-authority/00FC,Chief Executive,Director Of Finance,Property Rationalisation Prog,Cap Land/Build-Build Enh Wrk,Cap Land/Build-Build Enh Wrk,YA102,04/06/15,354382,2790,Capital,REDHILL ANALYSTS LTD,109169
North East Lincolnshire Council,http://statistics.data.gov.uk/id/local-authority/00FC,Chief Executive,Director Of Finance,Property Rationalisation Prog,Cap Infrastr-Purchase,Cap Infrastr-Purchase,YC101,04/06/15,354403,595,Capital,SAFE CONTROL LTD,100989
North East Lincolnshire Council,http://statistics.data.gov.uk/id/local-authority/00FC,Chief Executive,Director Of Finance,Property Rationalisation Prog,Cap Infrastr-Purchase,Cap Infrastr-Purchase,YC101,25/06/15,355430,2713,Capital,IMERJA LTD,102238
North East Lincolnshire Council,http://statistics.data.gov.uk/id/local-authority/00FC,Chief Executive,Director Of Finance,Property Rationalisation Prog,Cap Infrastr-Purchase,Cap Infrastr-Purchase,YC101,25/06/15,357555,678.25,Capital,IMERJA LTD,102238
North East Lincolnshire Council,http://statistics.data.gov.uk/id/local-authority/00FC,Chief Executive,Director Of Finance,Property Rationalisation Prog,Cap Infrastr-Purchase,Cap Infrastr-Purchase,YC101,25/06/15,355430,618,Capital,IMERJA LTD,102238
North East Lincolnshire Council,http://statistics.data.gov.uk/id/local-authority/00FC,Chief Executive,Director Of Finance,Property Rationalisation Prog,Cap Infrastr-Purchase,Cap Infrastr-Purchase,YC101,08/06/15,354625,9258,Capital,INSIGHT DIRECT (UK) LTD,101011
North East Lincolnshire Council,http://statistics.data.gov.uk/id/local-authority/00FC,Chief Executive,Director Of Finance,Property Rationalisation Prog,Cap Infrastr-Purchase,Cap Infrastr-Purchase,YC101,15/06/15,356469,920.16,Capital,SPECIALIST COMPUTER CENTRES PLC,110715
North East Lincolnshire Council,http://statistics.data.gov.uk/id/local-authority/00FC,Chief Executive,Director Of Finance,Property Rationalisation Prog,Cap Infrastr-Purchase,Cap Infrastr-Purchase,YC101,15/06/15,356469,55474.62,Capital,SPECIALIST COMPUTER CENTRES PLC,110715
North East Lincolnshire Council,http://statistics.data.gov.uk/id/local-authority/00FC,Chief Executive,Director Of Finance,Property Rationalisation Prog,Cap Infrastr-Purchase,Cap Infrastr-Purchase,YC101,19/06/15,357556,3683.25,Capital,IMERJA LTD,102238
North East Lincolnshire Council,http://statistics.data.gov.uk/id/local-authority/00FC,Chief Executive,Director Of Finance,Property Rationalisation Prog,Cap Infrastr-Purchase,Cap Infrastr-Purchase,YC101,15/06/15,356359,582,Capital,SETON LIMITED,100585
North East Lincolnshire Council,http://statistics.data.gov.uk/id/local-authority/00FC,Chief Executive,Director Of Finance,Depot Investment,Cap Land/Build-Build Enh Wrk,Cap Land/Build-Build Enh Wrk,YA102,02/06/15,354386,5383,Capital,KES BUILDING MAINTENANCE LIMITED,100786
North East Lincolnshire Council,http://statistics.data.gov.uk/id/local-authority/00FC,Chief Executive,Ad Joint Delivery,New Ict Framework,Cap Intangible Assets,Cap Intangible Assets,YH101,25/06/15,358065,5047.5,Capital,CAPITA BUSINESS SERVICES LTD,102314
North East Lincolnshire Council,http://statistics.data.gov.uk/id/local-authority/00FC,Chief Executive,Ad Joint Delivery,New Ict Framework,Cap Intangible Assets,Cap Intangible Assets,YH101,11/06/15,351105,3400,Capital,VISIONWARE LTD,103028
North East Lincolnshire Council,http://statistics.data.gov.uk/id/local-authority/00FC,Chief Executive,Ad Joint Delivery,New Leisure Centre At Grimsby,Cap Land/Build-Build Enh Wrk,Cap Land/Build-Build Enh Wrk,YA102,16/06/15,357435,549677.27,Capital,INTERSERVE CONSTRUCTION,128140
North East Lincolnshire Council,http://statistics.data.gov.uk/id/local-authority/00FC,Chief Executive,Ad Joint Delivery,New Leisure Centre At Grimsby,Cap Land/Build-Prof Fees,Cap Land/Build-Prof Fees,YA103,30/06/15,358893,15000,Capital,COFELY WORKPLACE LIMITED,123983
North East Lincolnshire Council,http://statistics.data.gov.uk/id/local-authority/00FC,Chief Executive,Ad Joint Delivery,Cleethorpes Leis Cent Refurb,Cap Land/Build-Build Enh Wrk,Cap Land/Build-Build Enh Wrk,YA102,04/06/15,354980,6703.81,Capital,THE GELDER GROUP,103601
North East Lincolnshire Council,http://statistics.data.gov.uk/id/local-authority/00FC,Chief Executive,Ad Joint Delivery,Cleethorpes Leis Cent Refurb,Cap Land/Build-Build Enh Wrk,Cap Land/Build-Build Enh Wrk,YA102,18/06/15,357632,113453.82,Capital,JOHNSON HEALTH TECH UK LTD,118830
North East Lincolnshire Council,http://statistics.data.gov.uk/id/local-authority/00FC,Chief Executive,Ad Joint Delivery,Replacement/Refurbishment  It,Cap Veh Plt Eqp-Purchase,Cap Veh Plt Eqp-Purchase,YB101,08/06/15,355305,1190.6,Capital,VIRGIN MEDIA LTD,101831
North East Lincolnshire Council,http://statistics.data.gov.uk/id/local-authority/00FC,Chief Executive,Ad Joint Delivery,Replacement/Refurbishment  It,Cap Veh Plt Eqp-Purchase,Cap Veh Plt Eqp-Purchase,YB101,09/06/15,356128,325,Capital,AXIELL ALM LTD,108597
North East Lincolnshire Council,http://statistics.data.gov.uk/id/local-authority/00FC,Chief Executive,Ad Joint Delivery,Immingham Pool,Cap Land/Build-Build Enh Wrk,Cap Land/Build-Build Enh Wrk,YA102,11/06/15,356503,170407.98,Capital,F PARKINSON LTD,123944
North East Lincolnshire Council,http://statistics.data.gov.uk/id/local-authority/00FC,Chief Executive,Ad Joint Delivery,Immingham Pool,Cap Land/Build-Prof Fees,Cap Land/Build-Prof Fees,YA103,30/06/15,358892,5000,Capital,COFELY WORKPLACE LIMITED,123983
North East Lincolnshire Council,http://statistics.data.gov.uk/id/local-authority/00FC,Chief Executive,Director Of Economy & Growth,Hps-Disabled Fac. Grants,Cap Grants To O/Side Sources,Cap Grants To O/Side Sources,YJ101,18/06/15,357357,2110,Capital,VIC HANSEN BUILDING & JOINERY LTD,103981
North East Lincolnshire Council,http://statistics.data.gov.uk/id/local-authority/00FC,Chief Executive,Director Of Economy & Growth,Hps-Disabled Fac. Grants,Cap Grants To O/Side Sources,Cap Grants To O/Side Sources,YJ101,23/06/15,357374,5462.82,Capital,PRISM MEDICAL UK,119507
North East Lincolnshire Council,http://statistics.data.gov.uk/id/local-authority/00FC,Chief Executive,Director Of Economy & Growth,Hps-Disabled Fac. Grants,Cap Grants To O/Side Sources,Cap Grants To O/Side Sources,YJ101,18/06/15,357372,3013.21,Capital,PRISM MEDICAL UK,119507
North East Lincolnshire Council,http://statistics.data.gov.uk/id/local-authority/00FC,Chief Executive,Director Of Economy & Growth,Hps-Disabled Fac. Grants,Cap Grants To O/Side Sources,Cap Grants To O/Side Sources,YJ101,18/06/15,357348,7452,Capital,WESSEX LIFT CO LTD,126902
North East Lincolnshire Council,http://statistics.data.gov.uk/id/local-authority/00FC,Chief Executive,Director Of Economy & Growth,Hps-Disabled Fac. Grants,Cap Grants To O/Side Sources,Cap Grants To O/Side Sources,YJ101,18/06/15,357375,4032.56,Capital,GAINSBOROUGH SPECIALIST BATHING,127946
North East Lincolnshire Council,http://statistics.data.gov.uk/id/local-authority/00FC,Chief Executive,Director Of Economy & Growth,Hps-Disabled Fac. Grants,Cap Grants To O/Side Sources,Cap Grants To O/Side Sources,YJ101,18/06/15,357379,1920.9,Capital,GAINSBOROUGH SPECIALIST BATHING,127946
North East Lincolnshire Council,http://statistics.data.gov.uk/id/local-authority/00FC,Chief Executive,Director Of Economy & Growth,Hps-Disabled Fac. Grants,Cap Grants To O/Side Sources,Cap Grants To O/Side Sources,YJ101,19/06/15,357335,850,Capital,WESSEX LIFT CO LTD,126902
North East Lincolnshire Council,http://statistics.data.gov.uk/id/local-authority/00FC,Chief Executive,Director Of Economy & Growth,Hps-Disabled Fac. Grants,Cap Grants To O/Side Sources,Cap Grants To O/Side Sources,YJ101,02/06/15,353685,3197,Capital,OBAM LIFT SERVICES LTD,112666
North East Lincolnshire Council,http://statistics.data.gov.uk/id/local-authority/00FC,Chief Executive,Director Of Economy & Growth,Hps-Disabled Fac. Grants,Cap Grants To O/Side Sources,Cap Grants To O/Side Sources,YJ101,18/06/15,357425,5402.42,Capital,MEARS LTD,102433
North East Lincolnshire Council,http://statistics.data.gov.uk/id/local-authority/00FC,Chief Executive,Director Of Economy & Growth,Hps-Disabled Fac. Grants,Cap Grants To O/Side Sources,Cap Grants To O/Side Sources,YJ101,19/06/15,357469,6218,Capital,P G INGOLDBY & SONS LTD,100591
North East Lincolnshire Council,http://statistics.data.gov.uk/id/local-authority/00FC,Chief Executive,Director Of Economy & Growth,Hps-Disabled Fac. Grants,Cap Grants To O/Side Sources,Cap Grants To O/Side Sources,YJ101,08/06/15,354614,4761,Capital,MARK BENNETT,101838
North East Lincolnshire Council,http://statistics.data.gov.uk/id/local-authority/00FC,Chief Executive,Director Of Economy & Growth,Hps-Disabled Fac. Grants,Cap Grants To O/Side Sources,Cap Grants To O/Side Sources,YJ101,08/06/15,354710,5724,Capital,P G INGOLDBY & SONS LTD,100591
North East Lincolnshire Council,http://statistics.data.gov.uk/id/local-authority/00FC,Chief Executive,Director Of Economy & Growth,Hps-Disabled Fac. Grants,Cap Grants To O/Side Sources,Cap Grants To O/Side Sources,YJ101,23/06/15,357811,4542.73,Capital,MEARS LTD,102433
North East Lincolnshire Council,http://statistics.data.gov.uk/id/local-authority/00FC,Chief Executive,Director Of Economy & Growth,Hps-Disabled Fac. Grants,Cap Grants To O/Side Sources,Cap Grants To O/Side Sources,YJ101,08/06/15,354613,3937,Capital,TOTAL HYGIENE LTD,100849
North East Lincolnshire Council,http://statistics.data.gov.uk/id/local-authority/00FC,Chief Executive,Director Of Economy & Growth,Hps-Disabled Fac. Grants,Cap Grants To O/Side Sources,Cap Grants To O/Side Sources,YJ101,16/06/15,357085,395,Capital,OBAM LIFT SERVICES LTD,112666
North East Lincolnshire Council,http://statistics.data.gov.uk/id/local-authority/00FC,Chief Executive,Director Of Economy & Growth,Hps-Disabled Fac. Grants,Cap Grants To O/Side Sources,Cap Grants To O/Side Sources,YJ101,02/06/15,354412,3937,Capital,TOTAL HYGIENE LTD,100849
North East Lincolnshire Council,http://statistics.data.gov.uk/id/local-authority/00FC,Chief Executive,Director Of Economy & Growth,Hps-Disabled Fac. Grants,Cap Grants To O/Side Sources,Cap Grants To O/Side Sources,YJ101,16/06/15,357178,556.65,Capital,MEARS LTD,102433
North East Lincolnshire Council,http://statistics.data.gov.uk/id/local-authority/00FC,Chief Executive,Director Of Economy & Growth,Hps-Disabled Fac. Grants,Cap Grants To O/Side Sources,Cap Grants To O/Side Sources,YJ101,19/06/15,357686,4550,Capital,MEARS LTD,102433
North East Lincolnshire Council,http://statistics.data.gov.uk/id/local-authority/00FC,Chief Executive,Director Of Economy & Growth,Hps-Disabled Fac. Grants,Cap Grants To O/Side Sources,Cap Grants To O/Side Sources,YJ101,04/06/15,354429,2449.99,Capital,PRISM MEDICAL UK,119507
North East Lincolnshire Council,http://statistics.data.gov.uk/id/local-authority/00FC,Chief Executive,Director Of Economy & Growth,Hps-Disabled Fac. Grants,Cap Grants To O/Side Sources,Cap Grants To O/Side Sources,YJ101,08/06/15,355137,1353,Capital,OBAM LIFT SERVICES LTD,112666
North East Lincolnshire Council,http://statistics.data.gov.uk/id/local-authority/00FC,Chief Executive,Director Of Economy & Growth,Hps-Disabled Fac. Grants,Cap Grants To O/Side Sources,Cap Grants To O/Side Sources,YJ101,02/06/15,353773,6305.97,Capital,F R TOWNSEND & CO LTD,104217
North East Lincolnshire Council,http://statistics.data.gov.uk/id/local-authority/00FC,Chief Executive,Director Of Economy & Growth,Hps-Disabled Fac. Grants,Cap Grants To O/Side Sources,Cap Grants To O/Side Sources,YJ101,04/06/15,353736,9247.56,Capital,TOPCON CONSTRUCTION LTD,108462
North East Lincolnshire Council,http://statistics.data.gov.uk/id/local-authority/00FC,Chief Executive,Director Of Economy & Growth,Hps-Disabled Fac. Grants,Cap Grants To O/Side Sources,Cap Grants To O/Side Sources,YJ101,23/06/15,357378,2232,Capital,TOTAL HYGIENE LTD,100849
North East Lincolnshire Council,http://statistics.data.gov.uk/id/local-authority/00FC,Chief Executive,Director Of Economy & Growth,Local Transport Plan Schemes,Cap Land/Build-Build Enh Wrk,Cap Land/Build-Build Enh Wrk,YA102,11/06/15,356255,760.2,Capital,MORELOCK SIGNS LTD,100920
North East Lincolnshire Council,http://statistics.data.gov.uk/id/local-authority/00FC,Chief Executive,Director Of Economy & Growth,Local Transport Plan Schemes,Cap Land/Build-Build Enh Wrk,Cap Land/Build-Build Enh Wrk,YA102,18/06/15,352305,400,Capital,BUCHANAN COMPUTING LTD,119406
North East Lincolnshire Council,http://statistics.data.gov.uk/id/local-authority/00FC,Chief Executive,Director Of Economy & Growth,Local Transport Plan Schemes,Cap Infrastr-Build Enh Wrk,Cap Infrastr-Build Enh Wrk,YC102,02/06/15,354445,110570.41,Capital,VOLKERLASER LTD,126094
North East Lincolnshire Council,http://statistics.data.gov.uk/id/local-authority/00FC,Chief Executive,Director Of Economy & Growth,Local Transport Plan Schemes,Cap Infrastr-Build Enh Wrk,Cap Infrastr-Build Enh Wrk,YC102,25/06/15,358383,36429.59,Capital,VOLKERLASER LTD,126094
North East Lincolnshire Council,http://statistics.data.gov.uk/id/local-authority/00FC,Chief Executive,Director Of Economy & Growth,Local Transport Plan Schemes,Cap Infrastr-Purchase,Cap Infrastr-Purchase,YC101,25/06/15,358376,2500,Capital,CHALLENGE FOR CHANGE LTD,119407
North East Lincolnshire Council,http://statistics.data.gov.uk/id/local-authority/00FC,Chief Executive,Director Of Economy & Growth,Local Transport Plan Schemes,Cap Infrastr-Purchase,Cap Infrastr-Purchase,YC101,16/06/15,357119,2458,Capital,LOCK IT SAFE LTD,101779
North East Lincolnshire Council,http://statistics.data.gov.uk/id/local-authority/00FC,Chief Executive,Director Of Economy & Growth,Local Transport Plan Schemes,Cap Infrastr-Purchase,Cap Infrastr-Purchase,YC101,16/06/15,357119,1150,Capital,LOCK IT SAFE LTD,101779
North East Lincolnshire Council,http://statistics.data.gov.uk/id/local-authority/00FC,Chief Executive,Director Of Economy & Growth,Local Transport Plan Schemes,Cap Infrastr-Purchase,Cap Infrastr-Purchase,YC101,16/06/15,357119,396,Capital,LOCK IT SAFE LTD,101779
North East Lincolnshire Council,http://statistics.data.gov.uk/id/local-authority/00FC,Chief Executive,Director Of Economy & Growth,Local Transport Plan Schemes,Cap Infrastr-Purchase,Cap Infrastr-Purchase,YC101,16/06/15,357119,350,Capital,LOCK IT SAFE LTD,101779
North East Lincolnshire Council,http://statistics.data.gov.uk/id/local-authority/00FC,Chief Executive,Director Of Economy & Growth,Local Transport Plan Schemes,Cap Infrastr-Build Enh Wrk,Cap Infrastr-Build Enh Wrk,YC102,04/06/15,355001,1342.5,Capital,WRIGHT CIVIL ENGINEERING LTD,100624
North East Lincolnshire Council,http://statistics.data.gov.uk/id/local-authority/00FC,Chief Executive,Director Of Economy & Growth,Local Transport Plan Schemes,Cap Infrastr-Purchase,Cap Infrastr-Purchase,YC101,16/06/15,356330,520,Capital,HORIZON SIGNS LTD,103466
North East Lincolnshire Council,http://statistics.data.gov.uk/id/local-authority/00FC,Chief Executive,Director Of Economy & Growth,Local Transport Plan Schemes,Cap Infrastr-Build Enh Wrk,Cap Infrastr-Build Enh Wrk,YC102,08/06/15,355028,5060,Capital,J MCCANN & CO LTD,100841
North East Lincolnshire Council,http://statistics.data.gov.uk/id/local-authority/00FC,Chief Executive,Director Of Economy & Growth,Local Transport Plan Schemes,Cap Land/Build-Build Enh Wrk,Cap Land/Build-Build Enh Wrk,YA102,15/06/15,356631,728,Capital,PELL FRISCHMANN CONSULTANTS,100880
North East Lincolnshire Council,http://statistics.data.gov.uk/id/local-authority/00FC,Chief Executive,Director Of Economy & Growth,Local Transport Plan Schemes,Cap Land/Build-Build Enh Wrk,Cap Land/Build-Build Enh Wrk,YA102,15/06/15,356632,660,Capital,PELL FRISCHMANN CONSULTANTS,100880
North East Lincolnshire Council,http://statistics.data.gov.uk/id/local-authority/00FC,Chief Executive,Director Of Economy & Growth,Freeman Street Regeneration,Cap Invest Prop-Build Enh Wrk,Cap Invest Prop-Build Enh Wrk,YE102,02/06/15,354413,7500,Capital,REDACTED PERSONAL INFORMATION,REDACTED PERSONAL INFORMATION
North East Lincolnshire Council,http://statistics.data.gov.uk/id/local-authority/00FC,Chief Executive,Director Of Economy & Growth,Freeman Street Regeneration,Cap Invest Prop-Build Enh Wrk,Cap Invest Prop-Build Enh Wrk,YE102,23/06/15,357376,6432.25,Capital,AGE UK NORTH EAST LINCOLNSHIRE,113772
North East Lincolnshire Council,http://statistics.data.gov.uk/id/local-authority/00FC,Chief Executive,Director Of Economy & Growth,Freeman Street Regeneration,Cap Invest Prop-Build Enh Wrk,Cap Invest Prop-Build Enh Wrk,YE102,18/06/15,357373,7500,Capital,REDACTED PERSONAL INFORMATION,REDACTED PERSONAL INFORMATION
North East Lincolnshire Council,http://statistics.data.gov.uk/id/local-authority/00FC,Chief Executive,Director Of Economy & Growth,Freeman Street Regeneration,Cap Invest Prop-Build Enh Wrk,Cap Invest Prop-Build Enh Wrk,YE102,02/06/15,353706,7500,Capital,REDACTED PERSONAL INFORMATION,REDACTED PERSONAL INFORMATION
North East Lincolnshire Council,http://statistics.data.gov.uk/id/local-authority/00FC,Chief Executive,Director Of Economy & Growth,Housing Assist Grants And Loan,Cap Grants To O/Side Sources,Cap Grants To O/Side Sources,YJ101,18/06/15,357351,5880,Capital,VIC HANSEN BUILDING & JOINERY LTD,103981
North East Lincolnshire Council,http://statistics.data.gov.uk/id/local-authority/00FC,Chief Executive,Director Of Economy & Growth,Highway Infrastructure Imp,Cap Infrastr-Build Enh Wrk,Cap Infrastr-Build Enh Wrk,YC102,04/06/15,354960,511000,Capital,BALFOUR BEATTY CIVILS LTD,130457
North East Lincolnshire Council,http://statistics.data.gov.uk/id/local-authority/00FC,Chief Executive,Director Of Economy & Growth,Catch 3 Feasibility,Cap Land/Build-Build Enh Wrk,Cap Land/Build-Build Enh Wrk,YA102,24/06/15,358177,1390,Capital,ANGLIAN WATER,100508
North East Lincolnshire Council,http://statistics.data.gov.uk/id/local-authority/00FC,Chief Executive,Director Of Economy & Growth,Derelict Land & Comm Prop,Cap Grants To O/Side Sources,Cap Grants To O/Side Sources,YJ101,23/06/15,357346,24995,Capital,HJL DEVELOPMENTS LTD,116643
North East Lincolnshire Council,http://statistics.data.gov.uk/id/local-authority/00FC,Chief Executive,Director Of Economy & Growth,Local Sustainable Trans Fund,Cap Infrastr-Build Enh Wrk,Cap Infrastr-Build Enh Wrk,YC102,04/06/15,354960,89000,Capital,BALFOUR BEATTY CIVILS LTD,130457
North East Lincolnshire Council,http://statistics.data.gov.uk/id/local-authority/00FC,Chief Executive,Director Of Economy & Growth,A18 - A180 Link Road,Cap Land/Build-Build Enh Wrk,Cap Land/Build-Build Enh Wrk,YA102,16/06/15,356569,565173.93,Capital,I & H BROWN LTD,129380
North East Lincolnshire Council,http://statistics.data.gov.uk/id/local-authority/00FC,Chief Executive,Director Of Economy & Growth,A18 - A180 Link Road,Cap Infrastr-Build Enh Wrk,Cap Infrastr-Build Enh Wrk,YC102,23/06/15,357547,3000,Capital,PARSONS BRINCKERHOFF,122408
North East Lincolnshire Council,http://statistics.data.gov.uk/id/local-authority/00FC,Chief Executive,Director Of Economy & Growth,A18 - A180 Link Road,Cap Infrastr-Build Enh Wrk,Cap Infrastr-Build Enh Wrk,YC102,18/06/15,352814,1403.73,Capital,J MCCANN & CO LTD,100841
North East Lincolnshire Council,http://statistics.data.gov.uk/id/local-authority/00FC,Chief Executive,Director Of Economy & Growth,Street Light Low Energy Scheme,Cap Land/Build-Build Enh Wrk,Cap Land/Build-Build Enh Wrk,YA102,15/06/15,357010,78625.59,Capital,J MCCANN & CO LTD,100841
North East Lincolnshire Council,http://statistics.data.gov.uk/id/local-authority/00FC,Chief Executive,Director Of Economy & Growth,Street Light Low Energy Scheme,Cap Land/Build-Build Enh Wrk,Cap Land/Build-Build Enh Wrk,YA102,15/06/15,357036,38876.78,Capital,J MCCANN & CO LTD,100841
North East Lincolnshire Council,http://statistics.data.gov.uk/id/local-authority/00FC,Chief Executive,Director Of Economy & Growth,Street Light Low Energy Scheme,Cap Land/Build-Build Enh Wrk,Cap Land/Build-Build Enh Wrk,YA102,29/06/15,353547,4308.66,Capital,COFELY WORKPLACE LIMITED,123983
North East Lincolnshire Council,http://statistics.data.gov.uk/id/local-authority/00FC,Chief Executive,Director Of Economy & Growth,Street Light Low Energy Scheme,Cap Land/Build-Build Enh Wrk,Cap Land/Build-Build Enh Wrk,YA102,30/06/15,358835,42407.24,Capital,COFELY WORKPLACE LIMITED,123983
North East Lincolnshire Council,http://statistics.data.gov.uk/id/local-authority/00FC,Chief Executive,Director Of Economy & Growth,Street Light Low Energy Scheme,Cap Land/Build-Build Enh Wrk,Cap Land/Build-Build Enh Wrk,YA102,30/06/15,358836,4763.88,Capital,COFELY WORKPLACE LIMITED,123983
North East Lincolnshire Council,http://statistics.data.gov.uk/id/local-authority/00FC,Chief Executive,Director Of Economy & Growth,Street Light Low Energy Scheme,Cap Land/Build-Build Enh Wrk,Cap Land/Build-Build Enh Wrk,YA102,30/06/15,358837,53016,Capital,COFELY WORKPLACE LIMITED,123983
North East Lincolnshire Council,http://statistics.data.gov.uk/id/local-authority/00FC,Chief Executive,Director Of Economy & Growth,Street Light Low Energy Scheme,Cap Land/Build-Build Enh Wrk,Cap Land/Build-Build Enh Wrk,YA102,30/06/15,358839,67520.8,Capital,COFELY WORKPLACE LIMITED,123983
North East Lincolnshire Council,http://statistics.data.gov.uk/id/local-authority/00FC,Chief Executive,Director Of Economy & Growth,Street Light Low Energy Scheme,Cap Land/Build-Build Enh Wrk,Cap Land/Build-Build Enh Wrk,YA102,30/06/15,358840,830.08,Capital,COFELY WORKPLACE LIMITED,123983
North East Lincolnshire Council,http://statistics.data.gov.uk/id/local-authority/00FC,Chief Executive,Director Of Economy & Growth,Street Light Low Energy Scheme,Cap Land/Build-Build Enh Wrk,Cap Land/Build-Build Enh Wrk,YA102,30/06/15,358841,1060.32,Capital,COFELY WORKPLACE LIMITED,123983
North East Lincolnshire Council,http://statistics.data.gov.uk/id/local-authority/00FC,Chief Executive,Director Of Economy & Growth,Street Light Low Energy Scheme,Cap Land/Build-Build Enh Wrk,Cap Land/Build-Build Enh Wrk,YA102,30/06/15,358880,30748,Capital,COFELY WORKPLACE LIMITED,123983
North East Lincolnshire Council,http://statistics.data.gov.uk/id/local-authority/00FC,Chief Executive,Director Of Economy & Growth,Street Light Low Energy Scheme,Cap Land/Build-Build Enh Wrk,Cap Land/Build-Build Enh Wrk,YA102,30/06/15,358978,19696,Capital,COFELY WORKPLACE LIMITED,123983
North East Lincolnshire Council,http://statistics.data.gov.uk/id/local-authority/00FC,Chief Executive,Director Of Economy & Growth,Cartergate Development,Cap Infrastr-Build Enh Wrk,Cap Infrastr-Build Enh Wrk,YC102,25/06/15,358324,150484.17,Capital,DEREK LEWIS LTD,108385
North East Lincolnshire Council,http://statistics.data.gov.uk/id/local-authority/00FC,Chief Executive,Director Of Economy & Growth,Cartergate Development,Cap Infrastr-Prof Fees,Cap Infrastr-Prof Fees,YC103,15/06/15,349674,32364,Capital,COFELY WORKPLACE LIMITED,123983
North East Lincolnshire Council,http://statistics.data.gov.uk/id/local-authority/00FC,Chief Executive,Director Of Economy & Growth,Cartergate Development,Cap Invest Prop-Build Enh Wrk,Cap Invest Prop-Build Enh Wrk,YE102,08/06/15,354828,4000,Capital,COFELY WORKPLACE LIMITED,123983
North East Lincolnshire Council,http://statistics.data.gov.uk/id/local-authority/00FC,Chief Executive,Director Of Economy & Growth,Cartergate Development,Cap Invest Prop-Prof Fees,Cap Invest Prop-Prof Fees,YE103,30/06/15,358962,1000,Capital,CONTRACT DISPUTE RESOLUTION LTD,130736
North East Lincolnshire Council,http://statistics.data.gov.uk/id/local-authority/00FC,Chief Executive,Director Of Economy & Growth,Cartergate Development,Cap Invest Prop-Prof Fees,Cap Invest Prop-Prof Fees,YE103,19/06/15,357430,800,Capital,MR PIERS HILL,128239
North East Lincolnshire Council,http://statistics.data.gov.uk/id/local-authority/00FC,Chief Executive,Director Of Economy & Growth,Pinchpoint Scheme,Cap Land/Build-Build Enh Wrk,Cap Land/Build-Build Enh Wrk,YA102,25/06/15,358382,165853.81,Capital,VOLKERLASER LTD,126094
North East Lincolnshire Council,http://statistics.data.gov.uk/id/local-authority/00FC,Chief Executive,Director Of Economy & Growth,Pinchpoint Scheme,Cap Land/Build-Prof Fees,Cap Land/Build-Prof Fees,YA103,16/06/15,356561,17200.9,Capital,PBS CONSTRUCTION (NORTH EAST) LTD,127459
North East Lincolnshire Council,http://statistics.data.gov.uk/id/local-authority/00FC,Chief Executive,Director Of Economy & Growth,Pinchpoint Scheme,Cap Infrastr-Build Enh Wrk,Cap Infrastr-Build Enh Wrk,YC102,29/06/15,358219,1360.94,Capital,J MCCANN & CO LTD,100841
North East Lincolnshire Council,http://statistics.data.gov.uk/id/local-authority/00FC,Chief Executive,Director Of Economy & Growth,Pinchpoint Scheme,Cap Infrastr-Build Enh Wrk,Cap Infrastr-Build Enh Wrk,YC102,02/06/15,354411,630,Capital,P H CONSTRUCTION SERVICES LTD,102107
North East Lincolnshire Council,http://statistics.data.gov.uk/id/local-authority/00FC,Chief Executive,Director Of Economy & Growth,Pinchpoint Scheme,Cap Infrastr-Build Enh Wrk,Cap Infrastr-Build Enh Wrk,YC102,19/06/15,357679,4025.25,Capital,DEREK LEWIS LTD,108385
North East Lincolnshire Council,http://statistics.data.gov.uk/id/local-authority/00FC,Chief Executive,Director Of Economy & Growth,Victoria Mills,Cap Land/Build-Build Enh Wrk,Cap Land/Build-Build Enh Wrk,YA102,09/06/15,355849,1312,Capital,SCARBOROUGH NIXON ASSOCIATES,118766
North East Lincolnshire Council,http://statistics.data.gov.uk/id/local-authority/00FC,Chief Executive,Director Of Finance,Accountancy,Direct Employee Expenses,Agency Staff,EA105,08/06/15,354414,1166.55,Revenue,BADENOCH & CLARK,101427
North East Lincolnshire Council,http://statistics.data.gov.uk/id/local-authority/00FC,Chief Executive,Director Of Finance,Accountancy,Direct Employee Expenses,Agency Staff,EA105,08/06/15,354415,1666.5,Revenue,BADENOCH & CLARK,101427
North East Lincolnshire Council,http://statistics.data.gov.uk/id/local-authority/00FC,Chief Executive,Director Of Finance,Accountancy,Direct Employee Expenses,Agency Staff,EA105,15/06/15,356416,1333.2,Revenue,BADENOCH & CLARK,101427
North East Lincolnshire Council,http://statistics.data.gov.uk/id/local-authority/00FC,Chief Executive,Director Of Finance,Accountancy,Direct Employee Expenses,Agency Staff,EA105,15/06/15,356417,1666.5,Revenue,BADENOCH & CLARK,101427
North East Lincolnshire Council,http://statistics.data.gov.uk/id/local-authority/00FC,Chief Executive,Director Of Finance,Accountancy,Direct Employee Expenses,Agency Staff,EA105,23/06/15,357698,1666.5,Revenue,BADENOCH & CLARK,101427
North East Lincolnshire Council,http://statistics.data.gov.uk/id/local-authority/00FC,Chief Executive,Director Of Finance,Accountancy,Miscellaneous Expenses,Other Expenses General,LL119,08/06/15,355528,312,Revenue,ACCOUNTS PAYABLE NEWS LTD,130508
North East Lincolnshire Council,http://statistics.data.gov.uk/id/local-authority/00FC,Chief Executive,Director Of Finance,Chief Exec & Support,Miscellaneous Expenses,Hospitality,LL112,18/06/15,357173,318.97,Revenue,PEROS LTD,119430
North East Lincolnshire Council,http://statistics.data.gov.uk/id/local-authority/00FC,Chief Executive,Director Of Finance,Chief Exec & Support,Car Allowances,Travel - Employees,JF101,15/06/15,356312,996,Revenue,HEMMING GROUP LIMITED,104412
North East Lincolnshire Council,http://statistics.data.gov.uk/id/local-authority/00FC,Chief Executive,Director Of Finance,Chief Exec & Support,Contributions To Provisions,Contributions - Communities,LK101,08/06/15,352861,3200,Revenue,THOMAS FATTORINI LTD,106988
North East Lincolnshire Council,http://statistics.data.gov.uk/id/local-authority/00FC,Chief Executive,Director Of Finance,Chief Exec & Support,Contributions To Provisions,Contributions - Third Sector,LK102,25/06/15,357310,2000,Revenue,LINCOLNSHIRE COUNTY COUNCIL,110521
North East Lincolnshire Council,http://statistics.data.gov.uk/id/local-authority/00FC,Chief Executive,Director Of Finance,Cfs Assets & Pc Programme,Energy Costs,Gas,GB101,30/06/15,359095,-1,Revenue,BRITISH GAS TRADING LTD,101507
North East Lincolnshire Council,http://statistics.data.gov.uk/id/local-authority/00FC,Chief Executive,Director Of Finance,Cfs Assets & Pc Programme,Energy Costs,Gas,GB101,30/06/15,359096,-1,Revenue,BRITISH GAS TRADING LTD,101507
North East Lincolnshire Council,http://statistics.data.gov.uk/id/local-authority/00FC,Chief Executive,Director Of Finance,Cfs Assets & Pc Programme,Energy Costs,Gas,GB101,30/06/15,359097,-1,Revenue,BRITISH GAS TRADING LTD,101507
North East Lincolnshire Council,http://statistics.data.gov.uk/id/local-authority/00FC,Chief Executive,Director Of Finance,Cfs Assets & Pc Programme,Rates,Rates,GD101,01/06/15,353749,2075.24,Revenue,NORTH EAST LINCOLNSHIRE COUNCIL,100894
North East Lincolnshire Council,http://statistics.data.gov.uk/id/local-authority/00FC,Chief Executive,Director Of Finance,Cfs Assets & Pc Programme,Rep Alterations Maint Building,Buildings - Repairs And Maint,GA102,01/06/15,354398,1624.59,Revenue,KES BUILDING MAINTENANCE LIMITED,100786
North East Lincolnshire Council,http://statistics.data.gov.uk/id/local-authority/00FC,Chief Executive,Director Of Finance,Facilities Management,Cleaning And Domestic Supplies,Cleaning - Services,GH102,22/06/15,357904,2004.65,Revenue,OCS LIMITED,101291
North East Lincolnshire Council,http://statistics.data.gov.uk/id/local-authority/00FC,Chief Executive,Director Of Finance,Facilities Management,Cleaning And Domestic Supplies,Refuse Collection,GH104,15/06/15,357040,12042.45,Revenue,BELL WASTE CONTROL,101433
North East Lincolnshire Council,http://statistics.data.gov.uk/id/local-authority/00FC,Chief Executive,Director Of Finance,Facilities Management,Cleaning And Domestic Supplies,Refuse Collection,GH104,22/06/15,357923,-174.33,Revenue,BELL WASTE CONTROL,101433
North East Lincolnshire Council,http://statistics.data.gov.uk/id/local-authority/00FC,Chief Executive,Director Of Finance,Facilities Management,Rep Alterations Maint Building,Buildings - Fixtures And Fitt,GA104,18/06/15,357423,2837,Revenue,VIRGIN MEDIA,107612
North East Lincolnshire Council,http://statistics.data.gov.uk/id/local-authority/00FC,Chief Executive,Director Of Finance,Facilities Management,Energy Costs,Electricity,GB102,29/06/15,358787,499.73,Revenue,NPOWER LIMITED,101414
North East Lincolnshire Council,http://statistics.data.gov.uk/id/local-authority/00FC,Chief Executive,Director Of Finance,Facilities Management,Cleaning And Domestic Supplies,Refuse Collection,GH104,29/06/15,358921,270.75,Revenue,BELL WASTE CONTROL,101433
North East Lincolnshire Council,http://statistics.data.gov.uk/id/local-authority/00FC,Chief Executive,Director Of Finance,Facilities Management,Energy Costs,Electricity,GB102,04/06/15,354384,1638.57,Revenue,ASSOCIATED BRITISH PORTS,100834
North East Lincolnshire Council,http://statistics.data.gov.uk/id/local-authority/00FC,Chief Executive,Director Of Finance,Facilities Management,Energy Costs,Gas,GB101,22/06/15,357927,30225,Revenue,WYKELAND GROUP LTD,101729
North East Lincolnshire Council,http://statistics.data.gov.uk/id/local-authority/00FC,Chief Executive,Director Of Finance,Facilities Management,Rents,Service Charge,GC102,25/06/15,357931,856,Revenue,WYKELAND GROUP LTD,101729
North East Lincolnshire Council,http://statistics.data.gov.uk/id/local-authority/00FC,Chief Executive,Director Of Finance,Facilities Management,Premises Insurance,Premises Insurance - Premiums,GK101,29/06/15,358922,2176.23,Revenue,WYKELAND GROUP LTD,101729
North East Lincolnshire Council,http://statistics.data.gov.uk/id/local-authority/00FC,Chief Executive,Director Of Finance,Facilities Management,Rents,Rent,GC101,22/06/15,357925,30225,Revenue,WYKELAND GROUP LTD,101729
North East Lincolnshire Council,http://statistics.data.gov.uk/id/local-authority/00FC,Chief Executive,Director Of Finance,Facilities Management,Rents,Service Charge,GC102,25/06/15,357932,856,Revenue,WYKELAND GROUP LTD,101729
North East Lincolnshire Council,http://statistics.data.gov.uk/id/local-authority/00FC,Chief Executive,Director Of Finance,Facilities Management,Premises Insurance,Premises Insurance - Premiums,GK101,29/06/15,358923,2176.22,Revenue,WYKELAND GROUP LTD,101729
North East Lincolnshire Council,http://statistics.data.gov.uk/id/local-authority/00FC,Chief Executive,Director Of Finance,Facilities Management,Rates,Rates,GD101,15/06/15,357192,3928.29,Revenue,NORTH EAST LINCOLNSHIRE COUNCIL,100894
North East Lincolnshire Council,http://statistics.data.gov.uk/id/local-authority/00FC,Chief Executive,Director Of Finance,Facilities Management,Rates,Rates,GD101,29/06/15,357988,5176.5,Revenue,NORTH EAST LINCOLNSHIRE COUNCIL,100894
North East Lincolnshire Council,http://statistics.data.gov.uk/id/local-authority/00FC,Chief Executive,Director Of Finance,Facilities Management,Grounds Maintenance Costs,Grounds Maintenance,GJ101,29/06/15,358917,680,Revenue,ALEXANDER HUBBARD,118790
North East Lincolnshire Council,http://statistics.data.gov.uk/id/local-authority/00FC,Chief Executive,Director Of Finance,Facilities Management,Rep Alterations Maint Building,Buildings - Fixtures And Fitt,GA104,18/06/15,357423,3810,Revenue,VIRGIN MEDIA,107612
North East Lincolnshire Council,http://statistics.data.gov.uk/id/local-authority/00FC,Chief Executive,Director Of Finance,Facilities Management,Rents,Service Charge,GC102,22/06/15,357915,933,Revenue,AWS LTD,101343
North East Lincolnshire Council,http://statistics.data.gov.uk/id/local-authority/00FC,Chief Executive,Director Of Finance,Facilities Management,Energy Costs,Electricity,GB102,15/06/15,357007,274.09,Revenue,OLD CLEE PRIMARY ACADEMY,119822
North East Lincolnshire Council,http://statistics.data.gov.uk/id/local-authority/00FC,Chief Executive,Director Of Finance,Facilities Management,Energy Costs,Gas,GB101,09/06/15,355443,710.58,Revenue,OLD CLEE PRIMARY ACADEMY,119822
North East Lincolnshire Council,http://statistics.data.gov.uk/id/local-authority/00FC,Chief Executive,Director Of Finance,Facilities Management,Energy Costs,Gas,GB101,09/06/15,355493,-835.77,Revenue,OLD CLEE PRIMARY ACADEMY,119822
North East Lincolnshire Council,http://statistics.data.gov.uk/id/local-authority/00FC,Chief Executive,Director Of Finance,Facilities Management,Water Services,Water,GE101,15/06/15,357008,306.82,Revenue,OLD CLEE PRIMARY ACADEMY,119822
North East Lincolnshire Council,http://statistics.data.gov.uk/id/local-authority/00FC,Chief Executive,Director Of Finance,Facilities Management,Rep Alterations Maint Building,Buildings - Fixtures And Fitt,GA104,18/06/15,357423,2847,Revenue,VIRGIN MEDIA,107612
North East Lincolnshire Council,http://statistics.data.gov.uk/id/local-authority/00FC,Chief Executive,Director Of Finance,Facilities Management,Rents,Rent,GC101,25/06/15,357938,1250,Revenue,THE GRIMSBY INSTITUTE OF FURTHER,102742
North East Lincolnshire Council,http://statistics.data.gov.uk/id/local-authority/00FC,Chief Executive,Director Of Finance,Facilities Management,Rents,Service Charge,GC102,25/06/15,357938,1100,Revenue,THE GRIMSBY INSTITUTE OF FURTHER,102742
North East Lincolnshire Council,http://statistics.data.gov.uk/id/local-authority/00FC,Chief Executive,Director Of Finance,Commercial Estate,Grounds Maintenance Costs,Grounds Maintenance,GJ101,29/06/15,358918,295,Revenue,ALEXANDER HUBBARD,118790
North East Lincolnshire Council,http://statistics.data.gov.uk/id/local-authority/00FC,Chief Executive,Director Of Finance,Commercial Estate,Energy Costs,Electricity,GB102,11/06/15,356450,330,Revenue,NPOWER LIMITED,101414
North East Lincolnshire Council,http://statistics.data.gov.uk/id/local-authority/00FC,Chief Executive,Director Of Finance,Commercial Estate,Rates,Rates,GD101,09/06/15,355539,272.51,Revenue,NORTH EAST LINCOLNSHIRE COUNCIL,100894
North East Lincolnshire Council,http://statistics.data.gov.uk/id/local-authority/00FC,Chief Executive,Director Of Finance,Commercial Estate,Rates,Rates,GD101,15/06/15,357193,1988.16,Revenue,NORTH EAST LINCOLNSHIRE COUNCIL,100894
North East Lincolnshire Council,http://statistics.data.gov.uk/id/local-authority/00FC,Chief Executive,Director Of Finance,Commercial Estate,Water Services,Water,GE101,11/06/15,356426,1499.62,Revenue,F&C REIT CLIENT A/C RE GRIMSBY SHOPPING CNTR,124239
North East Lincolnshire Council,http://statistics.data.gov.uk/id/local-authority/00FC,Chief Executive,Director Of Finance,Commercial Estate,Energy Costs,Electricity,GB102,25/06/15,357928,6706.98,Revenue,BOURNE LEISURE LTD,109336
North East Lincolnshire Council,http://statistics.data.gov.uk/id/local-authority/00FC,Chief Executive,Director Of Finance,Commercial Estate,Rents,Rent,GC101,15/06/15,357000,2562.5,Revenue,ASSOCIATED BRITISH PORTS,100834
North East Lincolnshire Council,http://statistics.data.gov.uk/id/local-authority/00FC,Chief Executive,Director Of Economy & Growth,Beach Safety,Equip / Furniture / Materials,Equipment - Purchase,LA101,04/06/15,354653,319,Revenue,SRP TOILET HIRE LTD,104341
North East Lincolnshire Council,http://statistics.data.gov.uk/id/local-authority/00FC,Chief Executive,Director Of Economy & Growth,Discovery Centre,Equip / Furniture / Materials,Goods For Resale,LA123,15/06/15,356278,291.33,Revenue,WAVENEY WHOLESALE LTD,125266
North East Lincolnshire Council,http://statistics.data.gov.uk/id/local-authority/00FC,Chief Executive,Director Of Economy & Growth,Discovery Centre,Equip / Furniture / Materials,Goods For Resale,LA123,04/06/15,354462,-7.35,Revenue,THE STRAITS TRADING CO LTD,129426
North East Lincolnshire Council,http://statistics.data.gov.uk/id/local-authority/00FC,Chief Executive,Director Of Economy & Growth,Discovery Centre,Equip / Furniture / Materials,Goods For Resale,LA123,04/06/15,354463,-29.4,Revenue,THE STRAITS TRADING CO LTD,129426
North East Lincolnshire Council,http://statistics.data.gov.uk/id/local-authority/00FC,Chief Executive,Director Of Economy & Growth,Discovery Centre,Equip / Furniture / Materials,Equipment - Purchase,LA101,08/06/15,355050,297,Revenue,SYLVESTER-KEAL LTD,100593
North East Lincolnshire Council,http://statistics.data.gov.uk/id/local-authority/00FC,Chief Executive,Director Of Economy & Growth,Discovery Centre,Equip / Furniture / Materials,Equipment - Purchase,LA101,23/06/15,357968,275.04,Revenue,SYLVESTER-KEAL LTD,100593
North East Lincolnshire Council,http://statistics.data.gov.uk/id/local-authority/00FC,Chief Executive,Director Of Economy & Growth,Discovery Centre,Equip / Furniture / Materials,Equipment - Purchase,LA101,11/06/15,356261,567.88,Revenue,SYLVESTER-KEAL LTD,100593
North East Lincolnshire Council,http://statistics.data.gov.uk/id/local-authority/00FC,Chief Executive,Director Of Economy & Growth,Discovery Centre,Equip / Furniture / Materials,Goods For Resale,LA123,02/06/15,353323,534,Revenue,R W STOKES & SONS LTD,123706
North East Lincolnshire Council,http://statistics.data.gov.uk/id/local-authority/00FC,Chief Executive,Director Of Economy & Growth,Discovery Centre,Equip / Furniture / Materials,Goods For Resale,LA123,23/06/15,358069,463.42,Revenue,HOLDSWORTH LTD,121021
North East Lincolnshire Council,http://statistics.data.gov.uk/id/local-authority/00FC,Chief Executive,Director Of Economy & Growth,Discovery Centre,Equip / Furniture / Materials,Goods For Resale,LA123,23/06/15,358006,399.85,Revenue,HOLDSWORTH LTD,121021
North East Lincolnshire Council,http://statistics.data.gov.uk/id/local-authority/00FC,Chief Executive,Director Of Economy & Growth,Discovery Centre,Equip / Furniture / Materials,Goods For Resale,LA123,11/06/15,356048,342.96,Revenue,HOLDSWORTH LTD,121021
North East Lincolnshire Council,http://statistics.data.gov.uk/id/local-authority/00FC,Chief Executive,Director Of Economy & Growth,Discovery Centre,Equip / Furniture / Materials,Goods For Resale,LA123,23/06/15,358018,382.57,Revenue,HULLEYS FROZEN,102551
North East Lincolnshire Council,http://statistics.data.gov.uk/id/local-authority/00FC,Chief Executive,Director Of Economy & Growth,Discovery Centre,Equip / Furniture / Materials,Goods For Resale,LA123,23/06/15,358006,270.08,Revenue,HOLDSWORTH LTD,121021
North East Lincolnshire Council,http://statistics.data.gov.uk/id/local-authority/00FC,Chief Executive,Director Of Economy & Growth,Events,Rep Alterations Maint Building,Buildings - Repairs And Maint,GA102,02/06/15,354422,344.5,Revenue,MRS SANDRA HOOD,130031
North East Lincolnshire Council,http://statistics.data.gov.uk/id/local-authority/00FC,Chief Executive,Director Of Economy & Growth,Events,Private Contractors,Third Party Prov - Private,PH101,08/06/15,355360,5000,Revenue,YOUNGS SEAFOOD LTD,111391
North East Lincolnshire Council,http://statistics.data.gov.uk/id/local-authority/00FC,Chief Executive,Director Of Economy & Growth,Events,Private Contractors,Third Party Prov - Private,PH101,08/06/15,355590,5000,Revenue,CLEETHORPES COAST LIGHT RAILWAY,108415
North East Lincolnshire Council,http://statistics.data.gov.uk/id/local-authority/00FC,Chief Executive,Director Of Economy & Growth,Events,Private Contractors,Third Party Prov - Private,PH101,25/06/15,346507,288,Revenue,RIVERSIDE PRINT AND DISPLAY LIMITED,128206
North East Lincolnshire Council,http://statistics.data.gov.uk/id/local-authority/00FC,Chief Executive,Director Of Economy & Growth,Events,Private Contractors,Third Party Prov - Private,PH101,25/06/15,346507,890,Revenue,RIVERSIDE PRINT AND DISPLAY LIMITED,128206
North East Lincolnshire Council,http://statistics.data.gov.uk/id/local-authority/00FC,Chief Executive,Director Of Economy & Growth,Events,Private Contractors,Third Party Prov - Private,PH101,04/06/15,354652,5000,Revenue,LINCS INSPIRE LIMITED,129063
North East Lincolnshire Council,http://statistics.data.gov.uk/id/local-authority/00FC,Chief Executive,Director Of Economy & Growth,Marketing And Promotion,Equip / Furniture / Materials,Promotions,LA124,30/06/15,358881,298.75,Revenue,DELI-LICIOUS,101903
North East Lincolnshire Council,http://statistics.data.gov.uk/id/local-authority/00FC,Chief Executive,Director Of Economy & Growth,Marketing And Promotion,Equip / Furniture / Materials,Promotions,LA124,30/06/15,358882,418.5,Revenue,DELI-LICIOUS,101903
North East Lincolnshire Council,http://statistics.data.gov.uk/id/local-authority/00FC,Chief Executive,Director Of Economy & Growth,Museums & N F Heritage Centre,Equip / Furniture / Materials,Equipment - Purchase,LA101,29/06/15,358640,324.4,Revenue,PRIMA YORKSHIRE LTD,127646
North East Lincolnshire Council,http://statistics.data.gov.uk/id/local-authority/00FC,Chief Executive,Director Of Economy & Growth,Museums & N F Heritage Centre,Equip / Furniture / Materials,Equipment - Purchase,LA101,29/06/15,358638,324.4,Revenue,PRIMA YORKSHIRE LTD,127646
North East Lincolnshire Council,http://statistics.data.gov.uk/id/local-authority/00FC,Chief Executive,Director Of Economy & Growth,Museums & N F Heritage Centre,Equip / Furniture / Materials,Goods For Resale,LA123,11/06/15,354790,329.6,Revenue,THE CAROLE GROUP LTD,120570
North East Lincolnshire Council,http://statistics.data.gov.uk/id/local-authority/00FC,Chief Executive,Director Of Economy & Growth,Tourist Information Centre,Private Contractors,Third Party Prov - Private,PH101,30/06/15,359187,322,Revenue,BIRDHOUSE PROJECTS,110129
North East Lincolnshire Council,http://statistics.data.gov.uk/id/local-authority/00FC,Chief Executive,Director Of Economy & Growth,Tourist Information Centre,Private Contractors,Third Party Prov - Private,PH101,30/06/15,359182,362,Revenue,GRIMSBY AUDITORIUM,128160
North East Lincolnshire Council,http://statistics.data.gov.uk/id/local-authority/00FC,Chief Executive,Director Of Economy & Growth,Tourist Information Centre,Private Contractors,Third Party Prov - Private,PH101,12/06/15,357055,731.5,Revenue,THE CAXTON PLAYERS,129590
North East Lincolnshire Council,http://statistics.data.gov.uk/id/local-authority/00FC,Chief Executive,Director Of Economy & Growth,Tourist Information Centre,Private Contractors,Third Party Prov - Private,PH101,12/06/15,357054,542,Revenue,COOPERS TOURS,101503
North East Lincolnshire Council,http://statistics.data.gov.uk/id/local-authority/00FC,Chief Executive,Director Of Economy & Growth,Tourist Information Centre,Private Contractors,Third Party Prov - Private,PH101,12/06/15,357049,343,Revenue,GRIMSBY AUDITORIUM,128160
North East Lincolnshire Council,http://statistics.data.gov.uk/id/local-authority/00FC,Chief Executive,Director Of Economy & Growth,Tourist Information Centre,Private Contractors,Third Party Prov - Private,PH101,12/06/15,357050,361.5,Revenue,GRIMSBY AUDITORIUM,128160
North East Lincolnshire Council,http://statistics.data.gov.uk/id/local-authority/00FC,Chief Executive,Director Of Economy & Growth,Tourist Information Centre,Private Contractors,Third Party Prov - Private,PH101,25/06/15,358170,4914,Revenue,HUMBER BRIDGE BOARD,101054
North East Lincolnshire Council,http://statistics.data.gov.uk/id/local-authority/00FC,Chief Executive,Director Of Economy & Growth,Tourist Information Centre,Private Contractors,Third Party Prov - Private,PH101,25/06/15,358171,5751,Revenue,HUMBER BRIDGE BOARD,101054
North East Lincolnshire Council,http://statistics.data.gov.uk/id/local-authority/00FC,Chief Executive,Director Of Economy & Growth,Tourist Information Centre,Private Contractors,Third Party Prov - Private,PH101,12/06/15,357067,2202.3,Revenue,NATIONAL EXPRESS LTD,100835
North East Lincolnshire Council,http://statistics.data.gov.uk/id/local-authority/00FC,Chief Executive,Director Of Economy & Growth,Tourist Information Centre,Private Contractors,Third Party Prov - Private,PH101,12/06/15,357066,1418.45,Revenue,NATIONAL EXPRESS LTD,100835
North East Lincolnshire Council,http://statistics.data.gov.uk/id/local-authority/00FC,Chief Executive,Director Of Economy & Growth,Community Investment Team,Communications And Computing,Computer S/Ware - Maintenance,LF102,04/06/15,353587,676.65,Revenue,WELCOM DIGITAL LIMITED,104463
North East Lincolnshire Council,http://statistics.data.gov.uk/id/local-authority/00FC,Chief Executive,Director Of Economy & Growth,Community Investment Team,Private Contractors,Third Party Prov - Private,PH101,19/06/15,357546,536.25,Revenue,PRIORY GUEST HOUSE,102054
North East Lincolnshire Council,http://statistics.data.gov.uk/id/local-authority/00FC,Chief Executive,Director Of Economy & Growth,Community Investment Team,Private Contractors,Third Party Prov - Private,PH101,08/06/15,355419,1014,Revenue,CRYOTECH (GRIMSBY) LTD,114094
North East Lincolnshire Council,http://statistics.data.gov.uk/id/local-authority/00FC,Chief Executive,Director Of Economy & Growth,Community Investment Team,Private Contractors,Third Party Prov - Private,PH101,30/06/15,358356,780,Revenue,ENVIRO GY LTD,125195
North East Lincolnshire Council,http://statistics.data.gov.uk/id/local-authority/00FC,Chief Executive,Director Of Economy & Growth,Community Investment Team,Private Contractors,Third Party Prov - Private,PH101,15/06/15,356332,339.63,Revenue,GRAND DESIGN SERVICES,123032
North East Lincolnshire Council,http://statistics.data.gov.uk/id/local-authority/00FC,Chief Executive,Director Of Economy & Growth,Community Investment Team,Private Contractors,Third Party Prov - Private,PH101,04/06/15,355020,728,Revenue,REDACTED PERSONAL INFORMATION,REDACTED PERSONAL INFORMATION
North East Lincolnshire Council,http://statistics.data.gov.uk/id/local-authority/00FC,Chief Executive,Director Of Economy & Growth,Community Investment Team,Private Contractors,Third Party Prov - Private,PH101,04/06/15,355019,572,Revenue,REDACTED PERSONAL INFORMATION,REDACTED PERSONAL INFORMATION
North East Lincolnshire Council,http://statistics.data.gov.uk/id/local-authority/00FC,Chief Executive,Director Of Economy & Growth,Community Investment Team,Private Contractors,Third Party Prov - Private,PH101,18/06/15,357349,780,Revenue,FORESIGHT NEL LTD,102869
North East Lincolnshire Council,http://statistics.data.gov.uk/id/local-authority/00FC,Chief Executive,Director Of Economy & Growth,Community Investment Team,Private Contractors,Third Party Prov - Private,PH101,30/06/15,358403,292.5,Revenue,FORESIGHT NEL LTD,102869
North East Lincolnshire Council,http://statistics.data.gov.uk/id/local-authority/00FC,Chief Executive,Director Of Economy & Growth,Community Investment Team,Private Contractors,Third Party Prov - Private,PH101,23/06/15,357657,2344.88,Revenue,FORESIGHT NEL LTD,102869
North East Lincolnshire Council,http://statistics.data.gov.uk/id/local-authority/00FC,Chief Executive,Director Of Economy & Growth,Community Investment Team,Private Contractors,Third Party Prov - Private,PH101,25/06/15,358349,1082.25,Revenue,FORESIGHT NEL LTD,102869
North East Lincolnshire Council,http://statistics.data.gov.uk/id/local-authority/00FC,Chief Executive,Director Of Economy & Growth,Community Investment Team,Private Contractors,Third Party Prov - Private,PH101,23/06/15,357350,2052.38,Revenue,FORESIGHT NEL LTD,102869
North East Lincolnshire Council,http://statistics.data.gov.uk/id/local-authority/00FC,Chief Executive,Director Of Economy & Growth,Community Investment Team,Private Contractors,Third Party Prov - Private,PH101,30/06/15,358353,570.38,Revenue,FORESIGHT NEL LTD,102869
North East Lincolnshire Council,http://statistics.data.gov.uk/id/local-authority/00FC,Chief Executive,Director Of Economy & Growth,Community Investment Team,Private Contractors,Third Party Prov - Private,PH101,25/06/15,358194,489.12,Revenue,THE NOTTINGHAM HOUSE HOTEL,125400
North East Lincolnshire Council,http://statistics.data.gov.uk/id/local-authority/00FC,Chief Executive,Director Of Economy & Growth,Community Investment Team,Private Contractors,Third Party Prov - Private,PH101,11/06/15,355433,390,Revenue,GREEN FUTURES,102397
North East Lincolnshire Council,http://statistics.data.gov.uk/id/local-authority/00FC,Chief Executive,Director Of Economy & Growth,Community Investment Team,Private Contractors,Third Party Prov - Private,PH101,08/06/15,355387,468,Revenue,GREEN FUTURES,102397
North East Lincolnshire Council,http://statistics.data.gov.uk/id/local-authority/00FC,Chief Executive,Director Of Economy & Growth,Community Investment Team,Private Contractors,Third Party Prov - Private,PH101,16/06/15,356586,513,Revenue,ELLIS DIRECT LIMITED,101138
North East Lincolnshire Council,http://statistics.data.gov.uk/id/local-authority/00FC,Chief Executive,Director Of Economy & Growth,Community Investment Team,Private Contractors,Third Party Prov - Private,PH101,02/06/15,354409,364,Revenue,VONNIES CAFE,102376
North East Lincolnshire Council,http://statistics.data.gov.uk/id/local-authority/00FC,Chief Executive,Director Of Economy & Growth,Community Investment Team,Private Contractors,Third Party Prov - Private,PH101,16/06/15,356556,1440,Revenue,CKP BUILDERS LTD,126815
North East Lincolnshire Council,http://statistics.data.gov.uk/id/local-authority/00FC,Chief Executive,Director Of Economy & Growth,Community Investment Team,Private Contractors,Third Party Prov - Private,PH101,15/06/15,356580,940,Revenue,STEVE AUSTWICK GARDEN SERVICES,109384
North East Lincolnshire Council,http://statistics.data.gov.uk/id/local-authority/00FC,Chief Executive,Director Of Economy & Growth,Community Investment Team,Private Contractors,Third Party Prov - Private,PH101,08/06/15,355051,910,Revenue,KEYZO IT SOLUTIONS,107161
North East Lincolnshire Council,http://statistics.data.gov.uk/id/local-authority/00FC,Chief Executive,Director Of Economy & Growth,Community Investment Team,Private Contractors,Third Party Prov - Private,PH101,23/06/15,357692,672.75,Revenue,WINDOW FILM APPLICATIONS,127966
North East Lincolnshire Council,http://statistics.data.gov.uk/id/local-authority/00FC,Chief Executive,Director Of Economy & Growth,Community Investment Team,Private Contractors,Third Party Prov - Private,PH101,08/06/15,355420,743.75,Revenue,SMILE 4 YOU LTD,108683
North East Lincolnshire Council,http://statistics.data.gov.uk/id/local-authority/00FC,Chief Executive,Director Of Economy & Growth,Community Investment Team,Private Contractors,Third Party Prov - Private,PH101,08/06/15,354442,2303.13,Revenue,ABATIS FIRE & SECURITY LTD,101961
North East Lincolnshire Council,http://statistics.data.gov.uk/id/local-authority/00FC,Chief Executive,Director Of Economy & Growth,Community Investment Team,Private Contractors,Third Party Prov - Private,PH101,11/06/15,355907,640,Revenue,GRAYS HEATING LTD,128179
North East Lincolnshire Council,http://statistics.data.gov.uk/id/local-authority/00FC,Chief Executive,Director Of Economy & Growth,Community Investment Team,Private Contractors,Third Party Prov - Private,PH101,04/06/15,354783,815.38,Revenue,BEST FUTURES COMMUNITY INTEREST COMPANY,128600
North East Lincolnshire Council,http://statistics.data.gov.uk/id/local-authority/00FC,Chief Executive,Director Of Economy & Growth,Community Investment Team,Private Contractors,Third Party Prov - Private,PH101,23/06/15,357683,1500,Revenue,OUTDOOR LEARNING SCHOOLS,124467
North East Lincolnshire Council,http://statistics.data.gov.uk/id/local-authority/00FC,Chief Executive,Director Of Economy & Growth,Community Investment Team,Private Contractors,Third Party Prov - Private,PH101,08/06/15,354618,1200,Revenue,LCS GROUP,128526
North East Lincolnshire Council,http://statistics.data.gov.uk/id/local-authority/00FC,Chief Executive,Director Of Economy & Growth,Community Investment Team,Private Contractors,Third Party Prov - Private,PH101,30/06/15,358833,300,Revenue,LCS GROUP,128526
North East Lincolnshire Council,http://statistics.data.gov.uk/id/local-authority/00FC,Chief Executive,Director Of Economy & Growth,Community Investment Team,Private Contractors,Third Party Prov - Private,PH101,08/06/15,354619,1200,Revenue,LCS GROUP,128526
North East Lincolnshire Council,http://statistics.data.gov.uk/id/local-authority/00FC,Chief Executive,Director Of Economy & Growth,Community Investment Team,Private Contractors,Third Party Prov - Private,PH101,30/06/15,358827,300,Revenue,LCS GROUP,128526
North East Lincolnshire Council,http://statistics.data.gov.uk/id/local-authority/00FC,Chief Executive,Director Of Economy & Growth,Community Investment Team,Private Contractors,Third Party Prov - Private,PH101,11/06/15,355953,1500,Revenue,DATAPLAN PAYROLL LIMITED,112647
North East Lincolnshire Council,http://statistics.data.gov.uk/id/local-authority/00FC,Chief Executive,Director Of Economy & Growth,Community Investment Team,Private Contractors,Third Party Prov - Private,PH101,11/06/15,355955,1500,Revenue,DATAPLAN PAYROLL LIMITED,112647
North East Lincolnshire Council,http://statistics.data.gov.uk/id/local-authority/00FC,Chief Executive,Director Of Economy & Growth,Community Investment Team,Private Contractors,Third Party Prov - Private,PH101,16/06/15,356583,2000,Revenue,CR PARROTT CONSULTANTS LIMITED,128899
North East Lincolnshire Council,http://statistics.data.gov.uk/id/local-authority/00FC,Chief Executive,Director Of Economy & Growth,Community Investment Team,Private Contractors,Third Party Prov - Private,PH101,25/06/15,358187,2000,Revenue,INVENTO SOFTWARE LTD,124554
North East Lincolnshire Council,http://statistics.data.gov.uk/id/local-authority/00FC,Chief Executive,Director Of Economy & Growth,Community Investment Team,Private Contractors,Third Party Prov - Private,PH101,11/06/15,355918,1500,Revenue,GRAVITY RED LTD,122793
North East Lincolnshire Council,http://statistics.data.gov.uk/id/local-authority/00FC,Chief Executive,Director Of Economy & Growth,Community Investment Team,Private Contractors,Third Party Prov - Private,PH101,11/06/15,355950,1500,Revenue,DATAPLAN PAYROLL LIMITED,112647
North East Lincolnshire Council,http://statistics.data.gov.uk/id/local-authority/00FC,Chief Executive,Director Of Economy & Growth,Community Investment Team,Private Contractors,Third Party Prov - Private,PH101,08/06/15,355362,1200,Revenue,LINCS ELECTRICAL WHOLESALERS LTD,103116
North East Lincolnshire Council,http://statistics.data.gov.uk/id/local-authority/00FC,Chief Executive,Director Of Economy & Growth,Community Investment Team,Private Contractors,Third Party Prov - Private,PH101,11/06/15,355951,1500,Revenue,DATAPLAN PAYROLL LIMITED,112647
North East Lincolnshire Council,http://statistics.data.gov.uk/id/local-authority/00FC,Chief Executive,Director Of Economy & Growth,Community Investment Team,Private Contractors,Third Party Prov - Private,PH101,08/06/15,354734,1500,Revenue,GRAYS HEATING LTD,128179
North East Lincolnshire Council,http://statistics.data.gov.uk/id/local-authority/00FC,Chief Executive,Director Of Economy & Growth,Community Investment Team,Private Contractors,Third Party Prov - Private,PH101,11/06/15,355923,1500,Revenue,GRAVITY RED LTD,122793
North East Lincolnshire Council,http://statistics.data.gov.uk/id/local-authority/00FC,Chief Executive,Director Of Economy & Growth,Community Investment Team,Private Contractors,Third Party Prov - Private,PH101,11/06/15,355921,1500,Revenue,GRAVITY RED LTD,122793
North East Lincolnshire Council,http://statistics.data.gov.uk/id/local-authority/00FC,Chief Executive,Director Of Economy & Growth,Community Investment Team,Other Agencies,Grants Pd Over To Third Party,PJ138,08/06/15,355532,10576.81,Revenue,RED SECURITY & HARDWARE,121705
North East Lincolnshire Council,http://statistics.data.gov.uk/id/local-authority/00FC,Chief Executive,Director Of Economy & Growth,Community Investment Team,Other Agencies,Grants Pd Over To Third Party,PJ138,15/06/15,356289,10000,Revenue,BLACKROW ENGINEERING  LTD,111748
North East Lincolnshire Council,http://statistics.data.gov.uk/id/local-authority/00FC,Chief Executive,Director Of Economy & Growth,Community Investment Team,Other Agencies,Grants Pd Over To Third Party,PJ138,25/06/15,358387,190000,Revenue,GRIMSBY FISH DOCK ENTERPRISES LTD,110874
North East Lincolnshire Council,http://statistics.data.gov.uk/id/local-authority/00FC,Chief Executive,Director Of Economy & Growth,Community Investment Team,Other Agencies,Grants Pd Over To Third Party,PJ138,25/06/15,358385,323300,Revenue,WILKIN & CHAPMAN LLP CLIENT ACCOUNT,130718
North East Lincolnshire Council,http://statistics.data.gov.uk/id/local-authority/00FC,Chief Executive,Director Of Economy & Growth,Community Investment Team,Other Agencies,Grants Pd Over To Third Party,PJ138,15/06/15,355890,3532,Revenue,KILNWICK PERCY GOLF CLUB LLP,128289
North East Lincolnshire Council,http://statistics.data.gov.uk/id/local-authority/00FC,Chief Executive,Director Of Economy & Growth,Community Investment Team,Other Agencies,Grants Pd Over To Third Party,PJ138,04/06/15,354819,10228.19,Revenue,ATOM BREWING CO,122059
North East Lincolnshire Council,http://statistics.data.gov.uk/id/local-authority/00FC,Chief Executive,Director Of Economy & Growth,Community Investment Team,Other Agencies,Grants Pd Over To Third Party,PJ138,08/06/15,350686,6094.5,Revenue,RAINBOW PROFESSIONAL LIMITED,121235
North East Lincolnshire Council,http://statistics.data.gov.uk/id/local-authority/00FC,Chief Executive,Director Of Economy & Growth,Community Investment Team,Other Agencies,Grants Pd Over To Third Party,PJ138,04/06/15,355014,14175.09,Revenue,HUMBERSIDE OFFSHORE TRAINING ASSOCIATION LTD,105794
North East Lincolnshire Council,http://statistics.data.gov.uk/id/local-authority/00FC,Chief Executive,Director Of Economy & Growth,Community Investment Team,Other Agencies,Grants Pd Over To Third Party,PJ138,04/06/15,355017,35000,Revenue,ROACH BROS (CURERS) LIMITED,122605
North East Lincolnshire Council,http://statistics.data.gov.uk/id/local-authority/00FC,Chief Executive,Director Of Economy & Growth,Community Investment Team,Other Agencies,Grants Pd Over To Third Party,PJ138,15/06/15,355087,2016,Revenue,REFLEX DATA SYSTEMS LTD,125076
North East Lincolnshire Council,http://statistics.data.gov.uk/id/local-authority/00FC,Chief Executive,Director Of Economy & Growth,Community Investment Team,Other Agencies,Grants Pd Over To Third Party,PJ138,15/06/15,354813,517.5,Revenue,REFLEX DATA SYSTEMS LTD,125076
North East Lincolnshire Council,http://statistics.data.gov.uk/id/local-authority/00FC,Chief Executive,Director Of Economy & Growth,Community Investment Team,Other Agencies,Grants Pd Over To Third Party,PJ138,08/06/15,354815,550.67,Revenue,GLOBAL VIEW SYSTEMS LTD,123985
North East Lincolnshire Council,http://statistics.data.gov.uk/id/local-authority/00FC,Chief Executive,Director Of Economy & Growth,Community Investment Team,Other Agencies,Grants Pd Over To Third Party,PJ138,16/06/15,357185,136000,Revenue,THE KERFOOT GROUP LTD,125262
North East Lincolnshire Council,http://statistics.data.gov.uk/id/local-authority/00FC,Chief Executive,Director Of Economy & Growth,Community Investment Team,Other Agencies,Grants Pd Over To Third Party,PJ138,04/06/15,353571,53530,Revenue,TURNER & PRICE LTD,100893
North East Lincolnshire Council,http://statistics.data.gov.uk/id/local-authority/00FC,Chief Executive,Director Of Economy & Growth,Community Investment Team,Other Agencies,Grants Pd Over To Third Party,PJ138,08/06/15,354621,34861.28,Revenue,TURNER & PRICE LTD,100893
North East Lincolnshire Council,http://statistics.data.gov.uk/id/local-authority/00FC,Chief Executive,Director Of Economy & Growth,Community Investment Team,Other Agencies,Grants Pd Over To Third Party,PJ138,11/06/15,355537,390.08,Revenue,M J PET FOODS & PROTEINS LIMITED,129176
North East Lincolnshire Council,http://statistics.data.gov.uk/id/local-authority/00FC,Chief Executive,Director Of Economy & Growth,Community Investment Team,Other Agencies,Grants Pd Over To Third Party,PJ138,08/06/15,354611,810,Revenue,GRP BUILDING SOLUTIONS LTD,127276
North East Lincolnshire Council,http://statistics.data.gov.uk/id/local-authority/00FC,Chief Executive,Director Of Economy & Growth,Community Investment Team,Other Agencies,Grants Pd Over To Third Party,PJ138,08/06/15,354443,1106.1,Revenue,GRP BUILDING SOLUTIONS LTD,127276
North East Lincolnshire Council,http://statistics.data.gov.uk/id/local-authority/00FC,Chief Executive,Director Of Economy & Growth,Community Investment Team,Other Agencies,Grants Pd Over To Third Party,PJ138,04/06/15,354689,218497.7,Revenue,HSH COLDSTORES LTD,127072
North East Lincolnshire Council,http://statistics.data.gov.uk/id/local-authority/00FC,Chief Executive,Director Of Economy & Growth,Community Investment Team,Other Agencies,Grants Pd Over To Third Party,PJ138,08/06/15,354685,430445.5,Revenue,HSH COLDSTORES LTD,127072
North East Lincolnshire Council,http://statistics.data.gov.uk/id/local-authority/00FC,Chief Executive,Director Of Economy & Growth,Community Investment Team,Other Agencies,Grants Pd Over To Third Party,PJ138,16/06/15,356582,36297.6,Revenue,NORTH HUMBERSIDE MOTOR TRADES G. T. A,127087
North East Lincolnshire Council,http://statistics.data.gov.uk/id/local-authority/00FC,Chief Executive,Director Of Economy & Growth,Community Investment Team,Other Agencies,Grants Pd Over To Third Party,PJ138,16/06/15,357184,2665.01,Revenue,BROCKLESBY LTD,127251
North East Lincolnshire Council,http://statistics.data.gov.uk/id/local-authority/00FC,Chief Executive,Director Of Economy & Growth,Community Investment Team,Other Agencies,Grants Pd Over To Third Party,PJ138,16/06/15,357186,3539.4,Revenue,BROCKLESBY LTD,127251
North East Lincolnshire Council,http://statistics.data.gov.uk/id/local-authority/00FC,Chief Executive,Director Of Economy & Growth,Community Investment Team,Other Agencies,Grants Pd Over To Third Party,PJ138,08/06/15,355089,7377.09,Revenue,BRITTONS REPAIR STUDIO LIMITED,127840
North East Lincolnshire Council,http://statistics.data.gov.uk/id/local-authority/00FC,Chief Executive,Director Of Economy & Growth,Community Investment Team,Other Agencies,Grants Pd Over To Third Party,PJ138,11/06/15,355889,4021.92,Revenue,ELITE CRETE SYSTEMS LTD,127416
North East Lincolnshire Council,http://statistics.data.gov.uk/id/local-authority/00FC,Chief Executive,Director Of Economy & Growth,Community Investment Team,Other Agencies,Grants Pd Over To Third Party,PJ138,19/06/15,357449,929,Revenue,ADEPTA ENGINEERING LTD,122588
North East Lincolnshire Council,http://statistics.data.gov.uk/id/local-authority/00FC,Chief Executive,Director Of Economy & Growth,Community Investment Team,Other Agencies,Grants Pd Over To Third Party,PJ138,25/06/15,358346,7092,Revenue,SCRATCH MEALS LTD,128178
North East Lincolnshire Council,http://statistics.data.gov.uk/id/local-authority/00FC,Chief Executive,Director Of Economy & Growth,Community Investment Team,Other Agencies,Grants Pd Over To Third Party,PJ138,23/06/15,357658,1716.81,Revenue,ROBERT DOBBS T/A VAN PLY SERVICES,112122
North East Lincolnshire Council,http://statistics.data.gov.uk/id/local-authority/00FC,Chief Executive,Director Of Economy & Growth,Community Investment Team,Other Agencies,Grants Pd Over To Third Party,PJ138,08/06/15,355411,6343.81,Revenue,NOMORE IDEAS LTD,129078
North East Lincolnshire Council,http://statistics.data.gov.uk/id/local-authority/00FC,Chief Executive,Director Of Economy & Growth,Community Investment Team,Other Agencies,Grants Pd Over To Third Party,PJ138,19/06/15,357570,3891.87,Revenue,ABBEYDALE FOOD GROUP LTD,129392
North East Lincolnshire Council,http://statistics.data.gov.uk/id/local-authority/00FC,Chief Executive,Director Of Economy & Growth,Community Investment Team,Other Agencies,Grants Pd Over To Third Party,PJ138,15/06/15,355085,1202.4,Revenue,JACK TIGHE SCUNTHORPE LIMITED,108631
North East Lincolnshire Council,http://statistics.data.gov.uk/id/local-authority/00FC,Chief Executive,Director Of Economy & Growth,Community Investment Team,Other Agencies,Grants Pd Over To Third Party,PJ138,18/06/15,357171,2749,Revenue,STIRLING MEDICAL & SCIENTIFIC LTD,128177
North East Lincolnshire Council,http://statistics.data.gov.uk/id/local-authority/00FC,Chief Executive,Director Of Economy & Growth,Community Investment Team,Other Agencies,Grants Pd Over To Third Party,PJ138,04/06/15,354461,5467.98,Revenue,MPH FULFILMENT LTD,128058
North East Lincolnshire Council,http://statistics.data.gov.uk/id/local-authority/00FC,Chief Executive,Director Of Economy & Growth,Community Investment Team,Other Agencies,Grants Pd Over To Third Party,PJ138,15/06/15,356282,7401.95,Revenue,HEALAN INGREDIENTS LIMITED,128940
North East Lincolnshire Council,http://statistics.data.gov.uk/id/local-authority/00FC,Chief Executive,Director Of Economy & Growth,Community Investment Team,Other Agencies,Grants Pd Over To Third Party,PJ138,08/06/15,354612,19160,Revenue,YOUTH ENGINEERING SCUNTHORPE LTD,127465
North East Lincolnshire Council,http://statistics.data.gov.uk/id/local-authority/00FC,Chief Executive,Director Of Economy & Growth,Community Investment Team,Private Contractors,Third Party Prov - Private,PH101,25/06/15,358460,13859.62,Revenue,PRODUCTION 78 LTD,126975
North East Lincolnshire Council,http://statistics.data.gov.uk/id/local-authority/00FC,Chief Executive,Director Of Economy & Growth,Community Investment Team,Private Contractors,Third Party Prov - Private,PH101,16/06/15,356577,1000,Revenue,AMVALE LIMITED,101030
North East Lincolnshire Council,http://statistics.data.gov.uk/id/local-authority/00FC,Chief Executive,Director Of Economy & Growth,Community Investment Team,Private Contractors,Third Party Prov - Private,PH101,08/06/15,355072,950,Revenue,HAVELOCK ACADEMY,101968
North East Lincolnshire Council,http://statistics.data.gov.uk/id/local-authority/00FC,Chief Executive,Director Of Economy & Growth,Community Investment Team,Private Contractors,Third Party Prov - Private,PH101,08/06/15,355088,1500,Revenue,CARE PLUS GROUP,106467
North East Lincolnshire Council,http://statistics.data.gov.uk/id/local-authority/00FC,Chief Executive,Director Of Economy & Growth,Community Investment Team,Private Contractors,Third Party Prov - Private,PH101,23/06/15,358072,1500,Revenue,INTERSERVE CONSTRUCTION,128140
North East Lincolnshire Council,http://statistics.data.gov.uk/id/local-authority/00FC,Chief Executive,Director Of Economy & Growth,Community Investment Team,Private Contractors,Third Party Prov - Private,PH101,22/06/15,357344,1500,Revenue,FABRICOM OIL GAS & POWER LTD,120483
North East Lincolnshire Council,http://statistics.data.gov.uk/id/local-authority/00FC,Chief Executive,Director Of Economy & Growth,Community Investment Team,Private Contractors,Third Party Prov - Private,PH101,18/06/15,357447,10000,Revenue,HULL CITY COUNCIL,114240
North East Lincolnshire Council,http://statistics.data.gov.uk/id/local-authority/00FC,Chief Executive,Director Of Economy & Growth,Community Investment Team,Private Contractors,Third Party Prov - Private,PH101,15/06/15,351100,9100,Revenue,HUMBER CHEMICAL FOCUS LTD,101684
North East Lincolnshire Council,http://statistics.data.gov.uk/id/local-authority/00FC,Chief Executive,Director Of Economy & Growth,Community Investment Team,Private Contractors,Third Party Prov - Private,PH101,04/06/15,354660,684,Revenue,CROSBY EMPLOYMENT BUREAU LTD,109640
North East Lincolnshire Council,http://statistics.data.gov.uk/id/local-authority/00FC,Chief Executive,Director Of Economy & Growth,Community Investment Team,Private Contractors,Third Party Prov - Private,PH101,25/06/15,358436,6360,Revenue,CROSBY EMPLOYMENT BUREAU LTD,109640
North East Lincolnshire Council,http://statistics.data.gov.uk/id/local-authority/00FC,Chief Executive,Director Of Economy & Growth,Community Investment Team,Private Contractors,Third Party Prov - Private,PH101,08/06/15,354723,3734.16,Revenue,E-FACTOR ENTERPRISES (NEL) LTD,102010
North East Lincolnshire Council,http://statistics.data.gov.uk/id/local-authority/00FC,Chief Executive,Director Of Economy & Growth,Community Investment Team,Private Contractors,Third Party Prov - Private,PH101,15/06/15,356350,1150,Revenue,E-FACTOR ENTERPRISES (NEL) LTD,102010
North East Lincolnshire Council,http://statistics.data.gov.uk/id/local-authority/00FC,Chief Executive,Director Of Economy & Growth,Community Investment Team,Private Contractors,Third Party Prov - Private,PH101,15/06/15,356349,516,Revenue,E-FACTOR ENTERPRISES (NEL) LTD,102010
North East Lincolnshire Council,http://statistics.data.gov.uk/id/local-authority/00FC,Chief Executive,Director Of Economy & Growth,Community Investment Team,Private Contractors,Third Party Prov - Private,PH101,23/06/15,358260,377.76,Revenue,E-FACTOR ENTERPRISES (NEL) LTD,102010
North East Lincolnshire Council,http://statistics.data.gov.uk/id/local-authority/00FC,Chief Executive,Director Of Economy & Growth,Community Investment Team,Private Contractors,Third Party Prov - Private,PH101,25/06/15,358461,25000,Revenue,COFELY WORKPLACE LIMITED,123983
North East Lincolnshire Council,http://statistics.data.gov.uk/id/local-authority/00FC,Chief Executive,Director Of Economy & Growth,Community Investment Team,Private Contractors,Third Party Prov - Private,PH101,25/06/15,358384,8000,Revenue,E-FACTOR ENTERPRISES (NEL) LTD,102010
North East Lincolnshire Council,http://statistics.data.gov.uk/id/local-authority/00FC,Chief Executive,Director Of Economy & Growth,Community Investment Team,Private Contractors,Third Party Prov - Private,PH101,29/06/15,358622,2000,Revenue,GRIMSBY RENEWABLES PARTNERSHIP LTD,130733
North East Lincolnshire Council,http://statistics.data.gov.uk/id/local-authority/00FC,Chief Executive,Director Of Economy & Growth,Community Investment Team,Private Contractors,Third Party Prov - Private,PH101,04/06/15,355009,6600,Revenue,EAST COAST PICTURES LTD,102719
North East Lincolnshire Council,http://statistics.data.gov.uk/id/local-authority/00FC,Chief Executive,Director Of Economy & Growth,Community Investment Team,Private Contractors,Third Party Prov - Private,PH101,02/06/15,353765,482,Revenue,CHRISTOPHER WAUD,129079
North East Lincolnshire Council,http://statistics.data.gov.uk/id/local-authority/00FC,Chief Executive,Director Of Economy & Growth,Community Investment Team,Private Contractors,Third Party Prov - Private,PH101,29/06/15,358437,1000,Revenue,WINCH SYSTEMS LTD,130554
North East Lincolnshire Council,http://statistics.data.gov.uk/id/local-authority/00FC,Chief Executive,Director Of Economy & Growth,Community Investment Team,Private Contractors,Third Party Prov - Private,PH101,16/06/15,357181,6259,Revenue,COFELY WORKPLACE LIMITED,123983
North East Lincolnshire Council,http://statistics.data.gov.uk/id/local-authority/00FC,Chief Executive,Director Of Economy & Growth,Community Investment Team,Other Agencies,Grants Pd Over To Third Party,PJ138,16/06/15,357110,50000,Revenue,COFELY WORKPLACE LIMITED,123983
North East Lincolnshire Council,http://statistics.data.gov.uk/id/local-authority/00FC,Chief Executive,Director Of Economy & Growth,Community Investment Team,Other Agencies,Grants Pd Over To Third Party,PJ138,18/06/15,357334,25000,Revenue,COFELY WORKPLACE LIMITED,123983
North East Lincolnshire Council,http://statistics.data.gov.uk/id/local-authority/00FC,Chief Executive,Director Of Economy & Growth,Community Investment Team,Other Agencies,Grants Pd Over To Third Party,PJ138,18/06/15,354832,25000,Revenue,COFELY WORKPLACE LIMITED,123983
North East Lincolnshire Council,http://statistics.data.gov.uk/id/local-authority/00FC,Chief Executive,Director Of Economy & Growth,Community Investment Team,Rents,Room Hire,GC103,25/06/15,358457,280,Revenue,ABBYS WINE BAR & BISTRO LTD,108412
North East Lincolnshire Council,http://statistics.data.gov.uk/id/local-authority/00FC,Chief Executive,Director Of Economy & Growth,Community Investment Team,Communications And Computing,Computer S/Ware - Maintenance,LF102,25/06/15,358249,3735,Revenue,ALCIUM SOFTWARE LTD,128234
North East Lincolnshire Council,http://statistics.data.gov.uk/id/local-authority/00FC,Chief Executive,Director Of Economy & Growth,Community Investment Team,Contributions To Provisions,Contributions - Other,LK103,18/06/15,357205,30401,Revenue,HULL CITY COUNCIL,114240
North East Lincolnshire Council,http://statistics.data.gov.uk/id/local-authority/00FC,Chief Executive,Director Of Economy & Growth,Community Investment Team,Miscellaneous Expenses,Legal Fees - General,LL103,25/06/15,358467,1500,Revenue,BEVAN BRITTAN,101819
North East Lincolnshire Council,http://statistics.data.gov.uk/id/local-authority/00FC,Chief Executive,Director Of Economy & Growth,Community Investment Team,Miscellaneous Expenses,Legal Fees - General,LL103,25/06/15,358386,1600,Revenue,ACCESS REGENERATION LTD,119929
North East Lincolnshire Council,http://statistics.data.gov.uk/id/local-authority/00FC,Chief Executive,Director Of Economy & Growth,Community Investment Team,Private Contractors,Third Party Prov - Private,PH101,18/06/15,357206,318,Revenue,EQUIFAX,101035
North East Lincolnshire Council,http://statistics.data.gov.uk/id/local-authority/00FC,Chief Executive,Director Of Economy & Growth,Community Investment Team,Consultancy,Consultancy,PL101,29/06/15,358795,17021,Revenue,HULL CITY COUNCIL,114240
North East Lincolnshire Council,http://statistics.data.gov.uk/id/local-authority/00FC,Chief Executive,Director Of Economy & Growth,Community Investment Team,Other Agencies,Grants Pd Over To Third Party,PJ138,15/06/15,356324,49650.39,Revenue,ALLIED PROTEK ENGINEERING SOLUTIONS LTD,122724
North East Lincolnshire Council,http://statistics.data.gov.uk/id/local-authority/00FC,Chief Executive,Director Of Economy & Growth,Community Investment Team,Other Agencies,Grants Pd Over To Third Party,PJ138,15/06/15,356325,60781.32,Revenue,ALLIED PROTEK ENGINEERING SOLUTIONS LTD,122724
North East Lincolnshire Council,http://statistics.data.gov.uk/id/local-authority/00FC,Chief Executive,Director Of Economy & Growth,Community Investment Team,Other Agencies,Grants Pd Over To Third Party,PJ138,25/06/15,358408,9291.06,Revenue,ALLIED PROTEK ENGINEERING SOLUTIONS LTD,122724
North East Lincolnshire Council,http://statistics.data.gov.uk/id/local-authority/00FC,Chief Executive,Director Of Economy & Growth,Community Investment Team,Other Agencies,Grants Pd Over To Third Party,PJ138,25/06/15,358409,12740.14,Revenue,ALLIED PROTEK ENGINEERING SOLUTIONS LTD,122724
North East Lincolnshire Council,http://statistics.data.gov.uk/id/local-authority/00FC,Chief Executive,Director Of Economy & Growth,Community Investment Team,Other Agencies,Grants Pd Over To Third Party,PJ138,25/06/15,358468,51272.94,Revenue,ALLIED PROTEK ENGINEERING SOLUTIONS LTD,122724
North East Lincolnshire Council,http://statistics.data.gov.uk/id/local-authority/00FC,Chief Executive,Director Of Economy & Growth,Community Investment Team,Other Agencies,Grants Pd Over To Third Party,PJ138,04/06/15,354687,58923.7,Revenue,CONVENIENCE FOODS,130230
North East Lincolnshire Council,http://statistics.data.gov.uk/id/local-authority/00FC,Chief Executive,Director Of Economy & Growth,Community Investment Team,Other Agencies,Grants Pd Over To Third Party,PJ138,16/06/15,357112,1442.73,Revenue,KONDOR PODS LTD,127489
North East Lincolnshire Council,http://statistics.data.gov.uk/id/local-authority/00FC,Chief Executive,Director Of Economy & Growth,Community Investment Team,Other Agencies,Grants Pd Over To Third Party,PJ138,08/06/15,355529,1250.39,Revenue,PBS PACKAGING LTD,127667
North East Lincolnshire Council,http://statistics.data.gov.uk/id/local-authority/00FC,Chief Executive,Director Of Economy & Growth,Retained Function,Expenses,Course/Conf Accom - Employees,LH102,30/06/15,358885,269,Revenue,WATERFRONT CONFERENCE COMPANY LTD,125302
North East Lincolnshire Council,http://statistics.data.gov.uk/id/local-authority/00FC,Chief Executive,Director Of Economy & Growth,Retained Function,Contributions To Provisions,Contributions - Communities,LK101,02/06/15,354419,50000,Revenue,HULL CITY COUNCIL,114240
North East Lincolnshire Council,http://statistics.data.gov.uk/id/local-authority/00FC,Chief Executive,Director Of Economy & Growth,In Scope Contract,Private Contractors,Contract Payments,PH105,18/06/15,355363,86927.5,Revenue,COFELY WORKPLACE LIMITED,123983
North East Lincolnshire Council,http://statistics.data.gov.uk/id/local-authority/00FC,Chief Executive,Director Of Economy & Growth,In Scope Contract,Private Contractors,Contract Payments,PH105,18/06/15,355363,288453.33,Revenue,COFELY WORKPLACE LIMITED,123983
North East Lincolnshire Council,http://statistics.data.gov.uk/id/local-authority/00FC,Chief Executive,Director Of Economy & Growth,In Scope Contract,Private Contractors,Contract Payments,PH105,18/06/15,355363,13624.17,Revenue,COFELY WORKPLACE LIMITED,123983
North East Lincolnshire Council,http://statistics.data.gov.uk/id/local-authority/00FC,Chief Executive,Director Of Economy & Growth,In Scope Contract,Private Contractors,Contract Payments,PH105,18/06/15,355363,459310,Revenue,COFELY WORKPLACE LIMITED,123983
North East Lincolnshire Council,http://statistics.data.gov.uk/id/local-authority/00FC,Chief Executive,Director Of Economy & Growth,In Scope Contract,Private Contractors,Contract Payments,PH105,18/06/15,355363,5325,Revenue,COFELY WORKPLACE LIMITED,123983
North East Lincolnshire Council,http://statistics.data.gov.uk/id/local-authority/00FC,Chief Executive,Director Of Economy & Growth,In Scope Contract,Private Contractors,Contract Payments,PH105,18/06/15,355363,69896.25,Revenue,COFELY WORKPLACE LIMITED,123983
North East Lincolnshire Council,http://statistics.data.gov.uk/id/local-authority/00FC,Chief Executive,Director Of Economy & Growth,In Scope Contract,Private Contractors,Contract Payments,PH105,18/06/15,355363,34407.5,Revenue,COFELY WORKPLACE LIMITED,123983
North East Lincolnshire Council,http://statistics.data.gov.uk/id/local-authority/00FC,Chief Executive,Director Of Economy & Growth,Planning,Customer And Client Receipts,Fees/Chrgs-O/Side Scope Vat 4,VC125,18/06/15,357466,1305,Revenue,FABRICOM OIL GAS & POWER LTD,120483
North East Lincolnshire Council,http://statistics.data.gov.uk/id/local-authority/00FC,Chief Executive,Director Of Economy & Growth,Drainage & Coastal Defence,Miscellaneous Expenses,Other Interest Charged,LL124,16/06/15,356560,73951.56,Revenue,PBS CONSTRUCTION (NORTH EAST) LTD,127459
North East Lincolnshire Council,http://statistics.data.gov.uk/id/local-authority/00FC,Chief Executive,Director Of Economy & Growth,Highways Dso,Dlo Holding,Depot Fuel Holding Account,LM101,23/06/15,357689,16651.8,Revenue,HARVEST ENERGY LTD,102544
North East Lincolnshire Council,http://statistics.data.gov.uk/id/local-authority/00FC,Chief Executive,Director Of Economy & Growth,Highways Dso,Dlo Holding,Depot Fuel Holding Account,LM101,23/06/15,357694,16475.43,Revenue,HARVEST ENERGY LTD,102544
North East Lincolnshire Council,http://statistics.data.gov.uk/id/local-authority/00FC,Chief Executive,Director Of Economy & Growth,Highways Dso,Dlo Holding,Depot Fuel Holding Account,LM101,23/06/15,357680,16474.52,Revenue,HARVEST ENERGY LTD,102544
North East Lincolnshire Council,http://statistics.data.gov.uk/id/local-authority/00FC,Chief Executive,Director Of Economy & Growth,Highways Management,Rep Alterations Maint Building,Road Path Drain - Maintenance,GA116,01/06/15,354438,56284.23,Revenue,SPECIALIST SURFACING LIMITED,100579
North East Lincolnshire Council,http://statistics.data.gov.uk/id/local-authority/00FC,Chief Executive,Director Of Economy & Growth,Highways Structures,Rep Alterations Maint Building,Traffic Mgmt-Irrecoverable Dam,GA115,16/06/15,356633,2750,Revenue,PELL AND BALDWIN FABRICATIONS LTD,118853
North East Lincolnshire Council,http://statistics.data.gov.uk/id/local-authority/00FC,Chief Executive,Director Of Economy & Growth,Street Lighting,Private Contractors,Third Party Prov - Private,PH101,15/06/15,357047,1078.3,Revenue,J MCCANN & CO LTD,100841
North East Lincolnshire Council,http://statistics.data.gov.uk/id/local-authority/00FC,Chief Executive,Director Of Economy & Growth,Street Lighting,Energy Costs,Electricity,GB102,25/06/15,358258,-3389.62,Revenue,NPOWER LIMITED,101414
North East Lincolnshire Council,http://statistics.data.gov.uk/id/local-authority/00FC,Chief Executive,Director Of Economy & Growth,Street Lighting,Energy Costs,Electricity,GB102,29/06/15,358180,3095.05,Revenue,NPOWER LIMITED,101414
North East Lincolnshire Council,http://statistics.data.gov.uk/id/local-authority/00FC,Chief Executive,Director Of Economy & Growth,Street Lighting,Energy Costs,Electricity,GB102,29/06/15,358183,3198.22,Revenue,NPOWER LIMITED,101414
North East Lincolnshire Council,http://statistics.data.gov.uk/id/local-authority/00FC,Chief Executive,Director Of Economy & Growth,Street Lighting,Energy Costs,Electricity,GB102,25/06/15,358237,-225.19,Revenue,NPOWER LIMITED,101414
North East Lincolnshire Council,http://statistics.data.gov.uk/id/local-authority/00FC,Chief Executive,Director Of Economy & Growth,Street Lighting,Rep Alterations Maint Building,Street Lighting - Energy,GA110,25/06/15,358258,-9745.16,Revenue,NPOWER LIMITED,101414
North East Lincolnshire Council,http://statistics.data.gov.uk/id/local-authority/00FC,Chief Executive,Director Of Economy & Growth,Street Lighting,Rep Alterations Maint Building,Street Lighting - Energy,GA110,29/06/15,358180,8898.26,Revenue,NPOWER LIMITED,101414
North East Lincolnshire Council,http://statistics.data.gov.uk/id/local-authority/00FC,Chief Executive,Director Of Economy & Growth,Street Lighting,Rep Alterations Maint Building,Street Lighting - Energy,GA110,25/06/15,358190,515.14,Revenue,NPOWER LIMITED,101414
North East Lincolnshire Council,http://statistics.data.gov.uk/id/local-authority/00FC,Chief Executive,Director Of Economy & Growth,Street Lighting,Rep Alterations Maint Building,Street Lighting - Energy,GA110,29/06/15,358183,9194.87,Revenue,NPOWER LIMITED,101414
North East Lincolnshire Council,http://statistics.data.gov.uk/id/local-authority/00FC,Chief Executive,Director Of Economy & Growth,Street Lighting,Rep Alterations Maint Building,Street Lighting - Energy,GA110,25/06/15,358237,-647.41,Revenue,NPOWER LIMITED,101414
North East Lincolnshire Council,http://statistics.data.gov.uk/id/local-authority/00FC,Chief Executive,Director Of Economy & Growth,Street Lighting,Rep Alterations Maint Building,Street Lighting-General Maint,GA111,08/06/15,355012,680.11,Revenue,NORTHERN POWERGRID (YORKSHIRE) PLC,108328
North East Lincolnshire Council,http://statistics.data.gov.uk/id/local-authority/00FC,Chief Executive,Director Of Economy & Growth,Street Lighting,Rep Alterations Maint Building,Street Lighting-General Maint,GA111,15/06/15,357047,342.02,Revenue,J MCCANN & CO LTD,100841
North East Lincolnshire Council,http://statistics.data.gov.uk/id/local-authority/00FC,Chief Executive,Director Of Economy & Growth,Street Lighting,Rep Alterations Maint Building,Traffic Signs / Signals,GA113,15/06/15,357047,987.1,Revenue,J MCCANN & CO LTD,100841
North East Lincolnshire Council,http://statistics.data.gov.uk/id/local-authority/00FC,Chief Executive,Director Of Economy & Growth,Street Lighting,Rep Alterations Maint Building,Street Lighting - Energy,GA110,25/06/15,358208,1141.17,Revenue,NPOWER LIMITED,101414
North East Lincolnshire Council,http://statistics.data.gov.uk/id/local-authority/00FC,Chief Executive,Director Of Economy & Growth,Street Lighting,Rep Alterations Maint Building,Street Lighting - Energy,GA110,29/06/15,358180,26694.8,Revenue,NPOWER LIMITED,101414
North East Lincolnshire Council,http://statistics.data.gov.uk/id/local-authority/00FC,Chief Executive,Director Of Economy & Growth,Street Lighting,Rep Alterations Maint Building,Street Lighting - Energy,GA110,25/06/15,358190,1545.41,Revenue,NPOWER LIMITED,101414
North East Lincolnshire Council,http://statistics.data.gov.uk/id/local-authority/00FC,Chief Executive,Director Of Economy & Growth,Street Lighting,Rep Alterations Maint Building,Street Lighting - Energy,GA110,29/06/15,358183,27584.62,Revenue,NPOWER LIMITED,101414
North East Lincolnshire Council,http://statistics.data.gov.uk/id/local-authority/00FC,Chief Executive,Director Of Economy & Growth,Street Lighting,Rep Alterations Maint Building,Street Lighting - Energy,GA110,25/06/15,358237,-1942.23,Revenue,NPOWER LIMITED,101414
North East Lincolnshire Council,http://statistics.data.gov.uk/id/local-authority/00FC,Chief Executive,Director Of Economy & Growth,Street Lighting,Rep Alterations Maint Building,Street Lighting - Energy,GA110,04/06/15,354440,1103.72,Revenue,NPOWER LIMITED,101414
North East Lincolnshire Council,http://statistics.data.gov.uk/id/local-authority/00FC,Chief Executive,Director Of Economy & Growth,Street Lighting,Rep Alterations Maint Building,Street Lighting - Energy,GA110,25/06/15,358258,-29235.48,Revenue,NPOWER LIMITED,101414
North East Lincolnshire Council,http://statistics.data.gov.uk/id/local-authority/00FC,Chief Executive,Director Of Economy & Growth,Street Lighting,Rep Alterations Maint Building,Street Lighting-General Maint,GA111,15/06/15,357047,2506.09,Revenue,J MCCANN & CO LTD,100841
North East Lincolnshire Council,http://statistics.data.gov.uk/id/local-authority/00FC,Chief Executive,Director Of Economy & Growth,Street Lighting,Rep Alterations Maint Building,Street Lighting-General Maint,GA111,15/06/15,357047,1127.77,Revenue,J MCCANN & CO LTD,100841
North East Lincolnshire Council,http://statistics.data.gov.uk/id/local-authority/00FC,Chief Executive,Director Of Economy & Growth,Street Lighting,Rep Alterations Maint Building,Street Lighting-General Maint,GA111,23/06/15,358144,354.05,Revenue,NORTHERN POWERGRID (YORKSHIRE) PLC,108328
North East Lincolnshire Council,http://statistics.data.gov.uk/id/local-authority/00FC,Chief Executive,Director Of Economy & Growth,Street Lighting,Rep Alterations Maint Building,Street Lighting-General Maint,GA111,08/06/15,355011,884.69,Revenue,NORTHERN POWERGRID (YORKSHIRE) PLC,108328
North East Lincolnshire Council,http://statistics.data.gov.uk/id/local-authority/00FC,Chief Executive,Director Of Economy & Growth,Street Lighting,Rep Alterations Maint Building,Street Light-Irrecoverable Dam,GA112,15/06/15,357047,624,Revenue,J MCCANN & CO LTD,100841
North East Lincolnshire Council,http://statistics.data.gov.uk/id/local-authority/00FC,Chief Executive,Director Of Economy & Growth,Street Lighting,Rep Alterations Maint Building,Street Light-Irrecoverable Dam,GA112,23/06/15,358143,598.28,Revenue,NORTHERN POWERGRID (YORKSHIRE) PLC,108328
North East Lincolnshire Council,http://statistics.data.gov.uk/id/local-authority/00FC,Chief Executive,Director Of Economy & Growth,Street Lighting,Rep Alterations Maint Building,Street Light-Irrecoverable Dam,GA112,04/06/15,354385,550.1,Revenue,NORTHERN POWERGRID (YORKSHIRE) PLC,108328
North East Lincolnshire Council,http://statistics.data.gov.uk/id/local-authority/00FC,Chief Executive,Director Of Economy & Growth,Street Lighting,Rep Alterations Maint Building,Traffic Mgmt-Irrecoverable Dam,GA115,15/06/15,357047,1929.93,Revenue,J MCCANN & CO LTD,100841
North East Lincolnshire Council,http://statistics.data.gov.uk/id/local-authority/00FC,Chief Executive,Director Of Economy & Growth,Street Lighting,Rep Alterations Maint Building,Traffic Signs / Signals,GA113,15/06/15,357047,3766.67,Revenue,J MCCANN & CO LTD,100841
North East Lincolnshire Council,http://statistics.data.gov.uk/id/local-authority/00FC,Chief Executive,Director Of Economy & Growth,Street Lighting,Rep Alterations Maint Building,Traffic Signs / Signals,GA113,15/06/15,357047,5078.93,Revenue,J MCCANN & CO LTD,100841
North East Lincolnshire Council,http://statistics.data.gov.uk/id/local-authority/00FC,Chief Executive,Director Of Economy & Growth,Street Lighting,Energy Costs,Electricity,GB102,04/06/15,354324,-293.81,Revenue,NPOWER LIMITED,101414
North East Lincolnshire Council,http://statistics.data.gov.uk/id/local-authority/00FC,Chief Executive,Director Of Economy & Growth,Street Lighting,Energy Costs,Electricity,GB102,04/06/15,354325,-38.49,Revenue,NPOWER LIMITED,101414
North East Lincolnshire Council,http://statistics.data.gov.uk/id/local-authority/00FC,Chief Executive,Director Of Economy & Growth,Street Lighting,Energy Costs,Electricity,GB102,04/06/15,354318,2424.09,Revenue,NPOWER LIMITED,101414
North East Lincolnshire Council,http://statistics.data.gov.uk/id/local-authority/00FC,Chief Executive,Director Of Economy & Growth,Street Lighting,Energy Costs,Electricity,GB102,04/06/15,354319,396.22,Revenue,NPOWER LIMITED,101414
North East Lincolnshire Council,http://statistics.data.gov.uk/id/local-authority/00FC,Chief Executive,Director Of Economy & Growth,Traffic Management,Private Contractors,Third Party Prov - Private,PH101,08/06/15,343890,774,Revenue,LOCAL WORLD LIMITED,118774
North East Lincolnshire Council,http://statistics.data.gov.uk/id/local-authority/00FC,Chief Executive,Director Of Economy & Growth,Traffic Management,Private Contractors,Third Party Prov - Private,PH101,08/06/15,343891,522.66,Revenue,LOCAL WORLD LIMITED,118774
North East Lincolnshire Council,http://statistics.data.gov.uk/id/local-authority/00FC,Chief Executive,Director Of Economy & Growth,Traffic Management,Private Contractors,Third Party Prov - Private,PH101,09/06/15,356117,251.16,Revenue,CLEETHORPES CHRONICLE,102013
North East Lincolnshire Council,http://statistics.data.gov.uk/id/local-authority/00FC,Chief Executive,Director Of Economy & Growth,Traffic Management,Private Contractors,Third Party Prov - Private,PH101,09/06/15,356119,251.16,Revenue,CLEETHORPES CHRONICLE,102013
North East Lincolnshire Council,http://statistics.data.gov.uk/id/local-authority/00FC,Chief Executive,Director Of Economy & Growth,Traffic Management,Private Contractors,Third Party Prov - Private,PH101,18/06/15,350693,394.26,Revenue,LOCAL WORLD LIMITED,118774
North East Lincolnshire Council,http://statistics.data.gov.uk/id/local-authority/00FC,Chief Executive,Director Of Economy & Growth,Traffic Management,Private Contractors,Third Party Prov - Private,PH101,18/06/15,351393,343.12,Revenue,LOCAL WORLD LIMITED,118774
North East Lincolnshire Council,http://statistics.data.gov.uk/id/local-authority/00FC,Chief Executive,Director Of Economy & Growth,Traffic Management,Private Contractors,Third Party Prov - Private,PH101,18/06/15,355123,363.09,Revenue,LOCAL WORLD LIMITED,118774
North East Lincolnshire Council,http://statistics.data.gov.uk/id/local-authority/00FC,Chief Executive,Director Of Economy & Growth,Traffic Management,Private Contractors,Third Party Prov - Private,PH101,23/06/15,357687,338.4,Revenue,LOCAL WORLD LIMITED,118774
North East Lincolnshire Council,http://statistics.data.gov.uk/id/local-authority/00FC,Chief Executive,Director Of Economy & Growth,Traffic Management,Private Contractors,Contract Payments,PH105,08/06/15,350676,97806,Revenue,EAST RIDING OF YORKSHIRE,100377
North East Lincolnshire Council,http://statistics.data.gov.uk/id/local-authority/00FC,Chief Executive,Director Of Economy & Growth,Transport Policy,Private Contractors,Concessionary Fares,PH104,11/06/15,356422,REDACTED COMMERCIALLY SENSITIVE,Revenue,STAGECOACH SERVICES,101404
North East Lincolnshire Council,http://statistics.data.gov.uk/id/local-authority/00FC,Chief Executive,Director Of Economy & Growth,Transport Policy,Private Contractors,Concessionary Fares,PH104,23/06/15,357644,REDACTED COMMERCIALLY SENSITIVE,Revenue,ESP SYSTEX LTD,102062
North East Lincolnshire Council,http://statistics.data.gov.uk/id/local-authority/00FC,Chief Executive,Director Of Economy & Growth,Transport Policy,Private Contractors,Concessionary Fares,PH104,04/06/15,353682,REDACTED COMMERCIALLY SENSITIVE,Revenue,GRAYSCROFT BUS SERVICES LIMITED,101786
North East Lincolnshire Council,http://statistics.data.gov.uk/id/local-authority/00FC,Chief Executive,Director Of Economy & Growth,Transport Policy,Private Contractors,Concessionary Fares,PH104,11/06/15,356421,REDACTED COMMERCIALLY SENSITIVE,Revenue,GY CLPS & DISTRICT DIAL A RIDE,100980
North East Lincolnshire Council,http://statistics.data.gov.uk/id/local-authority/00FC,Chief Executive,Director Of Economy & Growth,Transport Policy,Private Contractors,Concessionary Fares,PH104,29/05/15,354367,REDACTED COMMERCIALLY SENSITIVE,Revenue,NORTHERN RAIL LIMITED,101610
North East Lincolnshire Council,http://statistics.data.gov.uk/id/local-authority/00FC,Chief Executive,Director Of Economy & Growth,Transport Policy,Private Contractors,Concessionary Fares,PH104,25/06/15,358248,REDACTED COMMERCIALLY SENSITIVE,Revenue,NORTHERN RAIL LIMITED,101610
North East Lincolnshire Council,http://statistics.data.gov.uk/id/local-authority/00FC,Chief Executive,Director Of Economy & Growth,Transport Policy,Private Contractors,Concessionary Fares,PH104,04/06/15,353549,REDACTED COMMERCIALLY SENSITIVE,Revenue,AMVALE LIMITED,101030
North East Lincolnshire Council,http://statistics.data.gov.uk/id/local-authority/00FC,Chief Executive,Director Of Economy & Growth,Transport Policy,Private Contractors,Concessionary Fares,PH104,08/06/15,354796,REDACTED COMMERCIALLY SENSITIVE,Revenue,THE CITY OF HULL ENVIRONMENT FORUM,108032
North East Lincolnshire Council,http://statistics.data.gov.uk/id/local-authority/00FC,Chief Executive,Director Of Economy & Growth,Transport Policy,Private Contractors,Concessionary Fares,PH104,04/06/15,353301,REDACTED COMMERCIALLY SENSITIVE,Revenue,ESP SYSTEX LTD,102062
North East Lincolnshire Council,http://statistics.data.gov.uk/id/local-authority/00FC,Chief Executive,Director Of Economy & Growth,Transport Policy,Private Contractors,Subsidies,PH102,18/06/15,357341,REDACTED COMMERCIALLY SENSITIVE,Revenue,STAGECOACH SERVICES,101404
North East Lincolnshire Council,http://statistics.data.gov.uk/id/local-authority/00FC,Chief Executive,Director Of Economy & Growth,Transport Policy,Private Contractors,Contract Payments,PH105,08/06/15,354688,14919.18,Revenue,KIER FPS LTD,101159
North East Lincolnshire Council,http://statistics.data.gov.uk/id/local-authority/00FC,Chief Executive,Director Of Economy & Growth,Transport Policy,Private Contractors,Contract Payments,PH105,16/06/15,356614,14983.78,Revenue,KIER FPS LTD,101159
North East Lincolnshire Council,http://statistics.data.gov.uk/id/local-authority/00FC,Chief Executive,Director Of Public Health,Drug / Alcohol Action Service,Private Contractors,Contract Payments,PH105,04/06/15,355038,118583.33,Revenue,CARE PLUS GROUP,106467
North East Lincolnshire Council,http://statistics.data.gov.uk/id/local-authority/00FC,Chief Executive,Director Of Public Health,Drug / Alcohol Action Service,Private Contractors,Contract Payments,PH105,23/06/15,358007,38460.14,Revenue,NHS BUSINESS SERVICES AUTHORITY,127751
North East Lincolnshire Council,http://statistics.data.gov.uk/id/local-authority/00FC,Chief Executive,Director Of Public Health,Drug / Alcohol Action Service,Private Contractors,Contract Payments,PH105,29/06/15,358057,118583.33,Revenue,CARE PLUS GROUP,106467
North East Lincolnshire Council,http://statistics.data.gov.uk/id/local-authority/00FC,Chief Executive,Director Of Public Health,Drug / Alcohol Action Service,Private Contractors,Contract Payments,PH105,04/06/15,355036,118583.33,Revenue,CARE PLUS GROUP,106467
North East Lincolnshire Council,http://statistics.data.gov.uk/id/local-authority/00FC,Chief Executive,Director Of Public Health,Drug / Alcohol Action Service,Private Contractors,Contract Payments,PH105,16/06/15,356558,12500,Revenue,FREELANCE NEEDLE EXCHANGE LIMITED,119999
North East Lincolnshire Council,http://statistics.data.gov.uk/id/local-authority/00FC,Chief Executive,Director Of Public Health,Drug / Alcohol Action Service,Private Contractors,Contract Payments,PH105,04/06/15,354814,680.08,Revenue,DR I D S CHALMERS & DR V O MEIER,104521
North East Lincolnshire Council,http://statistics.data.gov.uk/id/local-authority/00FC,Chief Executive,Director Of Public Health,Drug / Alcohol Action Service,Private Contractors,Contract Payments,PH105,11/06/15,355952,1294.86,Revenue,PELHAM MEDICAL GROUP,104350
North East Lincolnshire Council,http://statistics.data.gov.uk/id/local-authority/00FC,Chief Executive,Director Of Public Health,Drug / Alcohol Action Service,Private Contractors,Contract Payments,PH105,23/06/15,358054,1479.84,Revenue,DR SINHA & DR G DE,108111
North East Lincolnshire Council,http://statistics.data.gov.uk/id/local-authority/00FC,Chief Executive,Director Of Public Health,Drug / Alcohol Action Service,Private Contractors,Contract Payments,PH105,16/06/15,356559,15833.33,Revenue,FREELANCE NEEDLE EXCHANGE LIMITED,119999
North East Lincolnshire Council,http://statistics.data.gov.uk/id/local-authority/00FC,Chief Executive,Director Of Public Health,Sexual Health,Contributions To Provisions,Contributions - Communities,LK101,08/06/15,355078,4016.4,Revenue,VIRGIN CARE SERVICES LTD,120538
North East Lincolnshire Council,http://statistics.data.gov.uk/id/local-authority/00FC,Chief Executive,Director Of Public Health,Sexual Health,Contributions To Provisions,Contributions - Communities,LK101,30/06/15,358905,4289.6,Revenue,VIRGIN CARE SERVICES LTD,120538
North East Lincolnshire Council,http://statistics.data.gov.uk/id/local-authority/00FC,Chief Executive,Director Of Public Health,Sexual Health,Voluntary Associations,Third Pp - Third Sector,PF101,18/06/15,357145,2331.69,Revenue,POSITIVE HEALTH,125235
North East Lincolnshire Council,http://statistics.data.gov.uk/id/local-authority/00FC,Chief Executive,Director Of Public Health,Sexual Health,Private Contractors,Contract Payments,PH105,16/06/15,357160,55401,Revenue,VIRGIN CARE SERVICES LTD,120538
North East Lincolnshire Council,http://statistics.data.gov.uk/id/local-authority/00FC,Chief Executive,Director Of Public Health,Sexual Health,Private Contractors,Third Party Prov - Private,PH101,16/06/15,357167,385.87,Revenue,COTTINGHAM PHARMACY,104020
North East Lincolnshire Council,http://statistics.data.gov.uk/id/local-authority/00FC,Chief Executive,Director Of Public Health,Sexual Health,Private Contractors,Third Party Prov - Private,PH101,08/06/15,355080,285,Revenue,TESCO PHARMACY,106098
North East Lincolnshire Council,http://statistics.data.gov.uk/id/local-authority/00FC,Chief Executive,Director Of Public Health,Sexual Health,Private Contractors,Third Party Prov - Private,PH101,16/06/15,357164,315,Revenue,EA BROADBURN DISPENSING CHEMIST,101135
North East Lincolnshire Council,http://statistics.data.gov.uk/id/local-authority/00FC,Chief Executive,Director Of Public Health,Sexual Health,Other Agencies,Health Charges,PJ131,08/06/15,355074,894,Revenue,CITY HEALTH CARE PARTNERSHIP CIC,110889
North East Lincolnshire Council,http://statistics.data.gov.uk/id/local-authority/00FC,Chief Executive,Director Of Public Health,Sexual Health,Other Agencies,Health Charges,PJ131,08/06/15,355075,1282,Revenue,VIRGIN CARE SERVICES LTD,120538
North East Lincolnshire Council,http://statistics.data.gov.uk/id/local-authority/00FC,Chief Executive,Director Of Public Health,Sexual Health,Other Agencies,Health Charges,PJ131,04/06/15,354798,798,Revenue,VIRGIN CARE SERVICES LTD,120538
North East Lincolnshire Council,http://statistics.data.gov.uk/id/local-authority/00FC,Chief Executive,Director Of Public Health,Sexual Health,Other Agencies,Health Charges,PJ131,30/06/15,358908,262,Revenue,VIRGIN CARE SERVICES LTD,120538
North East Lincolnshire Council,http://statistics.data.gov.uk/id/local-authority/00FC,Chief Executive,Director Of Public Health,Sexual Health,Other Agencies,Health Charges,PJ131,30/06/15,358907,325,Revenue,IMPERIAL COLLEGE HEALTHCARE NHS TRUST,126785
North East Lincolnshire Council,http://statistics.data.gov.uk/id/local-authority/00FC,Chief Executive,Director Of Public Health,Sexual Health,Other Agencies,Other,PJ121,02/06/15,353907,960,Revenue,DR HOPPER & PARTNERS,103900
North East Lincolnshire Council,http://statistics.data.gov.uk/id/local-authority/00FC,Chief Executive,Director Of Public Health,Sexual Health,Other Agencies,Other,PJ121,08/06/15,355076,320,Revenue,DR SINHA & DR G DE,108111
North East Lincolnshire Council,http://statistics.data.gov.uk/id/local-authority/00FC,Chief Executive,Director Of Public Health,Sexual Health,Other Agencies,Other,PJ121,16/06/15,357158,720,Revenue,LITTLEFIELDS HEALTH CENTRE,111683
North East Lincolnshire Council,http://statistics.data.gov.uk/id/local-authority/00FC,Chief Executive,Director Of Public Health,Sexual Health,Other Agencies,Other,PJ121,18/06/15,357156,1360,Revenue,DR HOPPER & PARTNERS,103900
North East Lincolnshire Council,http://statistics.data.gov.uk/id/local-authority/00FC,Chief Executive,Director Of Public Health,Sexual Health,Other Agencies,Other,PJ121,18/06/15,357166,1040,Revenue,WOODFORD MEDICAL CENTRE,107882
North East Lincolnshire Council,http://statistics.data.gov.uk/id/local-authority/00FC,Chief Executive,Director Of Public Health,Tobacco,Private Contractors,Third Party Prov - Private,PH101,29/06/15,358641,395,Revenue,B W Y CANINE,127246
North East Lincolnshire Council,http://statistics.data.gov.uk/id/local-authority/00FC,Chief Executive,Director Of Public Health,Tobacco,Private Contractors,Third Party Prov - Private,PH101,29/06/15,358641,268,Revenue,B W Y CANINE,127246
North East Lincolnshire Council,http://statistics.data.gov.uk/id/local-authority/00FC,Chief Executive,Director Of Public Health,Tobacco,Private Contractors,Third Party Prov - Private,PH101,15/06/15,356496,325,Revenue,B W Y CANINE,127246
North East Lincolnshire Council,http://statistics.data.gov.uk/id/local-authority/00FC,Chief Executive,Ad Joint Delivery,Benefit Payments & Subsidy,Miscellaneous Income,Exp Recov - O/Side Scope Vat 4,VG107,15/06/15,357190,560,Revenue,JACOBS CERTIFIED BAILIFFS,101788
North East Lincolnshire Council,http://statistics.data.gov.uk/id/local-authority/00FC,Chief Executive,Ad Joint Delivery,Benefit Payments & Subsidy,Miscellaneous Income,Exp Recov - O/Side Scope Vat 4,VG107,25/06/15,357986,960,Revenue,JACOBS CERTIFIED BAILIFFS,101788
North East Lincolnshire Council,http://statistics.data.gov.uk/id/local-authority/00FC,Chief Executive,Ad Joint Delivery,Local Taxation & Benefits,Grants And Subscriptions,Subscriptions,LJ101,08/06/15,355073,2680,Revenue,CIPFA BUSINESS LIMITED,102338
North East Lincolnshire Council,http://statistics.data.gov.uk/id/local-authority/00FC,Chief Executive,Ad Joint Delivery,Local Taxation & Benefits,Communications And Computing,Computer S/Ware - Maintenance,LF102,08/06/15,355131,1312.3,Revenue,NORTHGATE PUBLIC SERVICES (UK) LTD,101841
North East Lincolnshire Council,http://statistics.data.gov.uk/id/local-authority/00FC,Chief Executive,Ad Joint Delivery,Local Taxation & Benefits,Communications And Computing,Computer S/Ware - Maintenance,LF102,08/06/15,355134,2565,Revenue,NORTHGATE PUBLIC SERVICES (UK) LTD,101841
North East Lincolnshire Council,http://statistics.data.gov.uk/id/local-authority/00FC,Chief Executive,Ad Joint Delivery,Local Taxation & Benefits,Communications And Computing,Computer S/Ware - Maintenance,LF102,08/06/15,355131,366.22,Revenue,NORTHGATE PUBLIC SERVICES (UK) LTD,101841
North East Lincolnshire Council,http://statistics.data.gov.uk/id/local-authority/00FC,Chief Executive,Ad Joint Delivery,Local Taxation & Benefits,Communications And Computing,Computer S/Ware - Maintenance,LF102,08/06/15,355131,1373.34,Revenue,NORTHGATE PUBLIC SERVICES (UK) LTD,101841
North East Lincolnshire Council,http://statistics.data.gov.uk/id/local-authority/00FC,Chief Executive,Ad Joint Delivery,Local Taxation & Benefits,Miscellaneous Expenses,Other Expenses General,LL119,04/06/15,355086,800,Revenue,AIREY CONSULTANCY SERVICES LTD,109816
North East Lincolnshire Council,http://statistics.data.gov.uk/id/local-authority/00FC,Chief Executive,Ad Joint Delivery,Local Taxation & Benefits,Private Contractors,Third Party Prov - Private,PH101,30/06/15,331239,300,Revenue,REDACTED PERSONAL INFORMATION,REDACTED PERSONAL INFORMATION
North East Lincolnshire Council,http://statistics.data.gov.uk/id/local-authority/00FC,Chief Executive,Ad Joint Delivery,Head Commission & Info Systems,Direct Employee Expenses,Agency Staff,EA105,11/06/15,355003,4000,Revenue,MECOS LTD,128199
North East Lincolnshire Council,http://statistics.data.gov.uk/id/local-authority/00FC,Chief Executive,Ad Joint Delivery,Head Commission & Info Systems,Communications And Computing,Computer S/Ware - Purchases,LF101,15/06/15,354830,12500,Revenue,ADVANCED BUSINESS SOLUTIONS,101614
North East Lincolnshire Council,http://statistics.data.gov.uk/id/local-authority/00FC,Chief Executive,Ad Joint Delivery,Information Technology,Communications And Computing,Telephones,LF112,04/06/15,353589,257.07,Revenue,BRITISH TELECOMMUNICATIONS PLC,100974
North East Lincolnshire Council,http://statistics.data.gov.uk/id/local-authority/00FC,Chief Executive,Ad Joint Delivery,Information Technology,Communications And Computing,Telephones,LF112,18/06/15,357319,351.04,Revenue,VIRGIN MEDIA,107612
North East Lincolnshire Council,http://statistics.data.gov.uk/id/local-authority/00FC,Chief Executive,Ad Joint Delivery,Information Technology,Communications And Computing,Telephones,LF112,30/06/15,358422,313.48,Revenue,VIRGIN MEDIA,107612
North East Lincolnshire Council,http://statistics.data.gov.uk/id/local-authority/00FC,Chief Executive,Ad Joint Delivery,Information Technology,Communications And Computing,Telephones,LF112,18/06/15,357317,2699,Revenue,VIRGIN MEDIA,107612
North East Lincolnshire Council,http://statistics.data.gov.uk/id/local-authority/00FC,Chief Executive,Ad Joint Delivery,Information Technology,Communications And Computing,Telephones,LF112,30/06/15,358434,2638.82,Revenue,VIRGIN MEDIA,107612
North East Lincolnshire Council,http://statistics.data.gov.uk/id/local-authority/00FC,Chief Executive,Ad Joint Delivery,Information Technology,Communications And Computing,Telephones,LF112,19/06/15,357459,4672.45,Revenue,VIRGIN MEDIA,107612
North East Lincolnshire Council,http://statistics.data.gov.uk/id/local-authority/00FC,Chief Executive,Ad Joint Delivery,Information Technology,Communications And Computing,Telephones,LF112,25/06/15,357426,3308.49,Revenue,VIRGIN MEDIA,107612
North East Lincolnshire Council,http://statistics.data.gov.uk/id/local-authority/00FC,Chief Executive,Ad Joint Delivery,Information Technology,Communications And Computing,Telephones,LF112,29/06/15,358455,4090.19,Revenue,VIRGIN MEDIA,107612
North East Lincolnshire Council,http://statistics.data.gov.uk/id/local-authority/00FC,Chief Executive,Ad Joint Delivery,Information Technology,Communications And Computing,Telephones,LF112,19/06/15,357459,319.6,Revenue,VIRGIN MEDIA,107612
North East Lincolnshire Council,http://statistics.data.gov.uk/id/local-authority/00FC,Chief Executive,Ad Joint Delivery,Information Technology,Communications And Computing,Telephones,LF112,25/06/15,357426,266.47,Revenue,VIRGIN MEDIA,107612
North East Lincolnshire Council,http://statistics.data.gov.uk/id/local-authority/00FC,Chief Executive,Ad Joint Delivery,Information Technology,Communications And Computing,Telephones,LF112,29/06/15,358455,319.6,Revenue,VIRGIN MEDIA,107612
North East Lincolnshire Council,http://statistics.data.gov.uk/id/local-authority/00FC,Chief Executive,Ad Joint Delivery,Information Technology,Communications And Computing,Telephones,LF112,19/06/15,357459,835.81,Revenue,VIRGIN MEDIA,107612
North East Lincolnshire Council,http://statistics.data.gov.uk/id/local-authority/00FC,Chief Executive,Ad Joint Delivery,Information Technology,Communications And Computing,Telephones,LF112,25/06/15,357426,696.51,Revenue,VIRGIN MEDIA,107612
North East Lincolnshire Council,http://statistics.data.gov.uk/id/local-authority/00FC,Chief Executive,Ad Joint Delivery,Information Technology,Communications And Computing,Telephones,LF112,29/06/15,358455,835.81,Revenue,VIRGIN MEDIA,107612
North East Lincolnshire Council,http://statistics.data.gov.uk/id/local-authority/00FC,Chief Executive,Ad Joint Delivery,Information Technology,Communications And Computing,Telephones,LF112,18/06/15,357321,274.55,Revenue,VIRGIN MEDIA,107612
North East Lincolnshire Council,http://statistics.data.gov.uk/id/local-authority/00FC,Chief Executive,Ad Joint Delivery,Information Technology,Communications And Computing,Telephones,LF112,30/06/15,358421,253.9,Revenue,VIRGIN MEDIA,107612
North East Lincolnshire Council,http://statistics.data.gov.uk/id/local-authority/00FC,Chief Executive,Ad Joint Delivery,Information Technology,Communications And Computing,Telephones,LF112,16/06/15,357090,3888.29,Revenue,VODAFONE LIMITED,101324
North East Lincolnshire Council,http://statistics.data.gov.uk/id/local-authority/00FC,Chief Executive,Ad Joint Delivery,Information Technology,Communications And Computing,Computer H/Ware - Maintenance,LF106,25/06/15,353679,19957.32,Revenue,IMERJA LTD,102238
North East Lincolnshire Council,http://statistics.data.gov.uk/id/local-authority/00FC,Chief Executive,Ad Joint Delivery,Information Technology,Communications And Computing,Computer H/Ware - Maintenance,LF106,25/06/15,353679,15317.7,Revenue,IMERJA LTD,102238
North East Lincolnshire Council,http://statistics.data.gov.uk/id/local-authority/00FC,Chief Executive,Ad Joint Delivery,Information Technology,Communications And Computing,Computer H/Ware - Maintenance,LF106,25/06/15,353679,7493.35,Revenue,IMERJA LTD,102238
North East Lincolnshire Council,http://statistics.data.gov.uk/id/local-authority/00FC,Chief Executive,Ad Joint Delivery,Information Technology,Communications And Computing,Computer H/Ware - Maintenance,LF106,25/06/15,353678,1782,Revenue,IMERJA LTD,102238
North East Lincolnshire Council,http://statistics.data.gov.uk/id/local-authority/00FC,Chief Executive,Ad Joint Delivery,Information Technology,Communications And Computing,Computer H/Ware - Maintenance,LF106,25/06/15,354616,7114.8,Revenue,IMERJA LTD,102238
North East Lincolnshire Council,http://statistics.data.gov.uk/id/local-authority/00FC,Chief Executive,Ad Joint Delivery,Information Technology,Communications And Computing,Computer H/Ware - Maintenance,LF106,25/06/15,353678,891,Revenue,IMERJA LTD,102238
North East Lincolnshire Council,http://statistics.data.gov.uk/id/local-authority/00FC,Chief Executive,Ad Joint Delivery,Information Technology,Communications And Computing,Computer H/Ware - Maintenance,LF106,15/06/15,356276,5541,Revenue,POWER CONTROL LTD,112737
North East Lincolnshire Council,http://statistics.data.gov.uk/id/local-authority/00FC,Chief Executive,Ad Joint Delivery,Information Technology,Communications And Computing,Computer H/Ware - Purchases,LF105,18/06/15,357324,695.92,Revenue,VIRGIN MEDIA,107612
North East Lincolnshire Council,http://statistics.data.gov.uk/id/local-authority/00FC,Chief Executive,Ad Joint Delivery,Information Technology,Communications And Computing,Computer H/Ware - Purchases,LF105,30/06/15,358433,914.14,Revenue,VIRGIN MEDIA,107612
North East Lincolnshire Council,http://statistics.data.gov.uk/id/local-authority/00FC,Chief Executive,Ad Joint Delivery,Information Technology,Communications And Computing,Computer H/Ware - Purchases,LF105,16/06/15,355115,17068.9,Revenue,DELL COMPUTER CORPORATION LTD,100892
North East Lincolnshire Council,http://statistics.data.gov.uk/id/local-authority/00FC,Chief Executive,Ad Joint Delivery,Information Technology,Communications And Computing,Computer H/Ware - Purchases,LF105,19/06/15,357459,250,Revenue,VIRGIN MEDIA,107612
North East Lincolnshire Council,http://statistics.data.gov.uk/id/local-authority/00FC,Chief Executive,Ad Joint Delivery,Information Technology,Communications And Computing,Computer H/Ware - Purchases,LF105,29/06/15,358455,250,Revenue,VIRGIN MEDIA,107612
North East Lincolnshire Council,http://statistics.data.gov.uk/id/local-authority/00FC,Chief Executive,Ad Joint Delivery,Information Technology,Communications And Computing,Computer H/Ware - Purchases,LF105,19/06/15,357459,1080,Revenue,VIRGIN MEDIA,107612
North East Lincolnshire Council,http://statistics.data.gov.uk/id/local-authority/00FC,Chief Executive,Ad Joint Delivery,Information Technology,Communications And Computing,Computer H/Ware - Purchases,LF105,25/06/15,357426,900,Revenue,VIRGIN MEDIA,107612
North East Lincolnshire Council,http://statistics.data.gov.uk/id/local-authority/00FC,Chief Executive,Ad Joint Delivery,Information Technology,Communications And Computing,Computer H/Ware - Purchases,LF105,29/06/15,358455,1080,Revenue,VIRGIN MEDIA,107612
North East Lincolnshire Council,http://statistics.data.gov.uk/id/local-authority/00FC,Chief Executive,Ad Joint Delivery,Information Technology,Communications And Computing,Computer H/Ware - Purchases,LF105,19/06/15,357459,540,Revenue,VIRGIN MEDIA,107612
North East Lincolnshire Council,http://statistics.data.gov.uk/id/local-authority/00FC,Chief Executive,Ad Joint Delivery,Information Technology,Communications And Computing,Computer H/Ware - Purchases,LF105,25/06/15,357426,450,Revenue,VIRGIN MEDIA,107612
North East Lincolnshire Council,http://statistics.data.gov.uk/id/local-authority/00FC,Chief Executive,Ad Joint Delivery,Information Technology,Communications And Computing,Computer H/Ware - Purchases,LF105,29/06/15,358455,540,Revenue,VIRGIN MEDIA,107612
North East Lincolnshire Council,http://statistics.data.gov.uk/id/local-authority/00FC,Chief Executive,Ad Joint Delivery,Information Technology,Communications And Computing,Computer H/Ware - Purchases,LF105,19/06/15,357459,540,Revenue,VIRGIN MEDIA,107612
North East Lincolnshire Council,http://statistics.data.gov.uk/id/local-authority/00FC,Chief Executive,Ad Joint Delivery,Information Technology,Communications And Computing,Computer H/Ware - Purchases,LF105,25/06/15,357426,450,Revenue,VIRGIN MEDIA,107612
North East Lincolnshire Council,http://statistics.data.gov.uk/id/local-authority/00FC,Chief Executive,Ad Joint Delivery,Information Technology,Communications And Computing,Computer H/Ware - Purchases,LF105,29/06/15,358455,540,Revenue,VIRGIN MEDIA,107612
North East Lincolnshire Council,http://statistics.data.gov.uk/id/local-authority/00FC,Chief Executive,Ad Joint Delivery,Information Technology,Communications And Computing,Computer H/Ware - Purchases,LF105,08/06/15,355059,454.71,Revenue,SPECIALIST COMPUTER CENTRES PLC,110715
North East Lincolnshire Council,http://statistics.data.gov.uk/id/local-authority/00FC,Chief Executive,Ad Joint Delivery,Information Technology,Communications And Computing,Computer H/Ware - Purchases,LF105,08/06/15,355005,2707.2,Revenue,DELL COMPUTER CORPORATION LTD,100892
North East Lincolnshire Council,http://statistics.data.gov.uk/id/local-authority/00FC,Chief Executive,Ad Joint Delivery,Information Technology,Communications And Computing,Computer H/Ware - Purchases,LF105,25/06/15,353680,4910,Revenue,IMERJA LTD,102238
North East Lincolnshire Council,http://statistics.data.gov.uk/id/local-authority/00FC,Chief Executive,Ad Joint Delivery,Information Technology,Communications And Computing,Computer H/Ware - Purchases,LF105,08/06/15,355063,354.09,Revenue,INSIGHT DIRECT (UK) LTD,101011
North East Lincolnshire Council,http://statistics.data.gov.uk/id/local-authority/00FC,Chief Executive,Ad Joint Delivery,Information Technology,Communications And Computing,Computer S/Ware - Maintenance,LF102,18/06/15,357429,13000,Revenue,FIRMSTEP,108310
North East Lincolnshire Council,http://statistics.data.gov.uk/id/local-authority/00FC,Chief Executive,Ad Joint Delivery,Information Technology,Communications And Computing,Computer S/Ware - Maintenance,LF102,08/06/15,355557,900,Revenue,AERIOUS LTD,105670
North East Lincolnshire Council,http://statistics.data.gov.uk/id/local-authority/00FC,Chief Executive,Ad Joint Delivery,Information Technology,Communications And Computing,Computer S/Ware - Maintenance,LF102,29/06/15,354786,3215.46,Revenue,APD COMMUNICATIONS LTD,101972
North East Lincolnshire Council,http://statistics.data.gov.uk/id/local-authority/00FC,Chief Executive,Ad Joint Delivery,Information Technology,Communications And Computing,Computer S/Ware - Maintenance,LF102,30/06/15,358350,2250,Revenue,CLEARSKIES SOFTWARE,106786
North East Lincolnshire Council,http://statistics.data.gov.uk/id/local-authority/00FC,Chief Executive,Ad Joint Delivery,Information Technology,Communications And Computing,Computer S/Ware - Maintenance,LF102,30/06/15,358968,4113.75,Revenue,GEOWISE LIMITED,102016
North East Lincolnshire Council,http://statistics.data.gov.uk/id/local-authority/00FC,Chief Executive,Ad Joint Delivery,Information Technology,Communications And Computing,Computer S/Ware - Maintenance,LF102,30/06/15,358968,2742.5,Revenue,GEOWISE LIMITED,102016
North East Lincolnshire Council,http://statistics.data.gov.uk/id/local-authority/00FC,Chief Executive,Ad Joint Delivery,Information Technology,Communications And Computing,Computer S/Ware - Maintenance,LF102,23/06/15,358064,15917.34,Revenue,MIDLAND SOFTWARE LTD,102633
North East Lincolnshire Council,http://statistics.data.gov.uk/id/local-authority/00FC,Chief Executive,Ad Joint Delivery,Information Technology,Communications And Computing,Computer S/Ware - Maintenance,LF102,25/06/15,349604,2655.92,Revenue,NATIONAL CONSORTIUM FOR EXAMINATION RESULTS,110067
North East Lincolnshire Council,http://statistics.data.gov.uk/id/local-authority/00FC,Chief Executive,Ad Joint Delivery,Information Technology,Communications And Computing,Computer S/Ware - Maintenance,LF102,29/06/15,358448,335,Revenue,AUDITWARE SYSTEMS LIMITED,109453
North East Lincolnshire Council,http://statistics.data.gov.uk/id/local-authority/00FC,Chief Executive,Ad Joint Delivery,Information Technology,Communications And Computing,Computer S/Ware - Maintenance,LF102,30/06/15,358959,1050,Revenue,TRIBAL EDUCATION LIMITED,103641
North East Lincolnshire Council,http://statistics.data.gov.uk/id/local-authority/00FC,Chief Executive,Ad Joint Delivery,Information Technology,Communications And Computing,Internet Connection,LF110,18/06/15,357423,149174.33,Revenue,VIRGIN MEDIA,107612
North East Lincolnshire Council,http://statistics.data.gov.uk/id/local-authority/00FC,Chief Executive,Ad Joint Delivery,Information Technology,Communications And Computing,Internet Connection,LF110,18/06/15,357423,6265,Revenue,VIRGIN MEDIA,107612
North East Lincolnshire Council,http://statistics.data.gov.uk/id/local-authority/00FC,Chief Executive,Ad Joint Delivery,Information Technology,Print Stationery / Gen Off Exp,Photocopier - Running Costs,LD102,02/06/15,353714,453.18,Revenue,UNITED CARLTON OFFICE SYSTEMS LTD,101652
North East Lincolnshire Council,http://statistics.data.gov.uk/id/local-authority/00FC,Chief Executive,Ad Joint Delivery,Information Technology,Print Stationery / Gen Off Exp,Photocopier - Running Costs,LD102,15/06/15,356402,365.54,Revenue,UNITED CARLTON OFFICE SYSTEMS LTD,101652
North East Lincolnshire Council,http://statistics.data.gov.uk/id/local-authority/00FC,Chief Executive,Ad Joint Delivery,Information Technology,Print Stationery / Gen Off Exp,Photocopier - Running Costs,LD102,29/06/15,358013,300.47,Revenue,UNITED CARLTON OFFICE SYSTEMS LTD,101652
North East Lincolnshire Council,http://statistics.data.gov.uk/id/local-authority/00FC,Chief Executive,Ad Joint Delivery,Information Technology,Print Stationery / Gen Off Exp,Photocopier - Running Costs,LD102,08/06/15,355376,264.45,Revenue,UNITED CARLTON OFFICE SYSTEMS LTD,101652
North East Lincolnshire Council,http://statistics.data.gov.uk/id/local-authority/00FC,Chief Executive,Ad Joint Delivery,Information Technology,Print Stationery / Gen Off Exp,Photocopier - Running Costs,LD102,04/06/15,353732,1183.56,Revenue,UNITED CARLTON OFFICE SYSTEMS LTD,101652
North East Lincolnshire Council,http://statistics.data.gov.uk/id/local-authority/00FC,Chief Executive,Ad Joint Delivery,Information Technology,Print Stationery / Gen Off Exp,Photocopier - Running Costs,LD102,11/06/15,355371,711.87,Revenue,UNITED CARLTON OFFICE SYSTEMS LTD,101652
North East Lincolnshire Council,http://statistics.data.gov.uk/id/local-authority/00FC,Chief Executive,Ad Joint Delivery,Information Technology,Print Stationery / Gen Off Exp,Photocopier - Running Costs,LD102,15/06/15,356403,295.89,Revenue,UNITED CARLTON OFFICE SYSTEMS LTD,101652
North East Lincolnshire Council,http://statistics.data.gov.uk/id/local-authority/00FC,Chief Executive,Ad Joint Delivery,Information Technology,Print Stationery / Gen Off Exp,Photocopier - Running Costs,LD102,11/06/15,355378,276.35,Revenue,UNITED CARLTON OFFICE SYSTEMS LTD,101652
North East Lincolnshire Council,http://statistics.data.gov.uk/id/local-authority/00FC,Chief Executive,Ad Joint Delivery,Information Technology,Print Stationery / Gen Off Exp,Photocopier - Running Costs,LD102,30/06/15,358858,307.02,Revenue,UNITED CARLTON OFFICE SYSTEMS LTD,101652
North East Lincolnshire Council,http://statistics.data.gov.uk/id/local-authority/00FC,Chief Executive,Ad Joint Delivery,Information Technology,Print Stationery / Gen Off Exp,Photocopier - Running Costs,LD102,02/06/15,353717,304.13,Revenue,UNITED CARLTON OFFICE SYSTEMS LTD,101652
North East Lincolnshire Council,http://statistics.data.gov.uk/id/local-authority/00FC,Chief Executive,Ad Joint Delivery,Information Technology,Print Stationery / Gen Off Exp,Photocopier - Running Costs,LD102,08/06/15,355418,285.58,Revenue,UNITED CARLTON OFFICE SYSTEMS LTD,101652
North East Lincolnshire Council,http://statistics.data.gov.uk/id/local-authority/00FC,Chief Executive,Ad Joint Delivery,Information Technology,Print Stationery / Gen Off Exp,Photocopier - Running Costs,LD102,19/06/15,357566,402.14,Revenue,UNITED CARLTON OFFICE SYSTEMS LTD,101652
North East Lincolnshire Council,http://statistics.data.gov.uk/id/local-authority/00FC,Chief Executive,Ad Joint Delivery,Information Technology,Print Stationery / Gen Off Exp,Photocopier - Running Costs,LD102,23/06/15,358010,304.31,Revenue,UNITED CARLTON OFFICE SYSTEMS LTD,101652
North East Lincolnshire Council,http://statistics.data.gov.uk/id/local-authority/00FC,Chief Executive,Ad Joint Delivery,Information Technology,Print Stationery / Gen Off Exp,Printing And Stationery,LD103,30/06/15,358825,584.56,Revenue,UNITED CARLTON OFFICE SYSTEMS LTD,101652
North East Lincolnshire Council,http://statistics.data.gov.uk/id/local-authority/00FC,Chief Executive,Ad Joint Delivery,Information Technology,Print Stationery / Gen Off Exp,Printing And Stationery,LD103,30/06/15,358822,336.77,Revenue,UNITED CARLTON OFFICE SYSTEMS LTD,101652
North East Lincolnshire Council,http://statistics.data.gov.uk/id/local-authority/00FC,Chief Executive,Ad Joint Delivery,Information Technology,Print Stationery / Gen Off Exp,Printing And Stationery,LD103,30/06/15,358821,490.36,Revenue,UNITED CARLTON OFFICE SYSTEMS LTD,101652
North East Lincolnshire Council,http://statistics.data.gov.uk/id/local-authority/00FC,Chief Executive,Ad Joint Delivery,Information Technology,Print Stationery / Gen Off Exp,Printing And Stationery,LD103,30/06/15,358820,265.89,Revenue,UNITED CARLTON OFFICE SYSTEMS LTD,101652
North East Lincolnshire Council,http://statistics.data.gov.uk/id/local-authority/00FC,Chief Executive,Ad Joint Delivery,Information Technology,Print Stationery / Gen Off Exp,Printing And Stationery,LD103,30/06/15,358855,257.67,Revenue,UNITED CARLTON OFFICE SYSTEMS LTD,101652
North East Lincolnshire Council,http://statistics.data.gov.uk/id/local-authority/00FC,Chief Executive,Ad Joint Delivery,Information Technology,Print Stationery / Gen Off Exp,Printing And Stationery,LD103,30/06/15,358858,257.31,Revenue,UNITED CARLTON OFFICE SYSTEMS LTD,101652
North East Lincolnshire Council,http://statistics.data.gov.uk/id/local-authority/00FC,Chief Executive,Ad Joint Delivery,Information Technology,Print Stationery / Gen Off Exp,Printing And Stationery,LD103,11/06/15,355423,1152.02,Revenue,UNITED CARLTON OFFICE SYSTEMS LTD,101652
North East Lincolnshire Council,http://statistics.data.gov.uk/id/local-authority/00FC,Chief Executive,Ad Joint Delivery,Information Technology,Print Stationery / Gen Off Exp,Printing And Stationery,LD103,11/06/15,355378,1107.4,Revenue,UNITED CARLTON OFFICE SYSTEMS LTD,101652
North East Lincolnshire Council,http://statistics.data.gov.uk/id/local-authority/00FC,Chief Executive,Ad Joint Delivery,Information Technology,Print Stationery / Gen Off Exp,Printing And Stationery,LD103,08/06/15,355413,1459.54,Revenue,UNITED CARLTON OFFICE SYSTEMS LTD,101652
North East Lincolnshire Council,http://statistics.data.gov.uk/id/local-authority/00FC,Chief Executive,Ad Joint Delivery,Information Technology,Print Stationery / Gen Off Exp,Printing And Stationery,LD103,08/06/15,355376,872.72,Revenue,UNITED CARLTON OFFICE SYSTEMS LTD,101652
North East Lincolnshire Council,http://statistics.data.gov.uk/id/local-authority/00FC,Chief Executive,Ad Joint Delivery,Information Technology,Print Stationery / Gen Off Exp,Printing And Stationery,LD103,11/06/15,355371,428.57,Revenue,UNITED CARLTON OFFICE SYSTEMS LTD,101652
North East Lincolnshire Council,http://statistics.data.gov.uk/id/local-authority/00FC,Chief Executive,Ad Joint Delivery,Information Technology,Print Stationery / Gen Off Exp,Printing And Stationery,LD103,11/06/15,355374,827.78,Revenue,UNITED CARLTON OFFICE SYSTEMS LTD,101652
North East Lincolnshire Council,http://statistics.data.gov.uk/id/local-authority/00FC,Chief Executive,Ad Joint Delivery,Information Technology,Print Stationery / Gen Off Exp,Printing And Stationery,LD103,08/06/15,355415,306.88,Revenue,UNITED CARLTON OFFICE SYSTEMS LTD,101652
North East Lincolnshire Council,http://statistics.data.gov.uk/id/local-authority/00FC,Chief Executive,Ad Joint Delivery,Information Technology,Print Stationery / Gen Off Exp,Printing And Stationery,LD103,08/06/15,355418,767.23,Revenue,UNITED CARLTON OFFICE SYSTEMS LTD,101652
North East Lincolnshire Council,http://statistics.data.gov.uk/id/local-authority/00FC,Chief Executive,Ad Joint Delivery,Information Technology,Print Stationery / Gen Off Exp,Printing And Stationery,LD103,23/06/15,358010,284.28,Revenue,UNITED CARLTON OFFICE SYSTEMS LTD,101652
North East Lincolnshire Council,http://statistics.data.gov.uk/id/local-authority/00FC,Chief Executive,Ad Joint Delivery,Information Technology,Print Stationery / Gen Off Exp,Printing And Stationery,LD103,04/06/15,353722,283.81,Revenue,UNITED CARLTON OFFICE SYSTEMS LTD,101652
North East Lincolnshire Council,http://statistics.data.gov.uk/id/local-authority/00FC,Chief Executive,Ad Joint Delivery,Information Technology,Print Stationery / Gen Off Exp,Printing And Stationery,LD103,30/06/15,358819,410.34,Revenue,UNITED CARLTON OFFICE SYSTEMS LTD,101652
North East Lincolnshire Council,http://statistics.data.gov.uk/id/local-authority/00FC,Chief Executive,Ad Joint Delivery,Leisure Contracts,Rep Alterations Maint Building,Buildings - Repairs And Maint,GA102,30/06/15,358890,3600,Revenue,COFELY WORKPLACE LIMITED,123983
North East Lincolnshire Council,http://statistics.data.gov.uk/id/local-authority/00FC,Chief Executive,Ad Joint Delivery,Leisure Contracts,Rep Alterations Maint Building,Buildings - Repairs And Maint,GA102,02/06/15,353813,11013.6,Revenue,COFELY WORKPLACE LIMITED,123983
North East Lincolnshire Council,http://statistics.data.gov.uk/id/local-authority/00FC,Chief Executive,Ad Joint Delivery,Leisure Contracts,Rep Alterations Maint Building,Buildings - Repairs And Maint,GA102,25/06/15,358150,1515,Revenue,ICE TECH UK,121107
North East Lincolnshire Council,http://statistics.data.gov.uk/id/local-authority/00FC,Chief Executive,Ad Joint Delivery,Leisure Contracts,Energy Costs,Electricity,GB102,15/06/15,356621,6697.92,Revenue,NPOWER LIMITED,101414
North East Lincolnshire Council,http://statistics.data.gov.uk/id/local-authority/00FC,Chief Executive,Ad Joint Delivery,Leisure Contracts,Energy Costs,Electricity,GB102,15/06/15,356622,2935.85,Revenue,NPOWER LIMITED,101414
North East Lincolnshire Council,http://statistics.data.gov.uk/id/local-authority/00FC,Chief Executive,Ad Joint Delivery,Leisure Contracts,Energy Costs,Electricity,GB102,15/06/15,356594,7262.35,Revenue,NPOWER LIMITED,101414
North East Lincolnshire Council,http://statistics.data.gov.uk/id/local-authority/00FC,Chief Executive,Ad Joint Delivery,Leisure Contracts,Energy Costs,Electricity,GB102,15/06/15,356596,4102.34,Revenue,NPOWER LIMITED,101414
North East Lincolnshire Council,http://statistics.data.gov.uk/id/local-authority/00FC,Chief Executive,Ad Joint Delivery,Leisure Contracts,Energy Costs,Electricity,GB102,15/06/15,356620,2170.97,Revenue,NPOWER LIMITED,101414
North East Lincolnshire Council,http://statistics.data.gov.uk/id/local-authority/00FC,Chief Executive,Ad Joint Delivery,Leisure Contracts,Energy Costs,Electricity,GB102,01/06/15,353559,7216.87,Revenue,NPOWER LIMITED,101414
North East Lincolnshire Council,http://statistics.data.gov.uk/id/local-authority/00FC,Chief Executive,Ad Joint Delivery,Leisure Contracts,Energy Costs,Electricity,GB102,01/06/15,353561,3640.47,Revenue,NPOWER LIMITED,101414
North East Lincolnshire Council,http://statistics.data.gov.uk/id/local-authority/00FC,Chief Executive,Ad Joint Delivery,Leisure Contracts,Energy Costs,Electricity,GB102,01/06/15,353563,2288.19,Revenue,NPOWER LIMITED,101414
North East Lincolnshire Council,http://statistics.data.gov.uk/id/local-authority/00FC,Chief Executive,Ad Joint Delivery,Leisure Contracts,Energy Costs,Electricity,GB102,01/06/15,353560,2728.66,Revenue,NPOWER LIMITED,101414
North East Lincolnshire Council,http://statistics.data.gov.uk/id/local-authority/00FC,Chief Executive,Ad Joint Delivery,Leisure Contracts,Energy Costs,Electricity,GB102,01/06/15,353562,6574,Revenue,NPOWER LIMITED,101414
North East Lincolnshire Council,http://statistics.data.gov.uk/id/local-authority/00FC,Chief Executive,Ad Joint Delivery,Leisure Contracts,Private Contractors,Third Party Prov - Private,PH101,04/06/15,354714,2372.29,Revenue,LEGEND LEISURE SERVICES LTD,121539
North East Lincolnshire Council,http://statistics.data.gov.uk/id/local-authority/00FC,Chief Executive,Ad Joint Delivery,Leisure Contracts,Private Contractors,Third Party Prov - Private,PH101,30/06/15,358967,2383.54,Revenue,LEGEND LEISURE SERVICES LTD,121539
North East Lincolnshire Council,http://statistics.data.gov.uk/id/local-authority/00FC,Chief Executive,Ad Joint Delivery,Leisure Contracts,Private Contractors,Third Party Prov - Private,PH101,11/06/15,354794,2919.58,Revenue,LEGEND CLUB MANAGMENT SYSTEMS (UK) LTD,119144
North East Lincolnshire Council,http://statistics.data.gov.uk/id/local-authority/00FC,Chief Executive,Ad Joint Delivery,Human Resources,Indirect Employee Expenses,Disclosure Checks,EB124,11/06/15,355505,7480,Revenue,DISCLOSURE & BARRING SERVICE,119180
North East Lincolnshire Council,http://statistics.data.gov.uk/id/local-authority/00FC,Chief Executive,Ad Joint Delivery,Human Resources,Indirect Employee Expenses,Staff Training,EB122,29/06/15,357677,694.5,Revenue,THE COLOUR WORKS INTERNATIONAL LTD,109018
North East Lincolnshire Council,http://statistics.data.gov.uk/id/local-authority/00FC,Chief Executive,Ad Joint Delivery,Human Resources,Indirect Employee Expenses,Staff Training,EB122,30/06/15,358965,1499.6,Revenue,CAPITA PROPERTY AND INFRASTRUCTURE LTD,130236
North East Lincolnshire Council,http://statistics.data.gov.uk/id/local-authority/00FC,Chief Executive,Ad Joint Delivery,Human Resources,Indirect Employee Expenses,Staff Training,EB122,11/06/15,356491,1265,Revenue,LAW SOCIETY,123683
North East Lincolnshire Council,http://statistics.data.gov.uk/id/local-authority/00FC,Chief Executive,Ad Joint Delivery,Human Resources,Indirect Employee Expenses,Staff Training,EB122,23/06/15,357638,416,Revenue,THE ASSOCIATION OF DIRECTORS OF CHILDREN'S,101800
North East Lincolnshire Council,http://statistics.data.gov.uk/id/local-authority/00FC,Chief Executive,Ad Joint Delivery,Human Resources,Indirect Employee Expenses,Staff Training,EB122,11/06/15,354459,4000,Revenue,LINCS INSPIRE LIMITED,129063
North East Lincolnshire Council,http://statistics.data.gov.uk/id/local-authority/00FC,Chief Executive,Ad Joint Delivery,Human Resources,Indirect Employee Expenses,Staff Training,EB122,11/06/15,354665,2500,Revenue,THE UNIVERSITY OF YORK,101488
North East Lincolnshire Council,http://statistics.data.gov.uk/id/local-authority/00FC,Chief Executive,Ad Joint Delivery,Human Resources,Indirect Employee Expenses,Staff Training,EB122,11/06/15,354780,292.5,Revenue,CARE PLUS GROUP,106467
North East Lincolnshire Council,http://statistics.data.gov.uk/id/local-authority/00FC,Chief Executive,Ad Joint Delivery,Human Resources,Indirect Employee Expenses,Staff Training,EB122,02/06/15,353786,300,Revenue,MR NIGEL K BISHOP,109708
North East Lincolnshire Council,http://statistics.data.gov.uk/id/local-authority/00FC,Chief Executive,Ad Joint Delivery,Human Resources,Indirect Employee Expenses,Staff Training,EB122,18/06/15,357121,1208.75,Revenue,CHANTMARLE CONSULTANCY LTD,127460
North East Lincolnshire Council,http://statistics.data.gov.uk/id/local-authority/00FC,Chief Executive,Ad Joint Delivery,Human Resources,Indirect Employee Expenses,Staff Training,EB122,18/06/15,357309,595,Revenue,UNIVERSITY OF NOTTINGHAM,106382
North East Lincolnshire Council,http://statistics.data.gov.uk/id/local-authority/00FC,Chief Executive,Ad Joint Delivery,Human Resources,Indirect Employee Expenses,Staff Training,EB122,16/06/15,357457,346.5,Revenue,GOVNET COMMUNICATIONS,101546
North East Lincolnshire Council,http://statistics.data.gov.uk/id/local-authority/00FC,Chief Executive,Ad Joint Delivery,Human Resources,Indirect Employee Expenses,Staff Training,EB122,11/06/15,354667,421.1,Revenue,SUE WOOLMORE,111635
North East Lincolnshire Council,http://statistics.data.gov.uk/id/local-authority/00FC,Chief Executive,Ad Joint Delivery,Human Resources,Indirect Employee Expenses,Staff Training,EB122,11/06/15,354691,300,Revenue,WOMENS AID,100326
North East Lincolnshire Council,http://statistics.data.gov.uk/id/local-authority/00FC,Chief Executive,Ad Joint Delivery,Human Resources,Indirect Employee Expenses,Staff Training,EB122,11/06/15,355142,400,Revenue,WOMENS AID,100326
North East Lincolnshire Council,http://statistics.data.gov.uk/id/local-authority/00FC,Chief Executive,Ad Joint Delivery,Human Resources,Indirect Employee Expenses,Medical Expenses - Employees,EB112,02/06/15,353799,274.5,Revenue,EA BROADBURN DISPENSING CHEMIST,101135
North East Lincolnshire Council,http://statistics.data.gov.uk/id/local-authority/00FC,Chief Executive,Ad Joint Delivery,Human Resources,Indirect Employee Expenses,Medical Expenses - Employees,EB112,02/06/15,353793,338.93,Revenue,N LINCS & GOOLE HOSPITALS NHS,111074
North East Lincolnshire Council,http://statistics.data.gov.uk/id/local-authority/00FC,Chief Executive,Ad Joint Delivery,Human Resources,Indirect Employee Expenses,Medical Expenses - Employees,EB112,29/06/15,358634,266.28,Revenue,N LINCS & GOOLE HOSPITALS NHS,111074
North East Lincolnshire Council,http://statistics.data.gov.uk/id/local-authority/00FC,Chief Executive,Ad Joint Delivery,Human Resources,Indirect Employee Expenses,Medical Expenses - Employees,EB112,30/06/15,358960,830,Revenue,OCCUPATIONAL HEALTH SERVICES LTD,112584
North East Lincolnshire Council,http://statistics.data.gov.uk/id/local-authority/00FC,Chief Executive,Ad Joint Delivery,Human Resources,Indirect Employee Expenses,Medical Expenses - Employees,EB112,29/06/15,357899,950,Revenue,NORTH LINCOLNSHIRE COUNCIL,101186
North East Lincolnshire Council,http://statistics.data.gov.uk/id/local-authority/00FC,Chief Executive,Ad Joint Delivery,Human Resources,Indirect Employee Expenses,Staff Training,EB122,11/06/15,355015,800,Revenue,AD LITEM LEGAL SERVICES,104447
North East Lincolnshire Council,http://statistics.data.gov.uk/id/local-authority/00FC,Chief Executive,Ad Joint Delivery,Human Resources,Indirect Employee Expenses,Staff Training,EB122,11/06/15,355058,440,Revenue,FOREFRONT TRAINING LTD,105501
North East Lincolnshire Council,http://statistics.data.gov.uk/id/local-authority/00FC,Chief Executive,Ad Joint Delivery,Human Resources,Communications And Computing,Computer S/Ware - Maintenance,LF102,04/06/15,354821,3700,Revenue,PHASE 3 CONSULTING LTD,129793
North East Lincolnshire Council,http://statistics.data.gov.uk/id/local-authority/00FC,Chief Executive,Ad Joint Delivery,Central Commissioning & Delive,Catering,Purchase School Meals,LB103,03/06/15,352019,-18,Revenue,CYGNET CATERING,108880
North East Lincolnshire Council,http://statistics.data.gov.uk/id/local-authority/00FC,Chief Executive,Ad Joint Delivery,Central Commissioning & Delive,Catering,Purchase School Meals,LB103,18/06/15,357386,138883.7,Revenue,CYGNET CATERING,108880
North East Lincolnshire Council,http://statistics.data.gov.uk/id/local-authority/00FC,Chief Executive,Ad Joint Delivery,Central Commissioning & Delive,Catering,Purchase School Meals,LB103,18/06/15,357460,-86.1,Revenue,CYGNET CATERING,108880
North East Lincolnshire Council,http://statistics.data.gov.uk/id/local-authority/00FC,Chief Executive,Ad Joint Delivery,Central Commissioning & Delive,Catering,Purchase School Meals,LB103,18/06/15,357461,-149.1,Revenue,CYGNET CATERING,108880
North East Lincolnshire Council,http://statistics.data.gov.uk/id/local-authority/00FC,Chief Executive,Ad Joint Delivery,Central Commissioning & Delive,Catering,Purchase School Meals,LB103,18/06/15,357463,-18,Revenue,CYGNET CATERING,108880
North East Lincolnshire Council,http://statistics.data.gov.uk/id/local-authority/00FC,Chief Executive,Ad Joint Delivery,Central Commissioning & Delive,Catering,Purchase School Meals,LB103,18/06/15,357439,30836.4,Revenue,CYGNET CATERING,108880
North East Lincolnshire Council,http://statistics.data.gov.uk/id/local-authority/00FC,Chief Executive,Ad Joint Delivery,Central Commissioning & Delive,Private Contractors,Contract Payments,PH105,25/06/15,358060,8608.8,Revenue,MATRIX SCM LTD,108117
North East Lincolnshire Council,http://statistics.data.gov.uk/id/local-authority/00FC,Chief Executive,Ad Joint Delivery,Central Commissioning & Delive,Private Contractors,Contract Payments,PH105,08/06/15,355037,581.73,Revenue,MATRIX SCM LTD,108117
North East Lincolnshire Council,http://statistics.data.gov.uk/id/local-authority/00FC,Chief Executive,Ad Joint Delivery,Central Commissioning & Delive,Private Contractors,Contract Payments,PH105,08/06/15,355039,6949.89,Revenue,MATRIX SCM LTD,108117
North East Lincolnshire Council,http://statistics.data.gov.uk/id/local-authority/00FC,Chief Executive,Ad Joint Delivery,Central Commissioning & Delive,Private Contractors,Contract Payments,PH105,18/06/15,357318,22255.34,Revenue,MATRIX SCM LTD,108117
North East Lincolnshire Council,http://statistics.data.gov.uk/id/local-authority/00FC,Chief Executive,Ad Joint Delivery,Central Commissioning & Delive,Private Contractors,Contract Payments,PH105,18/06/15,357311,3835.45,Revenue,MATRIX SCM LTD,108117
North East Lincolnshire Council,http://statistics.data.gov.uk/id/local-authority/00FC,Chief Executive,Ad Joint Delivery,Central Commissioning & Delive,Private Contractors,Contract Payments,PH105,18/06/15,357330,6227.41,Revenue,MATRIX SCM LTD,108117
North East Lincolnshire Council,http://statistics.data.gov.uk/id/local-authority/00FC,Chief Executive,Ad Joint Delivery,Central Commissioning & Delive,Private Contractors,Contract Payments,PH105,02/06/15,354972,330.78,Revenue,MATRIX SCM LTD,108117
North East Lincolnshire Council,http://statistics.data.gov.uk/id/local-authority/00FC,Chief Executive,Ad Joint Delivery,Central Commissioning & Delive,Private Contractors,Contract Payments,PH105,02/06/15,354973,14387.98,Revenue,MATRIX SCM LTD,108117
North East Lincolnshire Council,http://statistics.data.gov.uk/id/local-authority/00FC,Chief Executive,Ad Joint Delivery,Bus Support & Customer Serv,Print Stationery / Gen Off Exp,Printing And Stationery,LD103,25/06/15,355349,-0.6,Revenue,LYRECO UK LIMITED,101120
North East Lincolnshire Council,http://statistics.data.gov.uk/id/local-authority/00FC,Chief Executive,Ad Joint Delivery,Bus Support & Customer Serv,Print Stationery / Gen Off Exp,Printing And Stationery,LD103,25/06/15,355349,-1.3,Revenue,LYRECO UK LIMITED,101120
North East Lincolnshire Council,http://statistics.data.gov.uk/id/local-authority/00FC,Chief Executive,Ad Joint Delivery,Bus Support & Customer Serv,Print Stationery / Gen Off Exp,Printing And Stationery,LD103,25/06/15,355349,-0.5,Revenue,LYRECO UK LIMITED,101120
North East Lincolnshire Council,http://statistics.data.gov.uk/id/local-authority/00FC,Chief Executive,Ad Joint Delivery,Bus Support & Customer Serv,Print Stationery / Gen Off Exp,Printing And Stationery,LD103,25/06/15,355349,-59.39,Revenue,LYRECO UK LIMITED,101120
North East Lincolnshire Council,http://statistics.data.gov.uk/id/local-authority/00FC,Chief Executive,Ad Joint Delivery,Bus Support & Customer Serv,Print Stationery / Gen Off Exp,Printing And Stationery,LD103,25/06/15,355349,-13.9,Revenue,LYRECO UK LIMITED,101120
North East Lincolnshire Council,http://statistics.data.gov.uk/id/local-authority/00FC,Chief Executive,Ad Joint Delivery,Bus Support & Customer Serv,Print Stationery / Gen Off Exp,Printing And Stationery,LD103,25/06/15,355349,-93.34,Revenue,LYRECO UK LIMITED,101120
North East Lincolnshire Council,http://statistics.data.gov.uk/id/local-authority/00FC,Chief Executive,Ad Joint Delivery,Bus Support & Customer Serv,Print Stationery / Gen Off Exp,Printing And Stationery,LD103,25/06/15,355349,-3.67,Revenue,LYRECO UK LIMITED,101120
North East Lincolnshire Council,http://statistics.data.gov.uk/id/local-authority/00FC,Chief Executive,Ad Joint Delivery,Bus Support & Customer Serv,Print Stationery / Gen Off Exp,Printing And Stationery,LD103,25/06/15,355349,-7.98,Revenue,LYRECO UK LIMITED,101120
North East Lincolnshire Council,http://statistics.data.gov.uk/id/local-authority/00FC,Chief Executive,Ad Joint Delivery,Bus Support & Customer Serv,Print Stationery / Gen Off Exp,Printing And Stationery,LD103,25/06/15,355349,-2.42,Revenue,LYRECO UK LIMITED,101120
North East Lincolnshire Council,http://statistics.data.gov.uk/id/local-authority/00FC,Chief Executive,Ad Joint Delivery,Bus Support & Customer Serv,Print Stationery / Gen Off Exp,Printing And Stationery,LD103,25/06/15,355349,-34.18,Revenue,LYRECO UK LIMITED,101120
North East Lincolnshire Council,http://statistics.data.gov.uk/id/local-authority/00FC,Chief Executive,Ad Joint Delivery,Bus Support & Customer Serv,Equip / Furniture / Materials,Goods For Resale,LA123,15/06/15,355863,1067,Revenue,NORTHGATE PUBLIC SERVICES (UK) LTD,101841
North East Lincolnshire Council,http://statistics.data.gov.uk/id/local-authority/00FC,Chief Executive,Ad Joint Delivery,Bus Support & Customer Serv,Private Contractors,External Security Services,PH103,11/06/15,356259,270.19,Revenue,ALLPAY LIMITED,112919
North East Lincolnshire Council,http://statistics.data.gov.uk/id/local-authority/00FC,Chief Executive,Ad Joint Delivery,Bus Support & Customer Serv,Private Contractors,External Security Services,PH103,11/06/15,356256,5035.85,Revenue,ALLPAY LIMITED,112919
North East Lincolnshire Council,http://statistics.data.gov.uk/id/local-authority/00FC,Chief Executive,Ad Joint Delivery,Bus Support & Customer Serv,Communications And Computing,Postage,LF111,30/06/15,358689,260,Revenue,ROYAL MAIL GROUP PLC,101082
North East Lincolnshire Council,http://statistics.data.gov.uk/id/local-authority/00FC,Chief Executive,Ad Joint Delivery,Bus Support & Customer Serv,Communications And Computing,Postage,LF111,04/06/15,354833,1286.22,Revenue,ROYAL MAIL GROUP PLC,101082
North East Lincolnshire Council,http://statistics.data.gov.uk/id/local-authority/00FC,Chief Executive,Ad Joint Delivery,Bus Support & Customer Serv,Communications And Computing,Postage,LF111,19/06/15,357815,2122.9,Revenue,ROYAL MAIL GROUP PLC,101082
North East Lincolnshire Council,http://statistics.data.gov.uk/id/local-authority/00FC,Chief Executive,Ad Joint Delivery,Bus Support & Customer Serv,Communications And Computing,Postage,LF111,29/06/15,358771,1389.73,Revenue,ROYAL MAIL GROUP PLC,101082
North East Lincolnshire Council,http://statistics.data.gov.uk/id/local-authority/00FC,Chief Executive,Ad Joint Delivery,Bus Support & Customer Serv,Communications And Computing,Postage,LF111,30/06/15,358775,1197.89,Revenue,ROYAL MAIL GROUP PLC,101082
North East Lincolnshire Council,http://statistics.data.gov.uk/id/local-authority/00FC,Chief Executive,Ad Joint Delivery,Bus Support & Customer Serv,Communications And Computing,Postage,LF111,25/06/15,358354,400.05,Revenue,TWOFOLD MAILING LTD,105163
North East Lincolnshire Council,http://statistics.data.gov.uk/id/local-authority/00FC,Chief Executive,Ad Joint Delivery,Bus Support & Customer Serv,Communications And Computing,Postage,LF111,02/06/15,354410,1236.57,Revenue,NEOPOST LTD,100822
North East Lincolnshire Council,http://statistics.data.gov.uk/id/local-authority/00FC,Chief Executive,Ad Joint Delivery,Bus Support & Customer Serv,Communications And Computing,Postage,LF111,01/06/15,352650,17968.78,Revenue,ROYAL MAIL GROUP PLC,101082
North East Lincolnshire Council,http://statistics.data.gov.uk/id/local-authority/00FC,Chief Executive,Ad Joint Delivery,Bus Support & Customer Serv,Communications And Computing,Postage,LF111,01/06/15,354330,2862.23,Revenue,ROYAL MAIL GROUP PLC,101082
North East Lincolnshire Council,http://statistics.data.gov.uk/id/local-authority/00FC,Chief Executive,Ad Joint Delivery,Bus Support & Customer Serv,Communications And Computing,Postage,LF111,04/06/15,355136,-8744.46,Revenue,ROYAL MAIL GROUP PLC,101082
North East Lincolnshire Council,http://statistics.data.gov.uk/id/local-authority/00FC,Chief Executive,Ad Joint Delivery,Bus Support & Customer Serv,Communications And Computing,Postage,LF111,08/06/15,355114,2244.77,Revenue,ROYAL MAIL GROUP PLC,101082
North East Lincolnshire Council,http://statistics.data.gov.uk/id/local-authority/00FC,Chief Executive,Ad Joint Delivery,Bus Support & Customer Serv,Communications And Computing,Postage,LF111,15/06/15,357069,-163.8,Revenue,ROYAL MAIL GROUP PLC,101082
North East Lincolnshire Council,http://statistics.data.gov.uk/id/local-authority/00FC,Chief Executive,Ad Joint Delivery,Bus Support & Customer Serv,Communications And Computing,Postage,LF111,18/06/15,357424,1517.04,Revenue,ROYAL MAIL GROUP PLC,101082
North East Lincolnshire Council,http://statistics.data.gov.uk/id/local-authority/00FC,Chief Executive,Ad Joint Delivery,Bus Support & Customer Serv,Communications And Computing,Postage,LF111,19/06/15,357944,1286.25,Revenue,ROYAL MAIL GROUP PLC,101082
North East Lincolnshire Council,http://statistics.data.gov.uk/id/local-authority/00FC,Chief Executive,Ad Joint Delivery,Bus Support & Customer Serv,Communications And Computing,Postage,LF111,29/05/15,354369,298.25,Revenue,ROYAL MAIL GROUP PLC,101082
North East Lincolnshire Council,http://statistics.data.gov.uk/id/local-authority/00FC,Chief Executive,Ad Joint Delivery,Bus Support & Customer Serv,Communications And Computing,Postage,LF111,25/06/15,358372,298.25,Revenue,ROYAL MAIL GROUP PLC,101082
North East Lincolnshire Council,http://statistics.data.gov.uk/id/local-authority/00FC,Chief Executive,Ad Governance And Democracy,Democratic Services,Rents,Rent,GC101,08/06/15,355395,300,Revenue,GRIMSBY TOWN FOOTBALL CLUB,100646
North East Lincolnshire Council,http://statistics.data.gov.uk/id/local-authority/00FC,Chief Executive,Ad Governance And Democracy,Democratic Services,Print Stationery / Gen Off Exp,Printing And Stationery,LD103,11/06/15,355353,710,Revenue,PRINT IMAGE FACILITIES LLP,125574
North East Lincolnshire Council,http://statistics.data.gov.uk/id/local-authority/00FC,Chief Executive,Ad Governance And Democracy,Democratic Services,Print Stationery / Gen Off Exp,Printing And Stationery,LD103,02/06/15,353906,14352.63,Revenue,PRINT IMAGE NETWORK LTD,103724
North East Lincolnshire Council,http://statistics.data.gov.uk/id/local-authority/00FC,Chief Executive,Ad Governance And Democracy,Democratic Services,Print Stationery / Gen Off Exp,Printing And Stationery,LD103,25/06/15,358186,7958.53,Revenue,PRINT IMAGE NETWORK LTD,103724
North East Lincolnshire Council,http://statistics.data.gov.uk/id/local-authority/00FC,Chief Executive,Ad Governance And Democracy,Democratic Services,Print Stationery / Gen Off Exp,Printing And Stationery,LD103,08/06/15,355356,575.7,Revenue,PRINT IMAGE NETWORK LTD,103724
North East Lincolnshire Council,http://statistics.data.gov.uk/id/local-authority/00FC,Chief Executive,Ad Governance And Democracy,Democratic Services,Print Stationery / Gen Off Exp,Printing And Stationery,LD103,02/06/15,353904,452,Revenue,PRINT IMAGE NETWORK LTD,103724
North East Lincolnshire Council,http://statistics.data.gov.uk/id/local-authority/00FC,Chief Executive,Ad Governance And Democracy,Democratic Services,Print Stationery / Gen Off Exp,Printing And Stationery,LD103,02/06/15,353905,425,Revenue,PRINT IMAGE NETWORK LTD,103724
North East Lincolnshire Council,http://statistics.data.gov.uk/id/local-authority/00FC,Chief Executive,Ad Governance And Democracy,Democratic Services,Print Stationery / Gen Off Exp,Printing And Stationery,LD103,25/06/15,358182,1261.5,Revenue,PRINT IMAGE NETWORK LTD,103724
North East Lincolnshire Council,http://statistics.data.gov.uk/id/local-authority/00FC,Chief Executive,Ad Governance And Democracy,Democratic Services,Print Stationery / Gen Off Exp,Printing And Stationery,LD103,25/06/15,358185,6343.72,Revenue,PRINT IMAGE NETWORK LTD,103724
North East Lincolnshire Council,http://statistics.data.gov.uk/id/local-authority/00FC,Chief Executive,Ad Governance And Democracy,Democratic Services,Communications And Computing,Postage,LF111,25/06/15,358184,505.92,Revenue,ROYAL MAIL GROUP PLC,101082
North East Lincolnshire Council,http://statistics.data.gov.uk/id/local-authority/00FC,Chief Executive,Ad Governance And Democracy,Democratic Services,Communications And Computing,Postage,LF111,02/06/15,353903,9189.69,Revenue,ROYAL MAIL GROUP PLC,101082
North East Lincolnshire Council,http://statistics.data.gov.uk/id/local-authority/00FC,Chief Executive,Ad Governance And Democracy,Democratic Services,Communications And Computing,Postage,LF111,04/06/15,354329,3614.03,Revenue,ROYAL MAIL GROUP PLC,101082
North East Lincolnshire Council,http://statistics.data.gov.uk/id/local-authority/00FC,Chief Executive,Ad Governance And Democracy,Democratic Services,Private Contractors,Third Party Prov - Private,PH101,04/06/15,354952,2370,Revenue,HARVERLEA CONSULTING LTD,105303
North East Lincolnshire Council,http://statistics.data.gov.uk/id/local-authority/00FC,Chief Executive,Ad Governance And Democracy,Registrars,Customer And Client Receipts,Fees/Chrgs-O/Side Scope Vat 4,VC125,18/06/15,357421,1700,Revenue,CLEETHORPES CHARTER TRUSTEES,101604
North East Lincolnshire Council,http://statistics.data.gov.uk/id/local-authority/00FC,Chief Executive,Ad Governance And Democracy,Town Hall,Contract Hire-Operating Leases,Vehicles - Contract Hire,JC101,29/06/15,358649,669.5,Revenue,APEX CARS,102226
North East Lincolnshire Council,http://statistics.data.gov.uk/id/local-authority/00FC,Chief Executive,Ad Governance And Democracy,Town Hall,Clothes Uniforms And Laundry,Uniforms,LC102,15/06/15,356357,-55.76,Revenue,ARCO LTD,100509
North East Lincolnshire Council,http://statistics.data.gov.uk/id/local-authority/00FC,Chief Executive,Ad Governance And Democracy,Communications And Marketing,Equip / Furniture / Materials,Equipment - Purchase,LA101,02/06/15,354417,250,Revenue,APCOM,109691
North East Lincolnshire Council,http://statistics.data.gov.uk/id/local-authority/00FC,Chief Executive,Ad Governance And Democracy,Communications And Marketing,Equip / Furniture / Materials,Equipment - Purchase,LA101,11/06/15,351872,442.76,Revenue,ANTALIS LTD,124930
North East Lincolnshire Council,http://statistics.data.gov.uk/id/local-authority/00FC,Chief Executive,Ad Governance And Democracy,Communications And Marketing,Equip / Furniture / Materials,Equipment - Purchase,LA101,11/06/15,354650,346.4,Revenue,ANTALIS LTD,124930
North East Lincolnshire Council,http://statistics.data.gov.uk/id/local-authority/00FC,Chief Executive,Ad Governance And Democracy,Communications And Marketing,Equip / Furniture / Materials,Equipment - Purchase,LA101,18/06/15,357099,340,Revenue,ANTALIS LTD,124930
North East Lincolnshire Council,http://statistics.data.gov.uk/id/local-authority/00FC,Chief Executive,Ad Governance And Democracy,Communications And Marketing,Equip / Furniture / Materials,Equipment - Purchase,LA101,25/06/15,357467,-31.43,Revenue,ELLIOTT BAXTER & COMPANY LIMITED,101996
North East Lincolnshire Council,http://statistics.data.gov.uk/id/local-authority/00FC,Chief Executive,Ad Governance And Democracy,Communications And Marketing,Equip / Furniture / Materials,Equipment - Purchase,LA101,30/06/15,358811,389.5,Revenue,ANTALIS LTD,124930
North East Lincolnshire Council,http://statistics.data.gov.uk/id/local-authority/00FC,Chief Executive,Ad Governance And Democracy,Communications And Marketing,Print Stationery / Gen Off Exp,Photocopier - Running Costs,LD102,11/06/15,355007,5753.77,Revenue,XEROX (UK) LIMITED,100953
North East Lincolnshire Council,http://statistics.data.gov.uk/id/local-authority/00FC,Chief Executive,Ad Governance And Democracy,Communications And Marketing,Print Stationery / Gen Off Exp,Photocopier - Running Costs,LD102,11/06/15,355008,263.74,Revenue,XEROX (UK) LIMITED,100953
North East Lincolnshire Council,http://statistics.data.gov.uk/id/local-authority/00FC,Chief Executive,Ad Governance And Democracy,Communications And Marketing,Print Stationery / Gen Off Exp,Photocopier - Running Costs,LD102,30/06/15,358411,1084.9,Revenue,UNITED CARLTON OFFICE SYSTEMS LTD,101652
North East Lincolnshire Council,http://statistics.data.gov.uk/id/local-authority/00FC,Chief Executive,Ad Governance And Democracy,Communications And Marketing,Print Stationery / Gen Off Exp,Photocopier - Running Costs,LD102,30/06/15,358390,760,Revenue,UNITED CARLTON OFFICE SYSTEMS LTD,101652
North East Lincolnshire Council,http://statistics.data.gov.uk/id/local-authority/00FC,Chief Executive,Ad Governance And Democracy,Communications And Marketing,Private Contractors,Third Party Prov - Private,PH101,29/06/15,357696,1480,Revenue,HOUND ENVELOPES LTD,110120
North East Lincolnshire Council,http://statistics.data.gov.uk/id/local-authority/00FC,Chief Executive,Ad Governance And Democracy,Communications And Marketing,Private Contractors,Third Party Prov - Private,PH101,18/06/15,356371,252,Revenue,SYSTEMATIC PRINT MANAGEMENT LTD,101147
North East Lincolnshire Council,http://statistics.data.gov.uk/id/local-authority/00FC,Chief Executive,Ad Governance And Democracy,Communications And Marketing,Private Contractors,Third Party Prov - Private,PH101,08/06/15,353785,350,Revenue,AR PRINTING LTD,100596
North East Lincolnshire Council,http://statistics.data.gov.uk/id/local-authority/00FC,Chief Executive,Ad Governance And Democracy,Communications And Marketing,Private Contractors,Third Party Prov - Private,PH101,30/06/15,358865,465,Revenue,SYSTEMATIC PRINT MANAGEMENT LTD,101147
North East Lincolnshire Council,http://statistics.data.gov.uk/id/local-authority/00FC,Chief Executive,Ad Governance And Democracy,Communications And Marketing,Private Contractors,Third Party Prov - Private,PH101,11/06/15,355370,360,Revenue,TOTAL SIGNS AND GRAPHICS LTD,104775
North East Lincolnshire Council,http://statistics.data.gov.uk/id/local-authority/00FC,Chief Executive,Ad Governance And Democracy,Communications And Marketing,Private Contractors,Third Party Prov - Private,PH101,25/06/15,358033,1885,Revenue,SYSTEMATIC PRINT MANAGEMENT LTD,101147
North East Lincolnshire Council,http://statistics.data.gov.uk/id/local-authority/00FC,Chief Executive,Ad Governance And Democracy,Communications And Marketing,Private Contractors,Third Party Prov - Private,PH101,25/06/15,356604,738.75,Revenue,TOTAL SIGNS AND GRAPHICS LTD,104775
North East Lincolnshire Council,http://statistics.data.gov.uk/id/local-authority/00FC,Chief Executive,Ad Governance And Democracy,Communications And Marketing,Private Contractors,Third Party Prov - Private,PH101,29/05/15,352464,1276,Revenue,ALPHA CARD COMPACT MEDIA LTD,130094
North East Lincolnshire Council,http://statistics.data.gov.uk/id/local-authority/00FC,Chief Executive,Ad Governance And Democracy,Communications And Marketing,Direct Employee Expenses,Agency Staff,EA105,08/06/15,355119,2560,Revenue,WALTON MEDIA LTD,126989
North East Lincolnshire Council,http://statistics.data.gov.uk/id/local-authority/00FC,Chief Executive,Ad Governance And Democracy,Communications And Marketing,Print Stationery / Gen Off Exp,Printing And Stationery,LD103,30/06/15,358977,1000,Revenue,LOCAL WORLD LIMITED,118774
North East Lincolnshire Council,http://statistics.data.gov.uk/id/local-authority/00FC,Chief Executive,Ad Governance And Democracy,Communications And Marketing,Print Stationery / Gen Off Exp,Printing And Stationery,LD103,11/06/15,355894,1475,Revenue,MOTION PICTURE LICENSING COMPANY,101852
North East Lincolnshire Council,http://statistics.data.gov.uk/id/local-authority/00FC,Chief Executive,Ad Governance And Democracy,Communications And Marketing,Print Stationery / Gen Off Exp,Printing And Stationery,LD103,29/06/15,358424,3992,Revenue,ACCESS INTELLIGENCE MEDIA AND COMMUNICATIONS,109832
North East Lincolnshire Council,http://statistics.data.gov.uk/id/local-authority/00FC,Chief Executive,Ad Governance And Democracy,Strategy Change & Improvement,Private Contractors,Third Party Prov - Private,PH101,23/06/15,357691,57500,Revenue,GY/CLEE & DIST CITIZENS,101013
North East Lincolnshire Council,http://statistics.data.gov.uk/id/local-authority/00FC,Chief Executive,Ad Law,Coroners,Miscellaneous Expenses,Other Expenses General,LL119,16/06/15,357134,1050,Revenue,REDACTED PERSONAL INFORMATION,REDACTED PERSONAL INFORMATION
North East Lincolnshire Council,http://statistics.data.gov.uk/id/local-authority/00FC,Chief Executive,Ad Law,Coroners,Other Agencies,Mortuary Storage Charges,PJ156,11/06/15,356082,2420,Revenue,SHEFFIELD CHILDREN'S NHS TRUST,100955
North East Lincolnshire Council,http://statistics.data.gov.uk/id/local-authority/00FC,Chief Executive,Ad Law,Coroners,Other Agencies,Mortuary Storage Charges,PJ156,11/06/15,356083,982,Revenue,SHEFFIELD CITY COUNCIL,101195
North East Lincolnshire Council,http://statistics.data.gov.uk/id/local-authority/00FC,Chief Executive,Ad Law,Coroners,Other Agencies,Mortuary Storage Charges,PJ156,02/06/15,353790,3861,Revenue,N LINCS & GOOLE HOSPITALS NHS,111074
North East Lincolnshire Council,http://statistics.data.gov.uk/id/local-authority/00FC,Chief Executive,Ad Law,Coroners,Other Agencies,Mortuary Storage Charges,PJ156,02/06/15,353792,4914,Revenue,N LINCS & GOOLE HOSPITALS NHS,111074
North East Lincolnshire Council,http://statistics.data.gov.uk/id/local-authority/00FC,Chief Executive,Ad Law,Coroners,Other Agencies,Post Mortems,PJ148,16/06/15,357118,591.9,Revenue,REDACTED PERSONAL INFORMATION,REDACTED PERSONAL INFORMATION
North East Lincolnshire Council,http://statistics.data.gov.uk/id/local-authority/00FC,Chief Executive,Ad Law,Coroners,Other Agencies,Post Mortems,PJ148,19/06/15,357116,591.9,Revenue,REDACTED PERSONAL INFORMATION,REDACTED PERSONAL INFORMATION
North East Lincolnshire Council,http://statistics.data.gov.uk/id/local-authority/00FC,Chief Executive,Ad Law,Coroners,Other Agencies,Post Mortems,PJ148,11/06/15,356084,1219.63,Revenue,UNIVERSITY HOSPITALS OF LEICESTER NHS TRUST,107238
North East Lincolnshire Council,http://statistics.data.gov.uk/id/local-authority/00FC,Chief Executive,Ad Law,Coroners,Other Agencies,Post Mortems,PJ148,08/06/15,353386,380,Revenue,OXFORD UNIVERSITY HOSPITAL NHS TRUST,128732
North East Lincolnshire Council,http://statistics.data.gov.uk/id/local-authority/00FC,Chief Executive,Ad Law,Coroners,Other Agencies,Post Mortems,PJ148,11/06/15,355906,677.6,Revenue,REDACTED PERSONAL INFORMATION,REDACTED PERSONAL INFORMATION
North East Lincolnshire Council,http://statistics.data.gov.uk/id/local-authority/00FC,Chief Executive,Ad Law,Coroners,Other Agencies,Post Mortems,PJ148,11/06/15,355873,304.5,Revenue,REDACTED PERSONAL INFORMATION,REDACTED PERSONAL INFORMATION
North East Lincolnshire Council,http://statistics.data.gov.uk/id/local-authority/00FC,Chief Executive,Ad Law,Coroners,Other Agencies,Post Mortems,PJ148,11/06/15,355877,290.4,Revenue,REDACTED PERSONAL INFORMATION,REDACTED PERSONAL INFORMATION
North East Lincolnshire Council,http://statistics.data.gov.uk/id/local-authority/00FC,Chief Executive,Ad Law,Coroners,Other Agencies,Post Mortems,PJ148,11/06/15,355905,667.2,Revenue,REDACTED PERSONAL INFORMATION,REDACTED PERSONAL INFORMATION
North East Lincolnshire Council,http://statistics.data.gov.uk/id/local-authority/00FC,Chief Executive,Ad Law,Coroners,Other Agencies,Post Mortems,PJ148,30/06/15,358809,305.2,Revenue,SHEFFIELD TEACHING HOSPITALS NHS TRUST,101211
North East Lincolnshire Council,http://statistics.data.gov.uk/id/local-authority/00FC,Chief Executive,Ad Law,Coroners,Other Agencies,Post Mortems,PJ148,02/06/15,353788,520,Revenue,N LINCS & GOOLE HOSPITALS NHS,111074
North East Lincolnshire Council,http://statistics.data.gov.uk/id/local-authority/00FC,Chief Executive,Ad Law,Legal Services,Grants And Subscriptions,Subscriptions,LJ101,29/05/15,354365,500,Revenue,LAWYERS IN LOCAL GOVERNMENT,104903
North East Lincolnshire Council,http://statistics.data.gov.uk/id/local-authority/00FC,Chief Executive,Ad Law,Legal Services,Miscellaneous Expenses,Legal Fees - General,LL103,11/06/15,356093,4850,Revenue,MR JAMES GOUDIE QC,110782
North East Lincolnshire Council,http://statistics.data.gov.uk/id/local-authority/00FC,Chief Executive,Ad Law,Legal Services,Miscellaneous Expenses,Legal Fees - General,LL103,30/06/15,358774,1468.63,Revenue,LOCAL GOVERNMENT ASSOCIATION,101113
North East Lincolnshire Council,http://statistics.data.gov.uk/id/local-authority/00FC,Chief Executive,Ad Law,Legal Services,Other Local Authorities,Third Pp - Other Local Auth,PC101,08/06/15,355002,1241,Revenue,BOND DICKINSON LLP,121775
North East Lincolnshire Council,http://statistics.data.gov.uk/id/local-authority/00FC,Chief Executive,Ad Law,Legal Services,Consultancy,Consultancy,PL101,08/06/15,351466,3452.46,Revenue,SLR CONSULTING LTD,129190
North East Lincolnshire Council,http://statistics.data.gov.uk/id/local-authority/00FC,Chief Executive,Ad Law,Legal Services,Consultancy,Consultancy,PL101,30/06/15,358688,980,Revenue,RICKEM LIMITED,129764
North East Lincolnshire Council,http://statistics.data.gov.uk/id/local-authority/00FC,Chief Executive,Ad Law,Legal Services,Miscellaneous Expenses,Land Registry - Searches,LL102,23/06/15,358016,4500,Revenue,COFELY WORKPLACE LIMITED,123983
North East Lincolnshire Council,http://statistics.data.gov.uk/id/local-authority/00FC,Chief Executive,Ad Law,Legal Services,Miscellaneous Expenses,Legal Fees - General,LL103,08/06/15,355126,280,Revenue,AD LITEM LEGAL SERVICES,104447
North East Lincolnshire Council,http://statistics.data.gov.uk/id/local-authority/00FC,Chief Executive,Ad Law,Legal Services,Miscellaneous Expenses,Legal Fees - General,LL103,11/06/15,355508,626.94,Revenue,LEXTOX DRUG & ALCOHOL TESTING,125634
North East Lincolnshire Council,http://statistics.data.gov.uk/id/local-authority/00FC,Chief Executive,Ad Law,Legal Services,Miscellaneous Expenses,Legal Fees - General,LL103,08/06/15,355118,304.25,Revenue,LEXTOX DRUG & ALCOHOL TESTING,125634
North East Lincolnshire Council,http://statistics.data.gov.uk/id/local-authority/00FC,Chief Executive,Ad Law,Legal Services,Miscellaneous Expenses,Legal Fees - General,LL103,11/06/15,355888,656.95,Revenue,AD LITEM LEGAL SERVICES,104447
North East Lincolnshire Council,http://statistics.data.gov.uk/id/local-authority/00FC,Chief Executive,Ad Law,Legal Services,Miscellaneous Expenses,Legal Fees - General,LL103,30/06/15,358375,874.8,Revenue,AJ STEPHENSON,108904
North East Lincolnshire Council,http://statistics.data.gov.uk/id/local-authority/00FC,Chief Executive,Ad Law,Legal Services,Miscellaneous Expenses,Legal Fees - General,LL103,25/06/15,358181,533,Revenue,LEXTOX DRUG & ALCOHOL TESTING,125634
North East Lincolnshire Council,http://statistics.data.gov.uk/id/local-authority/00FC,Chief Executive,Ad Law,Legal Services,Miscellaneous Expenses,Legal Fees - General,LL103,19/06/15,357916,3652.5,Revenue,MR MICHAEL S BURDON,104432
North East Lincolnshire Council,http://statistics.data.gov.uk/id/local-authority/00FC,Chief Executive,Ad Law,Legal Services,Miscellaneous Expenses,Legal Fees - General,LL103,02/06/15,353763,478,Revenue,MR MARK WATTERSON,109973
North East Lincolnshire Council,http://statistics.data.gov.uk/id/local-authority/00FC,Chief Executive,Ad Law,Legal Services,Miscellaneous Expenses,Legal Fees - General,LL103,08/06/15,355559,540,Revenue,ANGLIA DNA SERVICES LTD,120720
North East Lincolnshire Council,http://statistics.data.gov.uk/id/local-authority/00FC,Chief Executive,Ad Law,Legal Services,Miscellaneous Expenses,Legal Fees - General,LL103,25/06/15,358330,2032,Revenue,REFLEXIVE SOLUTIONS LTD (RSL),129911
North East Lincolnshire Council,http://statistics.data.gov.uk/id/local-authority/00FC,Chief Executive,Ad Law,Legal Services,Miscellaneous Expenses,Legal Fees - General,LL103,02/06/15,353761,279.86,Revenue,DAVID BRIGGS ASSOCIATES LTD,108259
North East Lincolnshire Council,http://statistics.data.gov.uk/id/local-authority/00FC,Chief Executive,Ad Law,Legal Services,Miscellaneous Expenses,Legal Fees - General,LL103,11/06/15,355503,923.25,Revenue,ADVANCED CHILD CARE ASSESSMENTS LTD,129570
North East Lincolnshire Council,http://statistics.data.gov.uk/id/local-authority/00FC,Deputy Chief Executive,Ad Environment,Safer Communities P/Ship,Voluntary Associations,Third Pp - Third Sector,PF101,23/06/15,358029,15000,Revenue,VOLUNTARY ACTION NORTH EAST LINCOLNSHIRE,103631
North East Lincolnshire Council,http://statistics.data.gov.uk/id/local-authority/00FC,Deputy Chief Executive,Ad Environment,Safer Communities P/Ship,Voluntary Associations,Third Pp - Third Sector,PF101,18/06/15,357352,5000,Revenue,SAFER HOMES SERVICE,111706
North East Lincolnshire Council,http://statistics.data.gov.uk/id/local-authority/00FC,Deputy Chief Executive,Ad Environment,Cemeteries & Crematorium,Grounds Maintenance Costs,Grounds Maintenance,GJ101,11/06/15,355112,500,Revenue,J MELTON TREE SERVICES LTD,101809
North East Lincolnshire Council,http://statistics.data.gov.uk/id/local-authority/00FC,Deputy Chief Executive,Ad Environment,Cemeteries & Crematorium,Grounds Maintenance Costs,Grounds Maintenance,GJ101,30/06/15,358624,620,Revenue,JAMES COLES & SONS LTD,100758
North East Lincolnshire Council,http://statistics.data.gov.uk/id/local-authority/00FC,Deputy Chief Executive,Ad Environment,Cemeteries & Crematorium,Equip / Furniture / Materials,Equipment - Purchase,LA101,08/06/15,355117,410,Revenue,S P DAVIS MEMORIALS LIMITED,130000
North East Lincolnshire Council,http://statistics.data.gov.uk/id/local-authority/00FC,Deputy Chief Executive,Ad Environment,Cemeteries & Crematorium,Equip / Furniture / Materials,Equipment - Purchase,LA101,29/06/15,358625,347.11,Revenue,F G MARSHALL LTD,100549
North East Lincolnshire Council,http://statistics.data.gov.uk/id/local-authority/00FC,Deputy Chief Executive,Ad Environment,Cemeteries & Crematorium,Equip / Furniture / Materials,Equipment - Purchase,LA101,08/06/15,355054,659.8,Revenue,S P DAVIS MEMORIALS LIMITED,130000
North East Lincolnshire Council,http://statistics.data.gov.uk/id/local-authority/00FC,Deputy Chief Executive,Ad Environment,Cemeteries & Crematorium,Equip / Furniture / Materials,Equipment - Purchase,LA101,11/06/15,355055,277.08,Revenue,ARGOS BUSINESS SOLUTIONS,101032
North East Lincolnshire Council,http://statistics.data.gov.uk/id/local-authority/00FC,Deputy Chief Executive,Ad Environment,Cemeteries & Crematorium,Equip / Furniture / Materials,Equipment - Purchase,LA101,08/06/15,355116,659.4,Revenue,S P DAVIS MEMORIALS LIMITED,130000
North East Lincolnshire Council,http://statistics.data.gov.uk/id/local-authority/00FC,Deputy Chief Executive,Ad Environment,Cemeteries & Crematorium,Equip / Furniture / Materials,Equipment - Purchase,LA101,08/06/15,355053,694.5,Revenue,S P DAVIS MEMORIALS LIMITED,130000
North East Lincolnshire Council,http://statistics.data.gov.uk/id/local-authority/00FC,Deputy Chief Executive,Ad Environment,Cemeteries & Crematorium,Equip / Furniture / Materials,Equipment - Purchase,LA101,25/06/15,358351,279,Revenue,ASHDOWN SUPPLIES,100651
North East Lincolnshire Council,http://statistics.data.gov.uk/id/local-authority/00FC,Deputy Chief Executive,Ad Environment,Garage & Fleet Strategy,Direct Transport Costs,Vehicles - Repairs And Maint,JA105,18/06/15,357562,2524.67,Revenue,FLEET FACTORS LTD,100886
North East Lincolnshire Council,http://statistics.data.gov.uk/id/local-authority/00FC,Deputy Chief Executive,Ad Environment,Garage & Fleet Strategy,Direct Transport Costs,Vehicles - Repairs And Maint,JA105,18/06/15,357563,1842.69,Revenue,FLEET FACTORS LTD,100886
North East Lincolnshire Council,http://statistics.data.gov.uk/id/local-authority/00FC,Deputy Chief Executive,Ad Environment,Garage & Fleet Strategy,Direct Transport Costs,Vehicles - Repairs And Maint,JA105,18/06/15,357565,3509.95,Revenue,FLEET FACTORS LTD,100886
North East Lincolnshire Council,http://statistics.data.gov.uk/id/local-authority/00FC,Deputy Chief Executive,Ad Environment,Garage & Fleet Strategy,Direct Transport Costs,Vehicles - Repairs And Maint,JA105,18/06/15,357572,430,Revenue,B A BUSH & SON LTD,101828
North East Lincolnshire Council,http://statistics.data.gov.uk/id/local-authority/00FC,Deputy Chief Executive,Ad Environment,Garage & Fleet Strategy,Direct Transport Costs,Vehicles - Repairs And Maint,JA105,18/06/15,357602,435.5,Revenue,B A BUSH & SON LTD,101828
North East Lincolnshire Council,http://statistics.data.gov.uk/id/local-authority/00FC,Deputy Chief Executive,Ad Environment,Garage & Fleet Strategy,Direct Transport Costs,Vehicles - Repairs And Maint,JA105,18/06/15,357577,271.85,Revenue,B A BUSH & SON LTD,101828
North East Lincolnshire Council,http://statistics.data.gov.uk/id/local-authority/00FC,Deputy Chief Executive,Ad Environment,Garage & Fleet Strategy,Direct Transport Costs,Vehicles - Repairs And Maint,JA105,18/06/15,357609,1057.02,Revenue,FLEET FACTORS LTD,100886
North East Lincolnshire Council,http://statistics.data.gov.uk/id/local-authority/00FC,Deputy Chief Executive,Ad Environment,Garage & Fleet Strategy,Direct Transport Costs,Vehicles - Repairs And Maint,JA105,18/06/15,357612,949.73,Revenue,FLEET FACTORS LTD,100886
North East Lincolnshire Council,http://statistics.data.gov.uk/id/local-authority/00FC,Deputy Chief Executive,Ad Environment,Garage & Fleet Strategy,Direct Transport Costs,Vehicles - Repairs And Maint,JA105,29/06/15,358716,430,Revenue,B A BUSH & SON LTD,101828
North East Lincolnshire Council,http://statistics.data.gov.uk/id/local-authority/00FC,Deputy Chief Executive,Ad Environment,Garage & Fleet Strategy,Direct Transport Costs,Vehicles - Repairs And Maint,JA105,29/06/15,358717,435.5,Revenue,B A BUSH & SON LTD,101828
North East Lincolnshire Council,http://statistics.data.gov.uk/id/local-authority/00FC,Deputy Chief Executive,Ad Environment,Garage & Fleet Strategy,Direct Transport Costs,Vehicles - Repairs And Maint,JA105,29/06/15,358718,430,Revenue,B A BUSH & SON LTD,101828
North East Lincolnshire Council,http://statistics.data.gov.uk/id/local-authority/00FC,Deputy Chief Executive,Ad Environment,Garage & Fleet Strategy,Direct Transport Costs,Vehicles - Repairs And Maint,JA105,29/06/15,358719,2207.02,Revenue,FLEET FACTORS LTD,100886
North East Lincolnshire Council,http://statistics.data.gov.uk/id/local-authority/00FC,Deputy Chief Executive,Ad Environment,Garage & Fleet Strategy,Direct Transport Costs,Vehicles - Repairs And Maint,JA105,29/06/15,358757,280,Revenue,HODSON & KAUSS,100620
North East Lincolnshire Council,http://statistics.data.gov.uk/id/local-authority/00FC,Deputy Chief Executive,Ad Environment,Garage & Fleet Strategy,Direct Transport Costs,Vehicles - Repairs And Maint,JA105,29/06/15,358759,1400,Revenue,HODSON & KAUSS,100620
North East Lincolnshire Council,http://statistics.data.gov.uk/id/local-authority/00FC,Deputy Chief Executive,Ad Environment,Garage & Fleet Strategy,Direct Transport Costs,Vehicles - Repairs And Maint,JA105,29/06/15,358692,1684.03,Revenue,FLEET FACTORS LTD,100886
North East Lincolnshire Council,http://statistics.data.gov.uk/id/local-authority/00FC,Deputy Chief Executive,Ad Environment,Garage & Fleet Strategy,Direct Transport Costs,Vehicles - Repairs And Maint,JA105,01/06/15,354302,332,Revenue,IMPERIAL COMMERCIALS LTD,109279
North East Lincolnshire Council,http://statistics.data.gov.uk/id/local-authority/00FC,Deputy Chief Executive,Ad Environment,Garage & Fleet Strategy,Direct Transport Costs,Vehicles - Repairs And Maint,JA105,04/06/15,354290,430,Revenue,B A BUSH & SON LTD,101828
North East Lincolnshire Council,http://statistics.data.gov.uk/id/local-authority/00FC,Deputy Chief Executive,Ad Environment,Garage & Fleet Strategy,Direct Transport Costs,Vehicles - Repairs And Maint,JA105,15/06/15,356522,264.47,Revenue,B A BUSH & SON LTD,101828
North East Lincolnshire Council,http://statistics.data.gov.uk/id/local-authority/00FC,Deputy Chief Executive,Ad Environment,Garage & Fleet Strategy,Direct Transport Costs,Vehicles - Repairs And Maint,JA105,18/06/15,357631,430,Revenue,B A BUSH & SON LTD,101828
North East Lincolnshire Council,http://statistics.data.gov.uk/id/local-authority/00FC,Deputy Chief Executive,Ad Environment,Garage & Fleet Strategy,Direct Transport Costs,Vehicles - Repairs And Maint,JA105,18/06/15,357594,443.78,Revenue,B A BUSH & SON LTD,101828
North East Lincolnshire Council,http://statistics.data.gov.uk/id/local-authority/00FC,Deputy Chief Executive,Ad Environment,Garage & Fleet Strategy,Direct Transport Costs,Vehicles - Repairs And Maint,JA105,18/06/15,357608,430,Revenue,B A BUSH & SON LTD,101828
North East Lincolnshire Council,http://statistics.data.gov.uk/id/local-authority/00FC,Deputy Chief Executive,Ad Environment,Garage & Fleet Strategy,Direct Transport Costs,Vehicles - Repairs And Maint,JA105,18/06/15,357610,430,Revenue,B A BUSH & SON LTD,101828
North East Lincolnshire Council,http://statistics.data.gov.uk/id/local-authority/00FC,Deputy Chief Executive,Ad Environment,Garage & Fleet Strategy,Direct Transport Costs,Vehicles - Repairs And Maint,JA105,18/06/15,357613,269.3,Revenue,B A BUSH & SON LTD,101828
North East Lincolnshire Council,http://statistics.data.gov.uk/id/local-authority/00FC,Deputy Chief Executive,Ad Environment,Garage & Fleet Strategy,Direct Transport Costs,Vehicles - Repairs And Maint,JA105,22/06/15,357738,449.8,Revenue,B A BUSH & SON LTD,101828
North East Lincolnshire Council,http://statistics.data.gov.uk/id/local-authority/00FC,Deputy Chief Executive,Ad Environment,Garage & Fleet Strategy,Direct Transport Costs,Vehicles - Repairs And Maint,JA105,01/06/15,354291,435.5,Revenue,B A BUSH & SON LTD,101828
North East Lincolnshire Council,http://statistics.data.gov.uk/id/local-authority/00FC,Deputy Chief Executive,Ad Environment,Garage & Fleet Strategy,Direct Transport Costs,Vehicles - Repairs And Maint,JA105,01/06/15,354292,430.52,Revenue,B A BUSH & SON LTD,101828
North East Lincolnshire Council,http://statistics.data.gov.uk/id/local-authority/00FC,Deputy Chief Executive,Ad Environment,Garage & Fleet Strategy,Direct Transport Costs,Vehicles - Repairs And Maint,JA105,01/06/15,354293,430,Revenue,B A BUSH & SON LTD,101828
North East Lincolnshire Council,http://statistics.data.gov.uk/id/local-authority/00FC,Deputy Chief Executive,Ad Environment,Garage & Fleet Strategy,Direct Transport Costs,Vehicles - Repairs And Maint,JA105,01/06/15,354297,436.02,Revenue,B A BUSH & SON LTD,101828
North East Lincolnshire Council,http://statistics.data.gov.uk/id/local-authority/00FC,Deputy Chief Executive,Ad Environment,Garage & Fleet Strategy,Direct Transport Costs,Vehicles - Repairs And Maint,JA105,01/06/15,353986,2128.96,Revenue,FLEET FACTORS LTD,100886
North East Lincolnshire Council,http://statistics.data.gov.uk/id/local-authority/00FC,Deputy Chief Executive,Ad Environment,Garage & Fleet Strategy,Direct Transport Costs,Vehicles - Repairs And Maint,JA105,01/06/15,353981,2104.23,Revenue,FLEET FACTORS LTD,100886
North East Lincolnshire Council,http://statistics.data.gov.uk/id/local-authority/00FC,Deputy Chief Executive,Ad Environment,Garage & Fleet Strategy,Direct Transport Costs,Vehicles - Repairs And Maint,JA105,01/06/15,353982,1181.67,Revenue,FLEET FACTORS LTD,100886
North East Lincolnshire Council,http://statistics.data.gov.uk/id/local-authority/00FC,Deputy Chief Executive,Ad Environment,Garage & Fleet Strategy,Direct Transport Costs,Vehicles - Repairs And Maint,JA105,01/06/15,353983,2030.15,Revenue,FLEET FACTORS LTD,100886
North East Lincolnshire Council,http://statistics.data.gov.uk/id/local-authority/00FC,Deputy Chief Executive,Ad Environment,Garage & Fleet Strategy,Direct Transport Costs,Vehicles - Repairs And Maint,JA105,01/06/15,353985,684.1,Revenue,FLEET FACTORS LTD,100886
North East Lincolnshire Council,http://statistics.data.gov.uk/id/local-authority/00FC,Deputy Chief Executive,Ad Environment,Garage & Fleet Strategy,Direct Transport Costs,Vehicles - Repairs And Maint,JA105,22/06/15,357734,1213.85,Revenue,FLEET FACTORS LTD,100886
North East Lincolnshire Council,http://statistics.data.gov.uk/id/local-authority/00FC,Deputy Chief Executive,Ad Environment,Garage & Fleet Strategy,Direct Transport Costs,Vehicles - Repairs And Maint,JA105,22/06/15,357735,2543.22,Revenue,FLEET FACTORS LTD,100886
North East Lincolnshire Council,http://statistics.data.gov.uk/id/local-authority/00FC,Deputy Chief Executive,Ad Environment,Garage & Fleet Strategy,Direct Transport Costs,Vehicles - Repairs And Maint,JA105,22/06/15,357736,2309.8,Revenue,FLEET FACTORS LTD,100886
North East Lincolnshire Council,http://statistics.data.gov.uk/id/local-authority/00FC,Deputy Chief Executive,Ad Environment,Garage & Fleet Strategy,Direct Transport Costs,Vehicles - Repairs And Maint,JA105,22/06/15,357737,716.37,Revenue,FLEET FACTORS LTD,100886
North East Lincolnshire Council,http://statistics.data.gov.uk/id/local-authority/00FC,Deputy Chief Executive,Ad Environment,Garage & Fleet Strategy,Direct Transport Costs,Vehicles - Repairs And Maint,JA105,22/06/15,357624,2418.59,Revenue,FLEET FACTORS LTD,100886
North East Lincolnshire Council,http://statistics.data.gov.uk/id/local-authority/00FC,Deputy Chief Executive,Ad Environment,Garage & Fleet Strategy,Direct Transport Costs,Vehicles - Repairs And Maint,JA105,23/06/15,357623,1326.6,Revenue,FLEET FACTORS LTD,100886
North East Lincolnshire Council,http://statistics.data.gov.uk/id/local-authority/00FC,Deputy Chief Executive,Ad Environment,Garage & Fleet Strategy,Direct Transport Costs,Vehicles - Repairs And Maint,JA105,29/06/15,358693,830,Revenue,HIGHLINE EXTREME 0Z-UK LTD,126795
North East Lincolnshire Council,http://statistics.data.gov.uk/id/local-authority/00FC,Deputy Chief Executive,Ad Environment,Garage & Fleet Strategy,Direct Transport Costs,Vehicles - Repairs And Maint,JA105,22/06/15,357733,848.36,Revenue,IMPERIAL COMMERCIALS LTD,109279
North East Lincolnshire Council,http://statistics.data.gov.uk/id/local-authority/00FC,Deputy Chief Executive,Ad Environment,Garage & Fleet Strategy,Direct Transport Costs,Vehicles - Repairs And Maint,JA105,22/06/15,357630,350,Revenue,J W LIBERA & SON LTD,104043
North East Lincolnshire Council,http://statistics.data.gov.uk/id/local-authority/00FC,Deputy Chief Executive,Ad Environment,Garage & Fleet Strategy,Direct Transport Costs,Vehicles - Repairs And Maint,JA105,29/06/15,358786,305.21,Revenue,P A DE STE CROIX & SON,103824
North East Lincolnshire Council,http://statistics.data.gov.uk/id/local-authority/00FC,Deputy Chief Executive,Ad Environment,Garage & Fleet Strategy,Direct Transport Costs,Vehicles - Repairs And Maint,JA105,01/06/15,354294,430.52,Revenue,B A BUSH & SON LTD,101828
North East Lincolnshire Council,http://statistics.data.gov.uk/id/local-authority/00FC,Deputy Chief Executive,Ad Environment,Garage & Fleet Strategy,Direct Transport Costs,Vehicles - Repairs And Maint,JA105,04/06/15,354284,684.29,Revenue,WR MATERIAL HANDLING LTD,101388
North East Lincolnshire Council,http://statistics.data.gov.uk/id/local-authority/00FC,Deputy Chief Executive,Ad Environment,Garage & Fleet Strategy,Direct Transport Costs,Vehicles - Repairs And Maint,JA105,25/06/15,357742,431.67,Revenue,WR MATERIAL HANDLING LTD,101388
North East Lincolnshire Council,http://statistics.data.gov.uk/id/local-authority/00FC,Deputy Chief Executive,Ad Environment,Garage & Fleet Strategy,Direct Transport Costs,Vehicles - Repairs And Maint,JA105,22/06/15,357732,521.82,Revenue,WR MATERIAL HANDLING LTD,101388
North East Lincolnshire Council,http://statistics.data.gov.uk/id/local-authority/00FC,Deputy Chief Executive,Ad Environment,Garage & Fleet Strategy,Direct Transport Costs,Vehicles - Repairs And Maint,JA105,01/06/15,354289,537.67,Revenue,WR MATERIAL HANDLING LTD,101388
North East Lincolnshire Council,http://statistics.data.gov.uk/id/local-authority/00FC,Deputy Chief Executive,Ad Environment,Garage & Fleet Strategy,Clothes Uniforms And Laundry,Laundry,LC103,23/06/15,357629,437.15,Revenue,JOHNSONS APPARELMASTER,100810
North East Lincolnshire Council,http://statistics.data.gov.uk/id/local-authority/00FC,Deputy Chief Executive,Ad Environment,Garage & Fleet Strategy,Grants And Subscriptions,Subscriptions,LJ101,18/06/15,357619,260,Revenue,FREIGHT TRANSPORT ASSOCIATION,101027
North East Lincolnshire Council,http://statistics.data.gov.uk/id/local-authority/00FC,Deputy Chief Executive,Ad Environment,Grounds And Street Cleansing,Rep Alterations Maint Building,Buildings - Repairs And Maint,GA102,08/06/15,354659,410,Revenue,E K M LTD,101926
North East Lincolnshire Council,http://statistics.data.gov.uk/id/local-authority/00FC,Deputy Chief Executive,Ad Environment,Grounds And Street Cleansing,Rep Alterations Maint Building,Buildings - Repairs And Maint,GA102,08/06/15,354659,260,Revenue,E K M LTD,101926
North East Lincolnshire Council,http://statistics.data.gov.uk/id/local-authority/00FC,Deputy Chief Executive,Ad Environment,Grounds And Street Cleansing,Rep Alterations Maint Building,Buildings - Repairs And Maint,GA102,15/06/15,355886,430,Revenue,BCJ CONSTRUCTION LTD,112224
North East Lincolnshire Council,http://statistics.data.gov.uk/id/local-authority/00FC,Deputy Chief Executive,Ad Environment,Grounds And Street Cleansing,Rep Alterations Maint Building,Buildings - Repairs And Maint,GA102,23/06/15,357331,940,Revenue,BCJ CONSTRUCTION LTD,112224
North East Lincolnshire Council,http://statistics.data.gov.uk/id/local-authority/00FC,Deputy Chief Executive,Ad Environment,Grounds And Street Cleansing,Water Services,Water,GE101,04/06/15,354370,625.3,Revenue,ENVIRONMENT AGENCY,101076
North East Lincolnshire Council,http://statistics.data.gov.uk/id/local-authority/00FC,Deputy Chief Executive,Ad Environment,Grounds And Street Cleansing,Direct Transport Costs,Vehicles - Running Costs,JA104,02/06/15,354775,1012.23,Revenue,ALLSTAR BUSINESS SOLUTIONS LTD,108278
North East Lincolnshire Council,http://statistics.data.gov.uk/id/local-authority/00FC,Deputy Chief Executive,Ad Environment,Grounds And Street Cleansing,Equip / Furniture / Materials,Equipment - Purchase,LA101,15/06/15,356340,340.5,Revenue,TILLERS TURF LTD,112229
North East Lincolnshire Council,http://statistics.data.gov.uk/id/local-authority/00FC,Deputy Chief Executive,Ad Environment,Grounds And Street Cleansing,Equip / Furniture / Materials,Equipment - Purchase,LA101,04/06/15,354657,1225,Revenue,AHS LTD,105516
North East Lincolnshire Council,http://statistics.data.gov.uk/id/local-authority/00FC,Deputy Chief Executive,Ad Environment,Grounds And Street Cleansing,Equip / Furniture / Materials,Equipment - Purchase,LA101,04/06/15,354656,267.3,Revenue,AHS LTD,105516
North East Lincolnshire Council,http://statistics.data.gov.uk/id/local-authority/00FC,Deputy Chief Executive,Ad Environment,Grounds And Street Cleansing,Equip / Furniture / Materials,Equipment - Purchase,LA101,02/06/15,354420,885,Revenue,STUART H SOMERSCALES LTD,100586
North East Lincolnshire Council,http://statistics.data.gov.uk/id/local-authority/00FC,Deputy Chief Executive,Ad Environment,Grounds And Street Cleansing,Equip / Furniture / Materials,Equipment - Purchase,LA101,04/06/15,354658,1043,Revenue,AHS LTD,105516
North East Lincolnshire Council,http://statistics.data.gov.uk/id/local-authority/00FC,Deputy Chief Executive,Ad Environment,Grounds And Street Cleansing,Equip / Furniture / Materials,Equipment - Purchase,LA101,11/06/15,356074,420,Revenue,JEWSON LIMITED,100991
North East Lincolnshire Council,http://statistics.data.gov.uk/id/local-authority/00FC,Deputy Chief Executive,Ad Environment,Grounds And Street Cleansing,Equip / Furniture / Materials,Equipment - Purchase,LA101,30/06/15,358624,995,Revenue,JAMES COLES & SONS LTD,100758
North East Lincolnshire Council,http://statistics.data.gov.uk/id/local-authority/00FC,Deputy Chief Executive,Ad Environment,Grounds And Street Cleansing,Equip / Furniture / Materials,Equipment - Purchase,LA101,02/06/15,353811,635.95,Revenue,BRIANPLANT (HUMBERSIDE) LTD,100583
North East Lincolnshire Council,http://statistics.data.gov.uk/id/local-authority/00FC,Deputy Chief Executive,Ad Environment,Grounds And Street Cleansing,Clothes Uniforms And Laundry,Protective Clothing,LC101,04/06/15,354460,-42.18,Revenue,ARCO LTD,100509
North East Lincolnshire Council,http://statistics.data.gov.uk/id/local-authority/00FC,Deputy Chief Executive,Ad Environment,Grounds And Street Cleansing,Communications And Computing,Telephones,LF112,15/06/15,356347,492,Revenue,RADPHONE LTD,101671
North East Lincolnshire Council,http://statistics.data.gov.uk/id/local-authority/00FC,Deputy Chief Executive,Ad Environment,Grounds And Street Cleansing,Private Contractors,Third Party Prov - Private,PH101,04/06/15,354464,3600,Revenue,TOWN & COUNTRY GROUNDS,103976
North East Lincolnshire Council,http://statistics.data.gov.uk/id/local-authority/00FC,Deputy Chief Executive,Ad Environment,Grounds And Street Cleansing,Private Contractors,Third Party Prov - Private,PH101,04/06/15,354449,374.82,Revenue,GRIMSBY OPERATIONS LTD,101116
North East Lincolnshire Council,http://statistics.data.gov.uk/id/local-authority/00FC,Deputy Chief Executive,Ad Environment,Grounds And Street Cleansing,Private Contractors,Third Party Prov - Private,PH101,18/06/15,357210,-210,Revenue,JAMES COLES & SONS LTD,100758
North East Lincolnshire Council,http://statistics.data.gov.uk/id/local-authority/00FC,Deputy Chief Executive,Ad Environment,Grounds And Street Cleansing,Direct Transport Costs,Vehicles - Running Costs,JA104,02/06/15,354775,515.71,Revenue,ALLSTAR BUSINESS SOLUTIONS LTD,108278
North East Lincolnshire Council,http://statistics.data.gov.uk/id/local-authority/00FC,Deputy Chief Executive,Ad Environment,Grounds And Street Cleansing,Equip / Furniture / Materials,Equipment - Purchase,LA101,30/06/15,358888,310.8,Revenue,ARCO LTD,100509
North East Lincolnshire Council,http://statistics.data.gov.uk/id/local-authority/00FC,Deputy Chief Executive,Ad Environment,Grounds And Street Cleansing,Equip / Furniture / Materials,Equipment - Purchase,LA101,15/06/15,355004,975,Revenue,SIGNS EXPRESS (N & NE LINCS),100983
North East Lincolnshire Council,http://statistics.data.gov.uk/id/local-authority/00FC,Deputy Chief Executive,Ad Environment,Grounds And Street Cleansing,Communications And Computing,Telephones,LF112,15/06/15,356347,264,Revenue,RADPHONE LTD,101671
North East Lincolnshire Council,http://statistics.data.gov.uk/id/local-authority/00FC,Deputy Chief Executive,Ad Environment,Grounds And Street Cleansing,Private Contractors,Third Party Prov - Private,PH101,08/06/15,354622,291.67,Revenue,RIVER SWAN VETERINARY CENTRE,104349
North East Lincolnshire Council,http://statistics.data.gov.uk/id/local-authority/00FC,Deputy Chief Executive,Ad Environment,Grounds And Street Cleansing,Private Contractors,Third Party Prov - Private,PH101,29/06/15,356611,2000,Revenue,HIRST CONSERVATION,108145
North East Lincolnshire Council,http://statistics.data.gov.uk/id/local-authority/00FC,Deputy Chief Executive,Ad Environment,Grounds And Street Cleansing,Rep Alterations Maint Building,Buildings - Repairs And Maint,GA102,15/06/15,357047,2501.42,Revenue,J MCCANN & CO LTD,100841
North East Lincolnshire Council,http://statistics.data.gov.uk/id/local-authority/00FC,Deputy Chief Executive,Ad Environment,Grounds And Street Cleansing,Rep Alterations Maint Building,Buildings - Repairs And Maint,GA102,08/06/15,354669,868.25,Revenue,BCJ CONSTRUCTION LTD,112224
North East Lincolnshire Council,http://statistics.data.gov.uk/id/local-authority/00FC,Deputy Chief Executive,Ad Environment,Grounds And Street Cleansing,Rep Alterations Maint Building,Buildings - Repairs And Maint,GA102,25/06/15,357091,600,Revenue,NEWTON NEWTON FLAG AND BANNER MAKERS LTD,105866
North East Lincolnshire Council,http://statistics.data.gov.uk/id/local-authority/00FC,Deputy Chief Executive,Ad Environment,Grounds And Street Cleansing,Rep Alterations Maint Building,Buildings - Repairs And Maint,GA102,18/06/15,357647,388.96,Revenue,HARROQUIP PUMP SYSTEMS,103412
North East Lincolnshire Council,http://statistics.data.gov.uk/id/local-authority/00FC,Deputy Chief Executive,Ad Environment,Grounds And Street Cleansing,Rep Alterations Maint Building,Buildings - Repairs And Maint,GA102,04/06/15,353738,1975,Revenue,NEWTON NEWTON FLAG AND BANNER MAKERS LTD,105866
North East Lincolnshire Council,http://statistics.data.gov.uk/id/local-authority/00FC,Deputy Chief Executive,Ad Environment,Grounds And Street Cleansing,Rep Alterations Maint Building,Buildings - Repairs And Maint,GA102,30/06/15,358259,388.96,Revenue,HARROQUIP PUMP SYSTEMS,103412
North East Lincolnshire Council,http://statistics.data.gov.uk/id/local-authority/00FC,Deputy Chief Executive,Ad Environment,Grounds And Street Cleansing,Rep Alterations Maint Building,Buildings - Repairs And Maint,GA102,25/06/15,357333,2058,Revenue,BCJ CONSTRUCTION LTD,112224
North East Lincolnshire Council,http://statistics.data.gov.uk/id/local-authority/00FC,Deputy Chief Executive,Ad Environment,Grounds And Street Cleansing,Rep Alterations Maint Building,Buildings - Repairs And Maint,GA102,08/06/15,354670,600,Revenue,BCJ CONSTRUCTION LTD,112224
North East Lincolnshire Council,http://statistics.data.gov.uk/id/local-authority/00FC,Deputy Chief Executive,Ad Environment,Grounds And Street Cleansing,Rents,Rent,GC101,30/06/15,358879,736.5,Revenue,ASSOCIATED BRITISH PORTS,100834
North East Lincolnshire Council,http://statistics.data.gov.uk/id/local-authority/00FC,Deputy Chief Executive,Ad Environment,Grounds And Street Cleansing,Rep Alterations Maint Building,Buildings - Repairs And Maint,GA102,04/06/15,353659,455,Revenue,COFELY WORKPLACE LIMITED,123983
North East Lincolnshire Council,http://statistics.data.gov.uk/id/local-authority/00FC,Deputy Chief Executive,Ad Environment,Grounds And Street Cleansing,Rep Alterations Maint Building,Buildings - Repairs And Maint,GA102,04/06/15,354432,1479.6,Revenue,BCJ CONSTRUCTION LTD,112224
North East Lincolnshire Council,http://statistics.data.gov.uk/id/local-authority/00FC,Deputy Chief Executive,Ad Environment,Grounds And Street Cleansing,Water Services,Water,GE101,04/06/15,354370,1100.4,Revenue,ENVIRONMENT AGENCY,101076
North East Lincolnshire Council,http://statistics.data.gov.uk/id/local-authority/00FC,Deputy Chief Executive,Ad Environment,Waste Services,Indirect Employee Expenses,Staff Training,EB122,08/06/15,354677,650,Revenue,MAL TRAINING LTD,105979
North East Lincolnshire Council,http://statistics.data.gov.uk/id/local-authority/00FC,Deputy Chief Executive,Ad Environment,Waste Services,Equip / Furniture / Materials,Equipment - Purchase,LA101,09/06/15,356104,296.8,Revenue,ARCO LTD,100509
North East Lincolnshire Council,http://statistics.data.gov.uk/id/local-authority/00FC,Deputy Chief Executive,Ad Environment,Waste Services,Equip / Furniture / Materials,Equipment - Purchase,LA101,09/06/15,356103,263,Revenue,ARCO LTD,100509
North East Lincolnshire Council,http://statistics.data.gov.uk/id/local-authority/00FC,Deputy Chief Executive,Ad Environment,Waste Services,Equip / Furniture / Materials,Promotions,LA124,11/06/15,356086,499.54,Revenue,STRAIGHT PLC,101624
North East Lincolnshire Council,http://statistics.data.gov.uk/id/local-authority/00FC,Deputy Chief Executive,Ad Environment,Waste Services,Clothes Uniforms And Laundry,Protective Clothing,LC101,25/06/15,356576,385.2,Revenue,WESTBURY INDUSTRIAL SUPPLIES LTD,102378
North East Lincolnshire Council,http://statistics.data.gov.uk/id/local-authority/00FC,Deputy Chief Executive,Ad Environment,Waste Services,Clothes Uniforms And Laundry,Protective Clothing,LC101,25/06/15,356576,385.2,Revenue,WESTBURY INDUSTRIAL SUPPLIES LTD,102378
North East Lincolnshire Council,http://statistics.data.gov.uk/id/local-authority/00FC,Deputy Chief Executive,Ad Environment,Waste Services,Clothes Uniforms And Laundry,Protective Clothing,LC101,25/06/15,356576,385.2,Revenue,WESTBURY INDUSTRIAL SUPPLIES LTD,102378
North East Lincolnshire Council,http://statistics.data.gov.uk/id/local-authority/00FC,Deputy Chief Executive,Ad Environment,Waste Services,Grants And Subscriptions,Subscriptions,LJ101,30/06/15,358906,395,Revenue,LARAC,104896
North East Lincolnshire Council,http://statistics.data.gov.uk/id/local-authority/00FC,Deputy Chief Executive,Ad Environment,Waste Services,Private Contractors,Third Party Prov - Private,PH101,11/06/15,355071,2623.32,Revenue,PAGE PAPER LTD,129292
North East Lincolnshire Council,http://statistics.data.gov.uk/id/local-authority/00FC,Deputy Chief Executive,Ad Environment,Waste Services,Private Contractors,Third Party Prov - Private,PH101,11/06/15,353729,1726.2,Revenue,PAGE PAPER LTD,129292
North East Lincolnshire Council,http://statistics.data.gov.uk/id/local-authority/00FC,Deputy Chief Executive,Ad Environment,Waste Services,Private Contractors,Third Party Prov - Private,PH101,11/06/15,354795,2227.68,Revenue,PAGE PAPER LTD,129292
North East Lincolnshire Council,http://statistics.data.gov.uk/id/local-authority/00FC,Deputy Chief Executive,Ad Environment,Waste Disposal And Strategy,Private Contractors,Contract Payments,PH105,29/06/15,358380,REDACTED COMMERCIALLY SENSITIVE,Revenue,NEWLINCS DEVELOPMENT LTD,101125
North East Lincolnshire Council,http://statistics.data.gov.uk/id/local-authority/00FC,Deputy Chief Executive,Ad Environment,Waste Disposal And Strategy,Private Contractors,Contract Payments Landfill Tax,PH106,29/06/15,358380,REDACTED COMMERCIALLY SENSITIVE,Revenue,NEWLINCS DEVELOPMENT LTD,101125
North East Lincolnshire Council,http://statistics.data.gov.uk/id/local-authority/00FC,Deputy Chief Executive,Ad Environment,Community Protection,Print Stationery / Gen Off Exp,Publicity,LD105,11/06/15,356063,443,Revenue,LOCAL WORLD LIMITED,118774
North East Lincolnshire Council,http://statistics.data.gov.uk/id/local-authority/00FC,Deputy Chief Executive,Ad Environment,Community Protection,Private Contractors,Third Party Prov - Private,PH101,04/06/15,354642,550,Revenue,EMPOWER EMPLOYABILITY MENTORING PROGRAMME,118831
North East Lincolnshire Council,http://statistics.data.gov.uk/id/local-authority/00FC,Deputy Chief Executive,Ad Environment,Community Protection,Private Contractors,Third Party Prov - Private,PH101,30/06/15,358958,250,Revenue,EMPOWER EMPLOYABILITY MENTORING PROGRAMME,118831
